Directorate,Department,Expenditure Type,Ref.Doc.1,Vendor Name,Expenditure Amount (exc VAT),Payment Date
Delivery Units,Assurance,Audit Fee,1031911902,PRICEWATERHOUSE COOPERS,"25,000.00",25/01/2024
Delivery Units,Assurance,Professional Services,1032938702,PRICEWATERHOUSE COOPERS,"20,000.00",26/01/2024
Delivery Units,Assurance,Professional Services,1032988101,One Eighty Advisory Limited,"6,600.00",25/01/2024
Delivery Units,Assurance,Professional Services,1033117101,PRICEWATERHOUSE COOPERS,"40,000.00",30/01/2024
Delivery Units,Assurance,Training,1033028102,LONDON BOROUGH OF WALTHAM FOREST,"1,500.00",26/01/2024
Delivery Units,Assurance,Training,1033031803,LONDON BOROUGH OF WALTHAM FOREST,300.00,29/01/2024
Delivery Units,Assurance,Legal and Court Fees,1032612501,Thurrock Council,"1,820.00",26/01/2024
Delivery Units,Strategy and Resources,Other Establishments - Third P,1031112503,CITY OF LONDON,"89,772.00",05/01/2024
Delivery Units,Strategy and Resources,Grant Payments,1032452702,CITY OF LONDON,"73,886.00",05/01/2024
Delivery Units,Strategy and Resources,Grant Payments,1032848802,TRANSPORT FOR LONDON,"127,792.40",29/01/2024
Delivery Units,Strategy and Resources,Other Establishments - Third P,0080073497,LEE VALLEY REGIONAL PARK AUTH.,"32,407.20",18/01/2024
Delivery Units,Strategy and Resources,Other Services,0080073750,North London Waste Authority ,"897,742.00",25/01/2024
Delivery Units,Strategy and Resources,Consultants Fees,1032016202,Link Treasury Services Ltd,"15,550.00",03/01/2024
Delivery Units,Customer and Place,Professional Services,1030755603,THE BARNETGROUP LIMITED,"50,000.00",23/01/2024
Delivery Units,Customer and Place,Other Awards,1032363601,THE BARNETGROUP LIMITED,"131,000.00",02/01/2024
Delivery Units,Customer and Place,Other Services,1032363801,THE BARNETGROUP LIMITED,"320,000.00",02/01/2024
Delivery Units,Customer and Place,Other Agencies - Third Party P,1032365101,THE BARNETGROUP LIMITED,"224,000.00",02/01/2024
Delivery Units,Customer and Place,Private Contractors - Third Pa,1032365502,THE BARNETGROUP LIMITED,"1,613,000.00",12/01/2024
Delivery Units,Customer and Place,Private Contractors - Third Pa,1032386401,THE BARNETGROUP LIMITED,"1,613,000.00",03/01/2024
Delivery Units,Customer and Place,Fees and Charges,1032721001,LONDON BOROUGH OF HARROW,74.00,18/01/2024
Delivery Units,Customer and Place,Professional Services,1032423601,PeopleScout Limited,381.66,04/01/2024
Delivery Units,Customer and Place,Subscriptions,1032537502,Planning Jungle Limited,300.00,10/01/2024
Delivery Units,Customer and Place,Professional Services,1032683401,WSP UK LIMITED,307.30,16/01/2024
Delivery Units,Customer and Place,Professional Services,1032683701,PeopleScout Limited,305.73,16/01/2024
Delivery Units,Customer and Place,Professional Services,1032891001,PeopleScout Limited,849.86,23/01/2024
Delivery Units,Customer and Place,Professional Services,1032928701,PeopleScout Limited,324.71,24/01/2024
Delivery Units,Customer and Place,Professional Services,1033148201,Banner Group Limited,59.00,31/01/2024
Delivery Units,Customer and Place,Subscriptions,1033159601,Greenspace Information for Greater Londo,"1,750.00",31/01/2024
Delivery Units,Customer and Place,Professional Services,1033159901,PeopleScout Limited,588.65,31/01/2024
Delivery Units,Customer and Place,Legal and Court Fees,1032805602,THE PLANNING INSPECTORATE,"11,568.45",19/01/2024
Delivery Units,Customer and Place,Professional Services,1032806202,THE PLANNING INSPECTORATE,"14,944.65",19/01/2024
Delivery Units,Customer and Place,Professional Services,1032848701,URBAN DESIGN LONDON,"4,500.00",22/01/2024
Delivery Units,Customer and Place,Professional Services,1032676101,CAPITA BUSINESS SERVICES LTD,"6,620.97",16/01/2024
Delivery Units,Customer and Place,Professional Services,1033161901,CAPITA BUSINESS SERVICES LTD,"6,660.75",31/01/2024
Delivery Units,Childrens Service DSG,Education CFR Funding Advances,0050076415,DANEGROVE PRIMARY SCHOOL,"239,866.99",22/01/2024
Delivery Units,Childrens Service DSG,Education CFR Funding Advances,0050076611,DANEGROVE PRIMARY SCHOOL,"34,644.51",22/01/2024
Delivery Units,Childrens Service DSG,Education CFR Funding Advances,0050076960,DANEGROVE PRIMARY SCHOOL,"7,322.50",22/01/2024
Delivery Units,Childrens Service DSG,Education CFR Funding Advances,0050076998,DANEGROVE PRIMARY SCHOOL,"3,425.63",22/01/2024
Delivery Units,Childrens Service DSG,Other Establishments - Third P,0050076591,Alma Primary,"20,412.00",22/01/2024
Delivery Units,Childrens Service DSG,Other Establishments - Third P,0050076593,Ashmole Primary School,"29,364.12",22/01/2024
Delivery Units,Childrens Service DSG,Other Establishments - Third P,0050076599,BROADFIELDS ACADEMY,"31,424.76",22/01/2024
Delivery Units,Childrens Service DSG,Other Establishments - Third P,0050076606,Claremont Primary School Academy,"10,303.20",22/01/2024
Delivery Units,Childrens Service DSG,Other Establishments - Third P,0050076615,ETZ CHAIM JEWISH PRIMARY SCHOO,"16,632.00",22/01/2024
Delivery Units,Childrens Service DSG,Other Establishments - Third P,0050076625,INDEPENDENT JEWISH DAY SCHOOL,"21,735.00",22/01/2024
Delivery Units,Childrens Service DSG,Other Establishments - Third P,0050076634,Millbrook Park Primary School,"21,379.14",22/01/2024
Delivery Units,Childrens Service DSG,Other Establishments - Third P,0050076644,PARKFIELD ACADEMY,"17,644.23",22/01/2024
Delivery Units,Childrens Service DSG,Other Establishments - Third P,0050076646,Rimon Jewish Primary School,"20,601.00",22/01/2024
Delivery Units,Childrens Service DSG,Other Establishments - Third P,0050076648,Sacks Morasha Jewish Primary,"22,113.00",22/01/2024
Delivery Units,Childrens Service DSG,Other Establishments - Third P,0050076664,Summerside Primary Academy,"19,318.50",22/01/2024
Delivery Units,Childrens Service DSG,Other Establishments - Third P,0050076666,THE HYDE EF ACADEMY,"22,795.83",22/01/2024
Delivery Units,Childrens Service DSG,Other Establishments - Third P,0050076671,Watling Park School,"12,363.84",22/01/2024
Delivery Units,Childrens Service DSG,Other Establishments - Third P,0050076626,KISHARON DAY SCHOOL,"2,835.00",22/01/2024
Delivery Units,Customer and Place,Building Repairs & Maintenance,1028214803,LEE SECURITY LONDON LIMITED,109.20,24/01/2024
Delivery Units,Customer and Place,Building Repairs & Maintenance,1029975303,S W Bruce & Co Ltd,975.00,25/01/2024
Delivery Units,Customer and Place,Building Repairs & Maintenance,1031163803,Elite Entrance Systems Ltd,210.00,22/01/2024
Delivery Units,Customer and Place,Building Repairs & Maintenance,1031164303,Elite Entrance Systems Ltd,"15,300.00",22/01/2024
Delivery Units,Customer and Place,Building Repairs & Maintenance,1031609002,PRECISION LIFT SERVICES LTD,"1,542.36",09/01/2024
Delivery Units,Customer and Place,Building Repairs & Maintenance,1032453703,Integrated Water Services Ltd,"6,983.78",09/01/2024
Delivery Units,Customer and Place,Building Repairs & Maintenance,1032455002,RGE SERVICES,"3,833.91",24/01/2024
Delivery Units,Customer and Place,Building Repairs & Maintenance,1032615101,Riverside Environmental Services LTD,"1,724.00",12/01/2024
Delivery Units,Customer and Place,Building Repairs & Maintenance,1032617702,Orion Building Engineering Services Ltd,"2,390.75",24/01/2024
Delivery Units,Customer and Place,Building Repairs & Maintenance,1032648102,PRECISION LIFT SERVICES LTD,"1,505.88",24/01/2024
Delivery Units,Customer and Place,Building Repairs & Maintenance,1032813302,RGE SERVICES,"1,028.82",24/01/2024
Delivery Units,Customer and Place,Building Repairs & Maintenance,1032819302,PRECISION LIFT SERVICES LTD,708.30,24/01/2024
Delivery Units,Childrens Family Services,Professional Services,1032978002,BARNET EDUCATION AND LEARNING,"13,039.00",26/01/2024
Delivery Units,Childrens Service DSG,Other Establishments - Third P,1032364402,WHITTINGTON HOSPITAL NHS TRUST,"11,938.00",04/01/2024
Delivery Units,Childrens Family Services,Stationery,1032804902,ATLANTIS OFFICE LIMITED,157.95,23/01/2024
Delivery Units,Childrens Family Services,Other Agencies - Third Party P,1032804302,C A C I LTD,"24,962.00",22/01/2024
Delivery Units,Childrens Service DSG,Other Services,0050076265,Smart Learning Nursery,"1,315.00",18/01/2024
Delivery Units,Childrens Service DSG,Other Services,0050076270,GREENWICH LEISURE LTD,986.00,18/01/2024
Delivery Units,Childrens Service DSG,Other Services,0050076282,CHILDBASE LTD,"1,315.00",18/01/2024
Delivery Units,Childrens Service DSG,Other Services,0050076288,Learn & Play Childcare Ltd,"2,629.00",18/01/2024
Delivery Units,Childrens Service DSG,Other Services,0050076292,Learn & Play Childcare Ltd,"1,315.00",18/01/2024
Delivery Units,Childrens Service DSG,Other Services,0050076317,GREENWICH LEISURE LTD,"1,315.00",18/01/2024
Delivery Units,Childrens Service DSG,Other Services,0050076319,Bright Horizons East Barnet,"1,577.00",18/01/2024
Delivery Units,Childrens Service DSG,Other Services,0050076354,GREENWICH LEISURE LTD,"1,972.00",18/01/2024
Delivery Units,Childrens Service DSG,Other Services,0050076271,Stay and Play Childcare Ltd,"2,629.00",18/01/2024
Delivery Units,Childrens Service DSG,Other Services,0050076295,Stay and Play Childcare Ltd,"1,971.00",18/01/2024
Delivery Units,Childrens Service DSG,Other Services,0050076304,Stay and Play Childcare Ltd,"1,315.00",18/01/2024
Delivery Units,Childrens Service DSG,Other Services,0050076308,Stay and Play Childcare Ltd,"1,315.00",18/01/2024
Delivery Units,Childrens Service DSG,Other Services,0050076259,The Learning Experience East Finchley,"1,183.00",18/01/2024
Delivery Units,Childrens Service DSG,Other Services,0050076260,ST PHILLIPS PRE-SCHOOL,"1,577.00",18/01/2024
Delivery Units,Childrens Service DSG,Other Services,0050076261,Tinky's Day Nursery,"1,971.00",18/01/2024
Delivery Units,Childrens Service DSG,Other Services,0050076262,ABRACADABRA PRE-SCHOOL NURSERY,"1,315.00",18/01/2024
Delivery Units,Childrens Service DSG,Other Services,0050076263,SPARKLER'S  NURSERY,"1,315.00",18/01/2024
Delivery Units,Childrens Service DSG,Other Services,0050076264,Cherry Blossoms Childcare Ltd,"1,315.00",18/01/2024
Delivery Units,Childrens Service DSG,Other Services,0050076266,The Finchley Day Nursery,"1,315.00",18/01/2024
Delivery Units,Childrens Service DSG,Other Services,0050076267,SPARKLER'S  NURSERY,"1,315.00",18/01/2024
Delivery Units,Childrens Service DSG,Other Services,0050076268,SPARKLER'S  NURSERY,"1,315.00",18/01/2024
Delivery Units,Childrens Service DSG,Other Services,0050076269,Alyth Kindergarten,"1,315.00",18/01/2024
Delivery Units,Childrens Service DSG,Other Services,0050076272,Mara Childrens Nursery and Wor,"1,971.00",18/01/2024
Delivery Units,Childrens Service DSG,Other Services,0050076273,Happy Journeys Day Nursery,"1,577.00",18/01/2024
Delivery Units,Childrens Service DSG,Other Services,0050076275,Little Fellows Day Nursery,"2,629.00",18/01/2024
Delivery Units,Childrens Service DSG,Other Services,0050076276,BELFIELD MONTESSORI,"1,315.00",18/01/2024
Delivery Units,Childrens Service DSG,Other Services,0050076277,Cherry Blossoms Childcare Ltd,"1,315.00",18/01/2024
Delivery Units,Childrens Service DSG,Other Services,0050076279,Kana Nurseries Ltd,"1,183.00",18/01/2024
Delivery Units,Childrens Service DSG,Other Services,0050076280,PLAYTIME PRE-SCHOOL,"1,315.00",18/01/2024
Delivery Units,Childrens Service DSG,Other Services,0050076281,SPARKLER'S  NURSERY,"1,315.00",18/01/2024
Delivery Units,Childrens Service DSG,Other Services,0050076283,Abracadabra Preschool Nursery,"1,315.00",18/01/2024
Delivery Units,Childrens Service DSG,Other Services,0050076284,The Playhouse Nursery,"1,971.00",18/01/2024
Delivery Units,Childrens Service DSG,Other Services,0050076285,KIDZ KABIN PEMBROKE STUDIOS LTD,"1,315.00",18/01/2024
Delivery Units,Childrens Service DSG,Other Services,0050076286,PLAY AND LEARN DAY NURSERY,"1,315.00",18/01/2024
Delivery Units,Childrens Service DSG,Other Services,0050076289,KIDZ KABIN PEMBROKE STUDIOS LTD,"1,315.00",18/01/2024
Delivery Units,Childrens Service DSG,Other Services,0050076290,THE LITTLE LEARNERS MONTESSORI LTD,"1,315.00",18/01/2024
Delivery Units,Childrens Service DSG,Other Services,0050076291,THE LITTLE LEARNERS MONTESSORI LTD,"1,577.00",18/01/2024
Delivery Units,Childrens Service DSG,Other Services,0050076293,OAKHILL COMMUNITY NURSERY,"1,971.00",18/01/2024
Delivery Units,Childrens Service DSG,Other Services,0050076294,PLAY AND LEARN DAY NURSERY,"1,577.00",18/01/2024
Delivery Units,Childrens Service DSG,Other Services,0050076296,Abracadabra Preschool Nursery,"1,972.00",18/01/2024
Delivery Units,Childrens Service DSG,Other Services,0050076297,ABI'S Childcare Ltd,"1,971.00",18/01/2024
Delivery Units,Childrens Service DSG,Other Services,0050076298,Kana Nurseries Ltd,"1,315.00",18/01/2024
Delivery Units,Childrens Service DSG,Other Services,0050076299,Happy Journeys Day Nursery,"2,629.00",18/01/2024
Delivery Units,Childrens Service DSG,Other Services,0050076300,STEP BY STEP MONTESSORI,"1,315.00",18/01/2024
Delivery Units,Childrens Service DSG,Other Services,0050076301,The Playhouse Nursery,"1,315.00",18/01/2024
Delivery Units,Childrens Service DSG,Other Services,0050076302,Aplomb Day Nursery,"1,183.00",18/01/2024
Delivery Units,Childrens Service DSG,Other Services,0050076303,Happy Journeys Day Nursery,"1,315.00",18/01/2024
Delivery Units,Childrens Service DSG,Other Services,0050076305,The Finchley Day Nursery,"2,629.00",18/01/2024
Delivery Units,Childrens Service DSG,Other Services,0050076306,Little Lamps Nursery Ltd,"1,315.00",18/01/2024
Delivery Units,Childrens Service DSG,Other Services,0050076307,Unity Montessori Nursery,"1,315.00",18/01/2024
Delivery Units,Childrens Service DSG,Other Services,0050076309,PLAY AND LEARN DAY NURSERY,"1,052.00",18/01/2024
Delivery Units,Childrens Service DSG,Other Services,0050076310,OAKHILL COMMUNITY NURSERY,"1,577.00",18/01/2024
Delivery Units,Childrens Service DSG,Other Services,0050076311,PLAYFIELD NURSERY,"1,315.00",18/01/2024
Delivery Units,Childrens Service DSG,Other Services,0050076312,Aplomb Day Nursery,"1,315.00",18/01/2024
Delivery Units,Childrens Service DSG,Other Services,0050076313,PLAY AND LEARN DAY NURSERY,"1,315.00",18/01/2024
Delivery Units,Childrens Service DSG,Other Services,0050076315,Belmont Farm Nursery School,"1,315.00",18/01/2024
Delivery Units,Childrens Service DSG,Other Services,0050076316,WEST HENDON PRE-SCHOOL,"1,315.00",18/01/2024
Delivery Units,Childrens Service DSG,Other Services,0050076318,ST ANDREWS PRE-SCHOOL,"1,315.00",18/01/2024
Delivery Units,Childrens Service DSG,Other Services,0050076320,ABRACADABRA PRE-SCHOOL NURSERY,"1,972.00",18/01/2024
Delivery Units,Childrens Service DSG,Other Services,0050076321,ST ANDREWS PRE-SCHOOL,"1,577.00",18/01/2024
Delivery Units,Childrens Service DSG,Other Services,0050076322,GOLDERS GREEN DAY NUR( ASQUITH,"1,315.00",18/01/2024
Delivery Units,Childrens Service DSG,Other Services,0050076323,FOUNTAIN MONTESSORI PRE-SCHOOL,"1,315.00",18/01/2024
Delivery Units,Childrens Service DSG,Other Services,0050076324,Busy Bees Nurseries Ltd,"1,972.00",18/01/2024
Delivery Units,Childrens Service DSG,Other Services,0050076325,LUBAVITCH OF EDGWARE,"1,052.00",18/01/2024
Delivery Units,Childrens Service DSG,Other Services,0050076327,Little Bicks 2 Nursery,"1,315.00",18/01/2024
Delivery Units,Childrens Service DSG,Other Services,0050076328,ST ANDREWS PRE-SCHOOL,"1,315.00",18/01/2024
Delivery Units,Childrens Service DSG,Other Services,0050076329,SPARKLER'S  NURSERY,"1,315.00",18/01/2024
Delivery Units,Childrens Service DSG,Other Services,0050076330,SPARKLER'S  NURSERY,"1,972.00",18/01/2024
Delivery Units,Childrens Service DSG,Other Services,0050076331,Tinky's Day Nursery,"1,972.00",18/01/2024
Delivery Units,Childrens Service DSG,Other Services,0050076332,GOLDERS GREEN DAY NUR( ASQUITH,985.00,18/01/2024
Delivery Units,Childrens Service DSG,Other Services,0050076334,Twinkle Stars Montessori Nursery,"1,315.00",18/01/2024
Delivery Units,Childrens Service DSG,Other Services,0050076335,Mara Childrens Nursery and Wor,986.00,18/01/2024
Delivery Units,Childrens Service DSG,Other Services,0050076336,ST PHILLIPS PRE-SCHOOL,"1,315.00",18/01/2024
Delivery Units,Childrens Service DSG,Other Services,0050076337,HENDON DAY NURSERY (ASQUITH),"2,629.00",18/01/2024
Delivery Units,Childrens Service DSG,Other Services,0050076338,FINCHLEY REFORM SYNAGOGUE,986.00,18/01/2024
Delivery Units,Childrens Service DSG,Other Services,0050076339,LITTLE PEBBLES LIMITED,"1,052.00",18/01/2024
Delivery Units,Childrens Service DSG,Other Services,0050076341,Abracadabra Preschool Nursery,986.00,18/01/2024
Delivery Units,Childrens Service DSG,Other Services,0050076342,Kana Nurseries Ltd,"1,315.00",18/01/2024
Delivery Units,Childrens Service DSG,Other Services,0050076344,Busy Bees Nurseries Ltd,"1,643.00",18/01/2024
Delivery Units,Childrens Service DSG,Other Services,0050076345,Aplomb Day Nursery,"1,315.00",18/01/2024
Delivery Units,Childrens Service DSG,Other Services,0050076346,SPARKLER'S  NURSERY,"1,315.00",18/01/2024
Delivery Units,Childrens Service DSG,Other Services,0050076347,ST PHILLIPS PRE-SCHOOL,"1,315.00",18/01/2024
Delivery Units,Childrens Service DSG,Other Services,0050076348,Busy Bees Nurseries Ltd,"1,315.00",18/01/2024
Delivery Units,Childrens Service DSG,Other Services,0050076349,JOEL DAY NURSERY,985.00,18/01/2024
Delivery Units,Childrens Service DSG,Other Services,0050076350,GAN ALON PRE SCHOOL,"1,315.00",18/01/2024
Delivery Units,Childrens Service DSG,Other Services,0050076351,GAN KINNERET NURSERY,"1,315.00",18/01/2024
Delivery Units,Childrens Service DSG,Other Services,0050076352,Bright Horizons Whetstone,"1,972.00",18/01/2024
Delivery Units,Childrens Service DSG,Other Services,0050076353,Abracadabra Preschool Nursery,"1,315.00",18/01/2024
Delivery Units,Childrens Service DSG,Other Services,0050076355,JACK & JILL PLAYGROUP,"1,315.00",18/01/2024
Delivery Units,Childrens Service DSG,Other Services,0050076356,MONKEY PUZZLE DAY NURSERY,"2,629.00",18/01/2024
Delivery Units,Childrens Service DSG,Other Services,0050076357,FOUNTAIN MONTESSORI PRE-SCHOOL,986.00,18/01/2024
Delivery Units,Childrens Service DSG,Other Services,0050076358,Aplomb Day Nursery,"1,052.00",18/01/2024
Delivery Units,Childrens Service DSG,Other Services,0050076359,THE KINDERGARTEN NURSERY,"1,315.00",18/01/2024
Delivery Units,Childrens Service DSG,Other Services,0050076360,TUFFKIDS NURSERY,"1,577.00",18/01/2024
Delivery Units,Childrens Service DSG,Other Services,0050076361,JOEL DAY NURSERY,986.00,18/01/2024
Delivery Units,Childrens Service DSG,Other Services,0050076362,GAN MENACHEM,"1,315.00",18/01/2024
Delivery Units,Childrens Service DSG,Other Services,0050076363,PLAYFIELD NURSERY,"1,643.00",18/01/2024
Delivery Units,Childrens Service DSG,Other Services,0050076365,Happy Journeys Day Nursery,657.00,18/01/2024
Delivery Units,Childrens Service DSG,Other Services,0050076366,Belmont Farm Nursery School,986.00,18/01/2024
Delivery Units,Childrens Service DSG,Other Services,0050076367,Bright Little Stars Nursery Ba,"1,315.00",18/01/2024
Delivery Units,Childrens Service DSG,Other Services,0050076368,Abracadabra Preschool Nursery,"1,315.00",18/01/2024
Delivery Units,Childrens Service DSG,Other Services,0050076370,ST ANDREWS PRE-SCHOOL,"1,315.00",18/01/2024
Delivery Units,Childrens Service DSG,Other Services,0050076371,Mara Childrens Nursery and Wor,"1,315.00",18/01/2024
Delivery Units,Childrens Service DSG,Other Services,0050076372,JOEL DAY NURSERY,"2,629.00",18/01/2024
Delivery Units,Childrens Service DSG,Other Services,0050076373,CUPCAKES NURSERIES LTD,"2,629.00",18/01/2024
Delivery Units,Childrens Service DSG,Other Services,0050076374,NANCY REUBEN PRIMARY SCHOOL,"1,195.00",18/01/2024
Delivery Units,Childrens Service DSG,Other Establishments - Third P,0050076743,PARKFIELD ACADEMY,"1,972.26",22/01/2024
Delivery Units,Childrens Service DSG,Other Establishments - Third P,0050076749,THE HYDE EF ACADEMY,"1,824.69",22/01/2024
Delivery Units,Childrens Service DSG,Other Establishments - Third P,0050076809,BROADFIELDS ACADEMY,"4,205.57",22/01/2024
Delivery Units,Childrens Service DSG,Other Establishments - Third P,0050076874,Summerside Primary Academy,487.60,22/01/2024
Delivery Units,Childrens Service DSG,Other Services,0050077049,Claremont Community Pre-School,"1,314.00",25/01/2024
Delivery Units,Childrens Service DSG,Other Services,0050077050,CUPCAKES NURSERIES LTD,914.00,25/01/2024
Delivery Units,Childrens Service DSG,Other Services,0050077051,Claremont Community Pre-School,"1,315.00",25/01/2024
Delivery Units,Childrens Service DSG,Other Services,0050077052,Little Leaders Pre-School,"1,315.00",25/01/2024
Delivery Units,Childrens Service DSG,Other Services,0050077053,ABRACADABRA PRE-SCHOOL NURSERY,"1,793.00",25/01/2024
Delivery Units,Childrens Service DSG,Other Services,0050077054,MIDDLESEX UNIVERSITY NURSERY,"1,315.00",25/01/2024
Delivery Units,Childrens Service DSG,Other Services,0080073016,LUBAVITCH OF EDGWARE,"1,793.00",09/01/2024
Delivery Units,Childrens Service DSG,Other Services,0050076274,Apple Day Nursery,986.00,18/01/2024
Delivery Units,Childrens Service DSG,Other Services,0050076278,Apple Day Nursery,986.00,18/01/2024
Delivery Units,Childrens Service DSG,Other Services,0050076314,Shofar Daycare Nursery,"1,315.00",18/01/2024
Delivery Units,Childrens Service DSG,Other Services,0050076326,Apple Day Nursery,"1,183.00",18/01/2024
Delivery Units,Childrens Service DSG,Other Services,0050076364,Kidz Choice Nursery,986.00,18/01/2024
Delivery Units,Childrens Service DSG,Other Services,0050076369,Kidz Choice Nursery,"1,972.00",18/01/2024
Delivery Units,Childrens Service DSG,Education CFR Funding Advances,0020068712,BEIS SOROH SCHNEIRER,"55,504.80",24/01/2024
Delivery Units,Childrens Service DSG,Education CFR Funding Advances,0020068716,BROADFIELDS ACADEMY,"25,831.08",24/01/2024
Delivery Units,Childrens Service DSG,Education CFR Funding Advances,0020068724,BEIS CHINUCH PRIMARY SCHOOL,"40,703.52",24/01/2024
Delivery Units,Childrens Service DSG,Education CFR Funding Advances,0020068727,Finchley Yochien,"4,696.56",24/01/2024
Delivery Units,Childrens Service DSG,Education CFR Funding Advances,0020068734,INDEPENDENT JEWISH DAY SCHOOL,"16,829.34",24/01/2024
Delivery Units,Childrens Service DSG,Education CFR Funding Advances,0020068736,The Mill Hill Foundation,"7,827.60",24/01/2024
Delivery Units,Childrens Service DSG,Education CFR Funding Advances,0020068742,Millbrook Park Primary School,"20,743.14",24/01/2024
Delivery Units,Childrens Service DSG,Education CFR Funding Advances,0020068744,NANCY REUBEN PRIMARY SCHOOL,"28,677.48",24/01/2024
Delivery Units,Childrens Service DSG,Education CFR Funding Advances,0020068747,PARKFIELD ACADEMY,"32,875.92",24/01/2024
Delivery Units,Childrens Service DSG,Education CFR Funding Advances,0020068748,Peninim Primary School,"28,570.74",24/01/2024
Delivery Units,Childrens Service DSG,Education CFR Funding Advances,0020068752,St Anthony's School for Girls,"10,175.88",24/01/2024
Delivery Units,Childrens Service DSG,Education CFR Funding Advances,0020068757,ST MARTIN'S SCHOOL,"6,724.62",24/01/2024
Delivery Units,Childrens Service DSG,Education CFR Funding Advances,0020068760,Summerside Primary Academy,"12,132.78",24/01/2024
Delivery Units,Childrens Service DSG,Education CFR Funding Advances,0020068762,THE HYDE EF ACADEMY,"27,503.34",24/01/2024
Delivery Units,Childrens Service DSG,Private Contractors - Third Pa,0080073060,Claremont Community Pre-School,874.10,02/01/2024
Delivery Units,Childrens Family Services,Building Repairs & Maintenance,1005204403,P.I.P. Lift Service Limited,318.52,26/01/2024
Delivery Units,Childrens Family Services,Equipment and Materials Purcha,1032475202,Croft Communications Limited,34.75,09/01/2024
Delivery Units,Childrens Family Services,Other Services,1032475901,LEE SECURITY LONDON LIMITED,77.00,08/01/2024
Delivery Units,Childrens Family Services,Equipment and Materials Purcha,1032987401,Croft Communications Limited,59.03,25/01/2024
Delivery Units,Childrens Family Services,Cleaning and domestic material,1032989301,G.B.HOLDINGS LTD,74.60,25/01/2024
Delivery Units,Childrens Family Services,Cleaning and domestic material,1032617601,Norse Commercial Services Ltd,704.36,12/01/2024
Delivery Units,Childrens Family Services,Equipment and Materials Purcha,1032647402,Norse Commercial Services Ltd,64.25,15/01/2024
Delivery Units,Childrens Family Services,Equipment and Materials Purcha,1032739501,INNOVATIVE LEISURE LTD,"1,569.84",17/01/2024
Delivery Units,Childrens Family Services,Cleaning and domestic material,1033069602,We Are Grow,208.33,29/01/2024
Delivery Units,Childrens Family Services,Gas,1032644901,KENT COUNTY COUNCIL (KCS),831.47,16/01/2024
Delivery Units,Childrens Family Services,Gas,1032982101,KENT COUNTY COUNCIL (KCS),986.42,25/01/2024
Delivery Units,Childrens Family Services,Equipment and Materials Purcha,1032645901,Norse Commercial Services Ltd,61.58,15/01/2024
Delivery Units,Childrens Family Services,Cleaning and domestic material,1032647302,Norse Commercial Services Ltd,528.42,15/01/2024
Delivery Units,Childrens Family Services,Electricity,1032646302,KENT COUNTY COUNCIL (KCS),689.78,16/01/2024
Delivery Units,Childrens Family Services,Gas,1032684101,KENT COUNTY COUNCIL (KCS),"1,069.60",16/01/2024
Delivery Units,Childrens Family Services,Gas,1032982401,KENT COUNTY COUNCIL (KCS),"1,328.76",25/01/2024
Delivery Units,Childrens Family Services,Professional Services,1032618201,Cohort Security Solutions,106.00,12/01/2024
Delivery Units,Childrens Family Services,Other Agencies - Third Party P,1032618502,SOUTHGATE COACHES LTD,640.00,12/01/2024
Delivery Units,Childrens Family Services,Contract Cleaning,1033023101,Norse Commercial Services Ltd,876.27,29/01/2024
Delivery Units,Childrens Family Services,Equipment and Materials Purcha,1033023701,G.B.HOLDINGS LTD,57.05,29/01/2024
Delivery Units,Childrens Family Services,Other Energy,1032648502,KENT COUNTY COUNCIL (KCS),180.75,16/01/2024
Delivery Units,Childrens Family Services,Other Energy,1033031702,KENT COUNTY COUNCIL (KCS),234.00,26/01/2024
Delivery Units,Childrens Family Services,Electricity,0080073756,EDF ENERGY CUSTOMERS PLC,537.33,25/01/2024
Delivery Units,Childrens Family Services,Other Services,1032855101,Enigma CCTV Ltd,"4,915.25",22/01/2024
Delivery Units,Childrens Family Services,Other Services,1032855201,BLUE 9 SECURITY LIMITED,"1,840.02",22/01/2024
Delivery Units,Childrens Family Services,Other Services,1032855301,BLUE 9 SECURITY LIMITED,404.40,22/01/2024
Delivery Units,Childrens Family Services,Other Services,1032855401,BLUE 9 SECURITY LIMITED,"1,983.90",22/01/2024
Delivery Units,Childrens Family Services,Other Services,1032855701,1ST CONTAINERS UK LIMITED,31.00,22/01/2024
Delivery Units,Childrens Family Services,Other Services,1032855901,BLUE 9 SECURITY LIMITED,"2,264.64",22/01/2024
Delivery Units,Childrens Family Services,Other Services,1032856001,BLUE 9 SECURITY LIMITED,"2,102.88",22/01/2024
Delivery Units,Childrens Family Services,Other Services,1032856801,BLUE 9 SECURITY LIMITED,"1,860.24",22/01/2024
Delivery Units,Childrens Family Services,Other Services,1032857701,BLUE 9 SECURITY LIMITED,101.10,22/01/2024
Delivery Units,Childrens Family Services,Cleaning and domestic material,1032581601,Herts FullStop,26.84,11/01/2024
Delivery Units,Childrens Family Services,Books-CDs-Audio-Video,0021007632,DX NETWORK SERVICES LTD,10.26,04/01/2024
Delivery Units,Childrens Family Services,Books-CDs-Audio-Video,0021007633,OCLC (UK) LIMITED,"2,790.00",04/01/2024
Delivery Units,Childrens Family Services,Books-CDs-Audio-Video,0021007636,Mill Hill Newsagents Ltd,135.40,05/01/2024
Delivery Units,Childrens Family Services,Books-CDs-Audio-Video,0021007638,NewsTeam Group LTD,237.50,05/01/2024
Delivery Units,Childrens Family Services,Books-CDs-Audio-Video,0021007639,Singh Convenience Store Ltd,421.40,05/01/2024
Delivery Units,Childrens Family Services,Books-CDs-Audio-Video,0021007640,Singh Convenience Store Ltd,404.50,05/01/2024
Delivery Units,Childrens Family Services,Books-CDs-Audio-Video,0021007652,ASKEWS & HOLTS LIBRARY SERVICES LTD,14.64,09/01/2024
Delivery Units,Childrens Family Services,Books-CDs-Audio-Video,0021007654,ASKEWS & HOLTS LIBRARY SERVICES LTD,6.03,09/01/2024
Delivery Units,Childrens Family Services,Books-CDs-Audio-Video,0021007683,ASKEWS & HOLTS LIBRARY SERVICES LTD,22.83,10/01/2024
Delivery Units,Childrens Family Services,Books-CDs-Audio-Video,0021007698,ASKEWS & HOLTS LIBRARY SERVICES LTD,14.59,10/01/2024
Delivery Units,Childrens Family Services,Books-CDs-Audio-Video,0021007700,ASKEWS & HOLTS LIBRARY SERVICES LTD,5.94,10/01/2024
Delivery Units,Childrens Family Services,Books-CDs-Audio-Video,0021007710,ASKEWS & HOLTS LIBRARY SERVICES LTD,292.84,10/01/2024
Delivery Units,Childrens Family Services,Books-CDs-Audio-Video,0021007712,DX NETWORK SERVICES LTD,10.49,12/01/2024
Delivery Units,Childrens Family Services,Books-CDs-Audio-Video,0021007713,HANXIN LIMITED,103.84,12/01/2024
Delivery Units,Childrens Family Services,Books-CDs-Audio-Video,0021007714,ASKEWS & HOLTS LIBRARY SERVICES LTD,636.06,15/01/2024
Delivery Units,Childrens Family Services,Books-CDs-Audio-Video,0021007731,ASKEWS & HOLTS LIBRARY SERVICES LTD,16.80,18/01/2024
Delivery Units,Childrens Family Services,Books-CDs-Audio-Video,0021007736,ASKEWS & HOLTS LIBRARY SERVICES LTD,19.84,18/01/2024
Delivery Units,Childrens Family Services,Books-CDs-Audio-Video,0021007745,ASKEWS & HOLTS LIBRARY SERVICES LTD,4.88,18/01/2024
Delivery Units,Childrens Family Services,Books-CDs-Audio-Video,0021007746,ASKEWS & HOLTS LIBRARY SERVICES LTD,4.88,18/01/2024
Delivery Units,Childrens Family Services,Books-CDs-Audio-Video,0021007748,Malhotra News Agent Ltd,284.40,19/01/2024
Delivery Units,Childrens Family Services,Books-CDs-Audio-Video,0021007755,ULVERSCROFT LGE PRINT BOOKS LTD,"4,109.92",25/01/2024
Delivery Units,Childrens Family Services,Books-CDs-Audio-Video,0021007756,ULVERSCROFT LGE PRINT BOOKS LTD,"3,992.26",25/01/2024
Delivery Units,Childrens Family Services,Books-CDs-Audio-Video,0021007759,ASKEWS & HOLTS LIBRARY SERVICES LTD,5.46,25/01/2024
Delivery Units,Childrens Family Services,Books-CDs-Audio-Video,0021007766,ASKEWS & HOLTS LIBRARY SERVICES LTD,5.43,25/01/2024
Delivery Units,Childrens Family Services,Books-CDs-Audio-Video,0021007770,ASKEWS & HOLTS LIBRARY SERVICES LTD,7.98,25/01/2024
Delivery Units,Childrens Family Services,Books-CDs-Audio-Video,0021007772,ASKEWS & HOLTS LIBRARY SERVICES LTD,26.59,25/01/2024
Delivery Units,Childrens Family Services,Books-CDs-Audio-Video,0021007774,ASKEWS & HOLTS LIBRARY SERVICES LTD,19.84,25/01/2024
Delivery Units,Childrens Family Services,Books-CDs-Audio-Video,0021007776,ASKEWS & HOLTS LIBRARY SERVICES LTD,19.84,25/01/2024
Delivery Units,Childrens Family Services,Stationery,1013024701,THE READING AGENCY FOR LIBRARIES,145.00,18/01/2024
Delivery Units,Childrens Family Services,Books-CDs-Audio-Video,0021007637,CONFAGS,284.30,05/01/2024
Delivery Units,Childrens Family Services,Cleaning and domestic material,1032012102,Herts FullStop,83.32,08/01/2024
Delivery Units,Childrens Family Services,Electricity,1032645501,KENT COUNTY COUNCIL (KCS),-645.28,16/01/2024
Delivery Units,Childrens Family Services,Cleaning and domestic material,1032419201,Norse Commercial Services Ltd,"2,338.11",04/01/2024
Delivery Units,Childrens Family Services,Cleaning and domestic material,1032477301,Norse Commercial Services Ltd,77.50,08/01/2024
Delivery Units,Childrens Family Services,Cleaning and domestic material,1032477601,Norse Commercial Services Ltd,77.50,08/01/2024
Delivery Units,Childrens Family Services,Laundry and Dry Cleaning,1032536301,PHS GROUP LTD,301.75,10/01/2024
Delivery Units,Childrens Family Services,Other Services,1032736301,Norse Commercial Services Ltd,34.83,17/01/2024
Delivery Units,Childrens Family Services,Cleaning and domestic material,1032811501,Norse Commercial Services Ltd,"2,338.11",19/01/2024
Delivery Units,Childrens Family Services,Other Services,1032616501,Norse Commercial Services Ltd,67.33,12/01/2024
Delivery Units,Childrens Family Services,Cleaning and domestic material,1032853701,Norse Commercial Services Ltd,"2,648.54",22/01/2024
Delivery Units,Childrens Family Services,Electricity,1032644301,KENT COUNTY COUNCIL (KCS),-818.18,16/01/2024
Delivery Units,Childrens Family Services,Other Services,1032613201,Norse Commercial Services Ltd,17.00,12/01/2024
Delivery Units,Childrens Family Services,Cleaning and domestic material,1032852201,Norse Commercial Services Ltd,528.42,22/01/2024
Delivery Units,Childrens Family Services,Cleaning and domestic material,1032477401,Norse Commercial Services Ltd,51.00,08/01/2024
Delivery Units,Childrens Family Services,Laundry and Dry Cleaning,1032532201,PHS GROUP LTD,148.80,10/01/2024
Delivery Units,Childrens Family Services,Other Services,1032613101,Norse Commercial Services Ltd,29.58,12/01/2024
Delivery Units,Childrens Family Services,Cleaning and domestic material,1032613701,Norse Commercial Services Ltd,"1,165.84",12/01/2024
Delivery Units,Childrens Family Services,Cleaning and domestic material,1032010501,Herts FullStop,25.72,08/01/2024
Delivery Units,Childrens Family Services,Cleaning and domestic material,1032614101,Norse Commercial Services Ltd,527.87,12/01/2024
Delivery Units,Childrens Family Services,Other Services,1032615401,Norse Commercial Services Ltd,17.00,12/01/2024
Delivery Units,Childrens Family Services,Cleaning and domestic material,1032615001,Norse Commercial Services Ltd,705.28,12/01/2024
Delivery Units,Childrens Family Services,Other Services,1032739201,Norse Commercial Services Ltd,30.42,17/01/2024
Delivery Units,Childrens Family Services,Other Services,1032614201,Norse Commercial Services Ltd,21.25,12/01/2024
Delivery Units,Childrens Family Services,Cleaning and domestic material,1032853501,Norse Commercial Services Ltd,528.42,22/01/2024
Delivery Units,Childrens Family Services,Other Services,1032544401,Norse Commercial Services Ltd,25.92,10/01/2024
Delivery Units,Childrens Family Services,Cleaning and domestic material,1032574501,Norse Commercial Services Ltd,703.90,11/01/2024
Delivery Units,Childrens Family Services,Electricity,1032132101,KENT COUNTY COUNCIL (KCS),"2,017.81",03/01/2024
Delivery Units,Childrens Family Services,Books-CDs-Audio-Video,1033153401,ASKEWS & HOLTS LIBRARY SERVICES LTD,108.20,31/01/2024
Delivery Units,Childrens Family Services,Books-CDs-Audio-Video,1033153601,ASKEWS & HOLTS LIBRARY SERVICES LTD,"1,018.83",31/01/2024
Delivery Units,Childrens Family Services,Books-CDs-Audio-Video,1033155001,ASKEWS & HOLTS LIBRARY SERVICES LTD,277.40,31/01/2024
Delivery Units,Childrens Family Services,Books-CDs-Audio-Video,1033155101,ASKEWS & HOLTS LIBRARY SERVICES LTD,259.83,31/01/2024
Delivery Units,Childrens Family Services,Books-CDs-Audio-Video,1033155201,ASKEWS & HOLTS LIBRARY SERVICES LTD,91.53,31/01/2024
Delivery Units,Strategy and Resources,Advertising,1023684403,GOOD IMPRESSIONS (LONDON) LIMITED,"1,350.00",12/01/2024
Delivery Units,Assurance,Postage,1032672501,ROYAL MAIL GROUP LIMITED,706.30,17/01/2024
Delivery Units,Assurance,Postage,1032672902,ROYAL MAIL GROUP LIMITED,99.90,17/01/2024
Delivery Units,Assurance,Postage,1032673401,ROYAL MAIL GROUP LIMITED,56.00,17/01/2024
Delivery Units,Assurance,Postage,1032674301,ROYAL MAIL GROUP LIMITED,624.40,17/01/2024
Delivery Units,Assurance,Postage,1032856701,ROYAL MAIL GROUP LIMITED,91.70,22/01/2024
Delivery Units,Assurance,Postage,1032857801,ROYAL MAIL GROUP LIMITED,119.00,22/01/2024
Delivery Units,Assurance,Postage,1032858601,ROYAL MAIL GROUP LIMITED,256.90,22/01/2024
Delivery Units,Customer and Place,Advertising,1027684103,GOOD IMPRESSIONS (LONDON) LIMITED,960.00,16/01/2024
Delivery Units,Customer and Place,Equipment and Materials Purcha,1031604903,Impamark,"3,040.00",09/01/2024
Delivery Units,Customer and Place,Professional Services,1032727301,STOPFORD INFORMATIONSYSTEMSLTD,260.00,17/01/2024
Delivery Units,Customer and Place,Professional Services,1032583402,Home Office Shared Service,"6,494.56",11/01/2024
Delivery Units,Assurance,CSG  - IT,1032975802,CIVICA UK LIMITED,"14,999.59",26/01/2024
Delivery Units,Assurance,CSG  - IT,1032976802,CIVICA UK LIMITED,"3,999.90",26/01/2024
Delivery Units,Assurance,Professional Services,1032975301,Sheffield City Council,"2,240.00",25/01/2024
Delivery Units,Assurance,Professional Services,1032804501,GOOD IMPRESSIONS (LONDON) LIMITED,90.00,19/01/2024
Delivery Units,Assurance,Training,1032718401,Local Government Information Unit,"1,095.00",18/01/2024
Delivery Units,Assurance,Subscriptions,1031250401,CITY OF LONDON,"21,890.00",05/01/2024
Delivery Units,Childrens Family Services,Professional Services,0070202527,Reddo Care and Support C.I.C.,642.15,04/01/2024
Delivery Units,Childrens Family Services,Legal and Court Fees,0070202517,Bindmans LLP,58.50,03/01/2024
Delivery Units,Childrens Family Services,Legal and Court Fees,0070204022,Bourne Medicolegal Limited,500.00,29/01/2024
Delivery Units,Childrens Family Services,Legal and Court Fees,0070204023,Bourne Medicolegal Limited,500.00,29/01/2024
Delivery Units,Childrens Family Services,Legal and Court Fees,0070204024,Bindmans LLP,800.00,29/01/2024
Delivery Units,Customer and Place,Equipment and Materials Purcha,1032421002,Solo Protect Ltd,"1,361.04",11/01/2024
Delivery Units,Customer and Place,Haz waste Collections,1032814202,LONDON BOROUGH OF ISLINGTON,920.00,22/01/2024
Delivery Units,Customer and Place,Haz waste Collections,1032814402,LONDON BOROUGH OF ISLINGTON,"1,675.00",22/01/2024
Delivery Units,Customer and Place,Haz waste Collections,1031161702,CITY OF LONDON,"2,081.77",05/01/2024
Delivery Units,Customer and Place,Training,1029505803,SKILLS TRAINING CENTRE LTD,"1,990.00",16/01/2024
Delivery Units,Customer and Place,Training,1031168603,SKILLS TRAINING CENTRE LTD,"2,250.00",09/01/2024
Delivery Units,Customer and Place,Training,1031213203,SKILLS TRAINING CENTRE LTD,"3,674.00",09/01/2024
Delivery Units,Customer and Place,Training,1031406503,SKILLS TRAINING CENTRE LTD,"1,583.00",09/01/2024
Delivery Units,Customer and Place,Training,1031773803,SKILLS TRAINING CENTRE LTD,850.00,09/01/2024
Delivery Units,Customer and Place,Clothing - Protective Clothing,1033033501,SMI INT Group Ltd,"1,443.69",26/01/2024
Delivery Units,Customer and Place,Clothing - Protective Clothing,1033116301,SMI INT Group Ltd,"1,661.63",30/01/2024
Delivery Units,Customer and Place,Training,1033156101,Mow- Sure Training  Ltd,"1,140.00",31/01/2024
Delivery Units,Customer and Place,Clothing - Protective Clothing,1033158401,SMI INT Group Ltd,488.70,31/01/2024
Delivery Units,Customer and Place,Hardware Purchases,1033021702,Banner Group Limited,536.48,30/01/2024
Delivery Units,Customer and Place,Training,1032382801,Terberg Matec Uk Ltd,600.00,03/01/2024
Delivery Units,Adults and Health,Health Safety Prd end pro Rchg,1030393703,ATLANTIS OFFICE LIMITED,155.00,16/01/2024
Delivery Units,Adults and Health,Other Agencies - Third Party P,1032535902,THE BARNETGROUP LIMITED,306.12,10/01/2024
Delivery Units,Adults and Health,Other Services,1032452202,ATLANTIS OFFICE LIMITED,182.00,19/01/2024
Delivery Units,Adults and Health,Other Services,1032771401,ATLANTIS OFFICE LIMITED,253.99,18/01/2024
Delivery Units,Adults and Health,Other Services,1032507802,THE BARNETGROUP LIMITED,585.00,09/01/2024
Delivery Units,Adults and Health,Other Services,1032536602,THE BARNETGROUP LIMITED,"2,925.00",10/01/2024
Delivery Units,Adults and Health,Other Services,1032683301,PPL (Private Public Ltd),"5,025.00",16/01/2024
Delivery Units,Adults and Health,Consultants Fees,1032688401,PPL (Private Public Ltd),"5,053.75",16/01/2024
Delivery Units,Adults and Health,Consultants Fees,1032689201,PPL (Private Public Ltd),"11,233.75",16/01/2024
Delivery Units,Adults and Health,Other Services,1030789603,Barnet Homes,"2,385.27",03/01/2024
Delivery Units,Public Health,Health authorities - Third Par,1032926202,Central & North West London NHS FT,"489,438.75",24/01/2024
Delivery Units,Public Health,Health authorities - Third Par,1032926702,Central & North West London NHS FT,"11,500.00",25/01/2024
Delivery Units,Public Health,Health authorities - Third Par,1032390202,LEEDS CITY COUNCIL,134.00,03/01/2024
Delivery Units,Public Health,Health authorities - Third Par,1032384902,Chelsea & Westminster Hospital,"39,866.70",04/01/2024
Delivery Units,Public Health,Health authorities - Third Par,1032918602,Homerton University Hospital,"1,392.89",24/01/2024
Delivery Units,Public Health,Health authorities - Third Par,1032921102,CENTRAL LONDONCOMMUNITY HEALTHCARE,"1,146.00",24/01/2024
Delivery Units,Public Health,Health authorities - Third Par,1032925002,University Hospitals Birmingham,117.00,24/01/2024
Delivery Units,Public Health,Health authorities - Third Par,1032976102,Barts Health NHS Trust,"2,691.00",25/01/2024
Delivery Units,Public Health,Health authorities - Third Par,1033116002,Chelsea & Westminster Hospital,"1,544.32",30/01/2024
Delivery Units,Public Health,Health authorities - Third Par,1033116202,CENTRAL LONDONCOMMUNITY HEALTHCARE,172.06,31/01/2024
Delivery Units,Public Health,Health authorities - Third Par,1033116402,London North West Healthcare,"7,125.98",30/01/2024
Delivery Units,Public Health,Health authorities - Third Par,1030790903,CITY OF LONDON,"2,750.00",05/01/2024
Delivery Units,Public Health,Health authorities - Third Par,1033029902,CITY OF LONDON,"2,500.00",26/01/2024
Delivery Units,Public Health,Health authorities - Third Par,1032501301,Change Grow Live Services Ltd,"587,349.84",09/01/2024
Delivery Units,Public Health,Health authorities - Third Par,1032501201,Change Grow Live Services Ltd,"49,885.12",09/01/2024
Delivery Units,Public Health,Other Transfer Payments to Soc,1030015703,Kooth Digital Health Limited,"5,835.50",16/01/2024
Delivery Units,Public Health,Other Services,1032807801,Childwise Research Limited,"2,500.00",19/01/2024
Delivery Units,Public Health,Other Transfer Payments to Soc,1033080701,BDLD CIC,"12,581.80",29/01/2024
Delivery Units,Adults and Health,Translation Exp / Interpret,1031815501,Thebigword Group Ltd,262.24,17/01/2024
Delivery Units,Adults and Health,Professional Services,1032340502,Recruitment Team Nine Limited,295.00,08/01/2024
Delivery Units,Adults and Health,Other Transfer Payments to Soc,1032390301,Aisa Medical Ltd,"4,200.00",03/01/2024
Delivery Units,Adults and Health,Professional Services,1032420602,AMIN ENTERPRISE LTD,190.00,04/01/2024
Delivery Units,Adults and Health,Professional Services,1032542302,POhWER,543.16,10/01/2024
Delivery Units,Adults and Health,Professional Services,1032543502,POhWER,116.19,10/01/2024
Delivery Units,Adults and Health,Professional Services,1032543902,POhWER,179.56,10/01/2024
Delivery Units,Adults and Health,Professional Services,1032575602,Peaceable Habitation Ltd,640.00,11/01/2024
Delivery Units,Adults and Health,Professional Services,1032676302,Recruitment Team Nine Limited,295.00,19/01/2024
Delivery Units,Adults and Health,Professional Services,1032851401,Recruitment Team Nine Limited,295.00,22/01/2024
Delivery Units,Adults and Health,Professional Services,1032922502,AMIN ENTERPRISE LTD,190.00,24/01/2024
Delivery Units,Adults and Health,Professional Services,1032919401,South East Memory Assessment Serv. Ltd,235.00,25/01/2024
Delivery Units,Adults and Health,Equipment and Materials Purcha,1032718901,Speak IT Limited,55.45,18/01/2024
Delivery Units,Adults and Health,Equipment and Materials Purcha,1032721301,Speak IT Limited,"1,853.50",18/01/2024
Delivery Units,Adults and Health,Other Services,1032739901,Thebigword Group Ltd,398.77,17/01/2024
Delivery Units,Adults and Health,Other Services,1032742101,Thebigword Group Ltd,85.05,18/01/2024
Delivery Units,Adults and Health,Ttl IT & Comms,1032683201,MEDEQUIP ASSISTIVE TECHNOLOGY,"202,256.10",16/01/2024
Delivery Units,Adults and Health,Other Agencies - Third Party P,0090674352,CARLTON COURT (TLC GROUP),"7,000.00",10/01/2024
Delivery Units,Adults and Health,Other Agencies - Third Party P,0090674407,CARLTON COURT (TLC GROUP),"7,400.00",10/01/2024
Delivery Units,Adults and Health,Other Agencies - Third Party P,0090674672,CARLTON COURT (TLC GROUP),"4,363.24",10/01/2024
Delivery Units,Adults and Health,Other Agencies - Third Party P,0090674693,CARLTON COURT (TLC GROUP),"6,600.00",10/01/2024
Delivery Units,Adults and Health,Other Agencies - Third Party P,0090674700,CARLTON COURT (TLC GROUP),"6,000.00",10/01/2024
Delivery Units,Adults and Health,Other Agencies - Third Party P,0090680289,AUTUMN GARDENS,"3,656.00",23/01/2024
Delivery Units,Adults and Health,Other Agencies - Third Party P,0090680290,AUTUMN GARDENS,"4,800.00",23/01/2024
Delivery Units,Adults and Health,Other Agencies - Third Party P,0090681264,BENSLOW MANAGEMENT COMPANY LIMITED,"4,262.06",25/01/2024
Delivery Units,Adults and Health,Other Agencies - Third Party P,0090681329,AGUDAS ISRAEL HOUSING ASSCTN LTD,"2,736.86",25/01/2024
Delivery Units,Adults and Health,Other Agencies - Third Party P,0090654750,BUPA CARE HOME (GL) Limited,"5,312.51",05/01/2024
Delivery Units,Adults and Health,Other Agencies - Third Party P,0090654751,BUPA CARE HOME (GL) Limited,-557.15,05/01/2024
Delivery Units,Adults and Health,Other Agencies - Third Party P,0090654752,BUPA CARE HOME (GL) Limited,"6,334.14",05/01/2024
Delivery Units,Adults and Health,Other Agencies - Third Party P,0090654753,BUPA CARE HOME (GL) Limited,-664.28,05/01/2024
Delivery Units,Adults and Health,Other Agencies - Third Party P,0090654754,BUPA CARE HOME (GL) Limited,"6,129.81",05/01/2024
Delivery Units,Adults and Health,Other Agencies - Third Party P,0090654755,BUPA CARE HOME (GL) Limited,-642.85,05/01/2024
Delivery Units,Adults and Health,Other Agencies - Third Party P,0090654756,BUPA CARE HOME (GL) Limited,"6,334.14",05/01/2024
Delivery Units,Adults and Health,Other Agencies - Third Party P,0090654757,BUPA CARE HOME (GL) Limited,-664.28,05/01/2024
Delivery Units,Adults and Health,Other Agencies - Third Party P,0090657787,BUPA CARE HOME (GL) Limited,"5,486.96",05/01/2024
Delivery Units,Adults and Health,Other Agencies - Third Party P,0090673145,BUPA CARE HOME (GL) Limited,"5,669.86",05/01/2024
Delivery Units,Adults and Health,Other Agencies - Third Party P,0090674188,CEDARS NURSING HOME,"4,016.00",10/01/2024
Delivery Units,Adults and Health,Other Agencies - Third Party P,0090674204,Lukka Care Homes (2010) Ltd,"3,768.00",10/01/2024
Delivery Units,Adults and Health,Other Agencies - Third Party P,0090674206,Lukka Care Homes (2010) Ltd,"4,200.00",10/01/2024
Delivery Units,Adults and Health,Other Agencies - Third Party P,0090674207,ABBEY RAVENSCROFT PARK NURSING HOME,"3,752.00",10/01/2024
Delivery Units,Adults and Health,Other Agencies - Third Party P,0090674208,JEWISH CARE,"3,140.00",10/01/2024
Delivery Units,Adults and Health,Other Agencies - Third Party P,0090674210,BUPA CARE HOMES,"6,227.95",10/01/2024
Delivery Units,Adults and Health,Other Agencies - Third Party P,0090674211,LIFESTYLE CARE PLC,"14,789.50",10/01/2024
Delivery Units,Adults and Health,Other Agencies - Third Party P,0090674213,FOUR SEASONS HEALTH CARE,"2,944.96",10/01/2024
Delivery Units,Adults and Health,Other Agencies - Third Party P,0090674219,SONESTA NURSING HOME LTD.,"2,906.84",10/01/2024
Delivery Units,Adults and Health,Other Agencies - Third Party P,0090674229,ABBEY RAVENSCROFT PARK NURSING HOME,"3,968.00",10/01/2024
Delivery Units,Adults and Health,Other Agencies - Third Party P,0090674230,LIFESTYLE CARE PLC,"3,055.32",10/01/2024
Delivery Units,Adults and Health,Other Agencies - Third Party P,0090674234,Lukka Care Homes (2010) Ltd,"4,201.60",10/01/2024
Delivery Units,Adults and Health,Other Agencies - Third Party P,0090674235,APPLE TREE COURT CARE HOME,"4,016.00",10/01/2024
Delivery Units,Adults and Health,Other Agencies - Third Party P,0090674243,LIFESTYLE CARE PLC,"3,055.32",10/01/2024
Delivery Units,Adults and Health,Other Agencies - Third Party P,0090674246,FOUR SEASONS HEALTH CARE,"2,944.96",10/01/2024
Delivery Units,Adults and Health,Other Agencies - Third Party P,0090674247,JEWISH CARE,"3,212.00",10/01/2024
Delivery Units,Adults and Health,Other Agencies - Third Party P,0090674249,SONESTA NURSING HOME LTD.,"2,906.84",10/01/2024
Delivery Units,Adults and Health,Other Agencies - Third Party P,0090674251,SAGE NURSING HOME,"4,400.00",10/01/2024
Delivery Units,Adults and Health,Other Agencies - Third Party P,0090674253,Lukka Care Homes (2010) Ltd,"4,200.00",10/01/2024
Delivery Units,Adults and Health,Other Agencies - Third Party P,0090674255,ELEANOR PALMER TRUST NO 2 A/C.,"4,400.00",10/01/2024
Delivery Units,Adults and Health,Other Agencies - Third Party P,0090674257,ABBEY RAVENSCROFT PARK NURSING HOME,"3,968.00",10/01/2024
Delivery Units,Adults and Health,Other Agencies - Third Party P,0090674260,JEWISH CARE,"9,938.48",10/01/2024
Delivery Units,Adults and Health,Other Agencies - Third Party P,0090674262,CEDARS NURSING HOME,"3,756.00",10/01/2024
Delivery Units,Adults and Health,Other Agencies - Third Party P,0090674264,BUPA NURSING HOMES LTD - ARKLEY,"3,690.82",10/01/2024
Delivery Units,Adults and Health,Other Agencies - Third Party P,0090674265,APPLE TREE COURT CARE HOME,"10,306.08",10/01/2024
Delivery Units,Adults and Health,Other Agencies - Third Party P,0090674266,APPLE TREE COURT CARE HOME,0.04,10/01/2024
Delivery Units,Adults and Health,Other Agencies - Third Party P,0090674267,FOUR SEASONS HEALTH CARE,695.57,10/01/2024
Delivery Units,Adults and Health,Other Agencies - Third Party P,0090674268,BUPA CARE HOMES,"3,098.28",10/01/2024
Delivery Units,Adults and Health,Other Agencies - Third Party P,0090674273,SONESTA NURSING HOME LTD.,"2,906.84",10/01/2024
Delivery Units,Adults and Health,Other Agencies - Third Party P,0090674274,JEWISH CARE,"2,911.32",10/01/2024
Delivery Units,Adults and Health,Other Agencies - Third Party P,0090674278,APPLE TREE COURT CARE HOME,"4,097.76",10/01/2024
Delivery Units,Adults and Health,Other Agencies - Third Party P,0090674283,FOUR SEASONS HEALTH CARE,"2,944.96",10/01/2024
Delivery Units,Adults and Health,Other Agencies - Third Party P,0090674284,LIFESTYLE CARE PLC,"3,055.32",10/01/2024
Delivery Units,Adults and Health,Other Agencies - Third Party P,0090674285,JEWISH CARE,"3,140.00",10/01/2024
Delivery Units,Adults and Health,Other Agencies - Third Party P,0090674286,LIFESTYLE CARE PLC,"3,055.32",10/01/2024
Delivery Units,Adults and Health,Other Agencies - Third Party P,0090674287,Lukka Care Homes (2010) Ltd,"4,168.00",10/01/2024
Delivery Units,Adults and Health,Other Agencies - Third Party P,0090674289,APPLE TREE COURT CARE HOME,"4,200.00",10/01/2024
Delivery Units,Adults and Health,Other Agencies - Third Party P,0090674293,JEWISH CARE,"3,212.00",10/01/2024
Delivery Units,Adults and Health,Other Agencies - Third Party P,0090674299,JEWISH CARE,"3,140.00",10/01/2024
Delivery Units,Adults and Health,Other Agencies - Third Party P,0090674301,Aarandale Manor Care Home,"4,200.00",10/01/2024
Delivery Units,Adults and Health,Other Agencies - Third Party P,0090674305,Lukka Care Homes (2010) Ltd,"3,768.00",10/01/2024
Delivery Units,Adults and Health,Other Agencies - Third Party P,0090674308,CEDARS NURSING HOME,"4,800.00",10/01/2024
Delivery Units,Adults and Health,Other Agencies - Third Party P,0090674311,Lancam Care Services Limited,"4,116.00",10/01/2024
Delivery Units,Adults and Health,Other Agencies - Third Party P,0090674314,ELEANOR PALMER TRUST NO 2 A/C.,"4,400.00",10/01/2024
Delivery Units,Adults and Health,Other Agencies - Third Party P,0090674316,JEWISH CARE,"3,212.00",10/01/2024
Delivery Units,Adults and Health,Other Agencies - Third Party P,0090674317,CEDARS NURSING HOME,"4,800.00",10/01/2024
Delivery Units,Adults and Health,Other Agencies - Third Party P,0090674323,LIFESTYLE CARE PLC,"3,055.32",10/01/2024
Delivery Units,Adults and Health,Other Agencies - Third Party P,0090674324,SONESTA NURSING HOME LTD.,"2,906.84",10/01/2024
Delivery Units,Adults and Health,Other Agencies - Third Party P,0090674325,ABBEY RAVENSCROFT PARK NURSING HOME,"4,200.00",10/01/2024
Delivery Units,Adults and Health,Other Agencies - Third Party P,0090674328,FOUR SEASONS HEALTH CARE,"2,944.96",10/01/2024
Delivery Units,Adults and Health,Other Agencies - Third Party P,0090674329,ABBEY RAVENSCROFT PARK NURSING HOME,"4,800.00",10/01/2024
Delivery Units,Adults and Health,Other Agencies - Third Party P,0090674330,ELEANOR PALMER TRUST NO 2 A/C.,"4,400.00",10/01/2024
Delivery Units,Adults and Health,Other Agencies - Third Party P,0090674335,New Century Care (Finchley),"5,425.00",10/01/2024
Delivery Units,Adults and Health,Other Agencies - Third Party P,0090674342,CARE UK COMMUNITY PARTNERSHIPS,"4,363.24",10/01/2024
Delivery Units,Adults and Health,Other Agencies - Third Party P,0090674346,BUPA NURSING HOMES LTD - ARKLEY,"4,116.00",10/01/2024
Delivery Units,Adults and Health,Other Agencies - Third Party P,0090674347,New Century Care (Finchley),"10,528.84",10/01/2024
Delivery Units,Adults and Health,Other Agencies - Third Party P,0090674348,JEWISH CARE,"3,140.00",10/01/2024
Delivery Units,Adults and Health,Other Agencies - Third Party P,0090674349,JEWISH CARE,"3,212.00",10/01/2024
Delivery Units,Adults and Health,Other Agencies - Third Party P,0090674350,SONESTA NURSING HOME LTD.,"3,216.00",10/01/2024
Delivery Units,Adults and Health,Other Agencies - Third Party P,0090674351,FOUR SEASONS HEALTH CARE,"4,400.00",10/01/2024
Delivery Units,Adults and Health,Other Agencies - Third Party P,0090674354,BUPA CARE HOMES,"3,098.28",10/01/2024
Delivery Units,Adults and Health,Other Agencies - Third Party P,0090674357,SONESTA NURSING HOME LTD.,"2,906.84",10/01/2024
Delivery Units,Adults and Health,Other Agencies - Third Party P,0090674358,APPLE TREE COURT CARE HOME,"4,701.72",10/01/2024
Delivery Units,Adults and Health,Other Agencies - Third Party P,0090674359,Aarandale Manor Care Home,"4,200.00",10/01/2024
Delivery Units,Adults and Health,Other Agencies - Third Party P,0090674366,APPLE TREE COURT CARE HOME,"4,400.00",10/01/2024
Delivery Units,Adults and Health,Other Agencies - Third Party P,0090674367,BUPA NURSING HOMES LTD - ARKLEY,"4,016.00",10/01/2024
Delivery Units,Adults and Health,Other Agencies - Third Party P,0090674368,Lukka Care Homes (2010) Ltd,"4,249.60",10/01/2024
Delivery Units,Adults and Health,Other Agencies - Third Party P,0090674374,SONESTA NURSING HOME LTD.,"2,906.84",10/01/2024
Delivery Units,Adults and Health,Other Agencies - Third Party P,0090674376,APPLE TREE COURT CARE HOME,"5,400.00",10/01/2024
Delivery Units,Adults and Health,Other Agencies - Third Party P,0090674377,New Century Care (Finchley),"5,208.00",10/01/2024
Delivery Units,Adults and Health,Other Agencies - Third Party P,0090674378,CEDARS NURSING HOME,"5,200.00",10/01/2024
Delivery Units,Adults and Health,Other Agencies - Third Party P,0090674379,Lukka Care Homes (2010) Ltd,"4,200.00",10/01/2024
Delivery Units,Adults and Health,Other Agencies - Third Party P,0090674381,FOUR SEASONS HEALTH CARE,"3,684.00",10/01/2024
Delivery Units,Adults and Health,Other Agencies - Third Party P,0090674382,FOUR SEASONS HEALTH CARE,"2,944.96",10/01/2024
Delivery Units,Adults and Health,Other Agencies - Third Party P,0090674383,APPLE TREE COURT CARE HOME,"4,097.76",10/01/2024
Delivery Units,Adults and Health,Other Agencies - Third Party P,0090674386,ABBEY RAVENSCROFT PARK NURSING HOME,"4,200.00",10/01/2024
Delivery Units,Adults and Health,Other Agencies - Third Party P,0090674387,New Century Care (Finchley),"5,208.00",10/01/2024
Delivery Units,Adults and Health,Other Agencies - Third Party P,0090674388,CEDARS NURSING HOME,"5,200.00",10/01/2024
Delivery Units,Adults and Health,Other Agencies - Third Party P,0090674389,CARE UK COMMUNITY PARTNERSHIPS,"4,363.24",10/01/2024
Delivery Units,Adults and Health,Other Agencies - Third Party P,0090674390,APPLE TREE COURT CARE HOME,"3,969.20",10/01/2024
Delivery Units,Adults and Health,Other Agencies - Third Party P,0090674391,ABBEY RAVENSCROFT PARK NURSING HOME,"4,800.00",10/01/2024
Delivery Units,Adults and Health,Other Agencies - Third Party P,0090674392,Aarandale Manor Care Home,"6,000.00",10/01/2024
Delivery Units,Adults and Health,Other Agencies - Third Party P,0090674393,ABBEY RAVENSCROFT PARK NURSING HOME,"4,800.00",10/01/2024
Delivery Units,Adults and Health,Other Agencies - Third Party P,0090674394,APPLE TREE COURT CARE HOME,"1,000.00",10/01/2024
Delivery Units,Adults and Health,Other Agencies - Third Party P,0090674398,JEWISH CARE,"3,212.00",10/01/2024
Delivery Units,Adults and Health,Other Agencies - Third Party P,0090674401,Lukka Care Homes (2010) Ltd,"5,400.00",10/01/2024
Delivery Units,Adults and Health,Other Agencies - Third Party P,0090674406,ABBEY RAVENSCROFT PARK NURSING HOME,"5,100.00",10/01/2024
Delivery Units,Adults and Health,Other Agencies - Third Party P,0090674409,HENRY NIHILL HOUSE,"4,800.00",10/01/2024
Delivery Units,Adults and Health,Other Agencies - Third Party P,0090674411,CARE UK COMMUNITY PARTNERSHIPS,"4,363.24",10/01/2024
Delivery Units,Adults and Health,Other Agencies - Third Party P,0090674415,BUPA NURSING HOMES LTD - ARKLEY,"1,028.57",10/01/2024
Delivery Units,Adults and Health,Other Agencies - Third Party P,0090674416,ABBEY RAVENSCROFT PARK NURSING HOME,"10,371.43",10/01/2024
Delivery Units,Adults and Health,Other Agencies - Third Party P,0090674417,BUPA NURSING HOMES LTD - ARKLEY,"3,600.00",10/01/2024
Delivery Units,Adults and Health,Other Agencies - Third Party P,0090674418,SONESTA NURSING HOME LTD.,"5,400.37",10/01/2024
Delivery Units,Adults and Health,Other Agencies - Third Party P,0090674419,ABBEY RAVENSCROFT PARK NURSING HOME,"16,928.58",10/01/2024
Delivery Units,Adults and Health,Other Agencies - Third Party P,0090674420,BUPA NURSING HOMES LTD - ARKLEY,"3,600.00",10/01/2024
Delivery Units,Adults and Health,Other Agencies - Third Party P,0090674421,LIFESTYLE CARE PLC,"5,521.16",10/01/2024
Delivery Units,Adults and Health,Other Agencies - Third Party P,0090674423,ABBEY RAVENSCROFT PARK NURSING HOME,"4,400.00",10/01/2024
Delivery Units,Adults and Health,Other Agencies - Third Party P,0090674434,FOUR SEASONS HEALTH CARE,"3,800.00",10/01/2024
Delivery Units,Adults and Health,Other Agencies - Third Party P,0090674437,BUPA CARE HOMES,"3,098.28",10/01/2024
Delivery Units,Adults and Health,Other Agencies - Third Party P,0090674439,HENRY NIHILL HOUSE,"3,900.00",10/01/2024
Delivery Units,Adults and Health,Other Agencies - Third Party P,0090674441,Lukka Care Homes (2010) Ltd,"4,200.00",10/01/2024
Delivery Units,Adults and Health,Other Agencies - Third Party P,0090674442,SONESTA NURSING HOME LTD.,"3,400.00",10/01/2024
Delivery Units,Adults and Health,Other Agencies - Third Party P,0090674443,JEWISH CARE,"3,140.00",10/01/2024
Delivery Units,Adults and Health,Other Agencies - Third Party P,0090674444,ELEANOR PALMER TRUST NO 2 A/C.,"4,400.00",10/01/2024
Delivery Units,Adults and Health,Other Agencies - Third Party P,0090674445,CARE UK COMMUNITY PARTNERSHIPS,"4,321.16",10/01/2024
Delivery Units,Adults and Health,Other Agencies - Third Party P,0090674446,SONESTA NURSING HOME LTD.,"2,906.84",10/01/2024
Delivery Units,Adults and Health,Other Agencies - Third Party P,0090674447,BUPA CARE HOMES,"3,098.28",10/01/2024
Delivery Units,Adults and Health,Other Agencies - Third Party P,0090674448,LIFESTYLE CARE PLC,"3,055.32",10/01/2024
Delivery Units,Adults and Health,Other Agencies - Third Party P,0090674451,BUPA NURSING HOMES LTD - ARKLEY,"3,400.00",10/01/2024
Delivery Units,Adults and Health,Other Agencies - Third Party P,0090674452,BUPA NURSING HOMES LTD - ARKLEY,"3,900.00",10/01/2024
Delivery Units,Adults and Health,Other Agencies - Third Party P,0090674454,BUPA NURSING HOMES LTD - ARKLEY,"3,900.00",10/01/2024
Delivery Units,Adults and Health,Other Agencies - Third Party P,0090674455,ABBEY RAVENSCROFT PARK NURSING HOME,"5,200.00",10/01/2024
Delivery Units,Adults and Health,Other Agencies - Third Party P,0090674456,JEWISH CARE,"3,212.00",10/01/2024
Delivery Units,Adults and Health,Other Agencies - Third Party P,0090674458,Lukka Care Homes (2010) Ltd,"3,428.57",10/01/2024
Delivery Units,Adults and Health,Other Agencies - Third Party P,0090674460,JEWISH CARE,"3,140.00",10/01/2024
Delivery Units,Adults and Health,Other Agencies - Third Party P,0090674469,JEWISH CARE,"3,140.00",10/01/2024
Delivery Units,Adults and Health,Other Agencies - Third Party P,0090674470,CEDARS NURSING HOME,"4,000.00",10/01/2024
Delivery Units,Adults and Health,Other Agencies - Third Party P,0090674477,SONESTA NURSING HOME LTD.,"-3,042.69",10/01/2024
Delivery Units,Adults and Health,Other Agencies - Third Party P,0090674480,JEWISH CARE,"3,140.00",10/01/2024
Delivery Units,Adults and Health,Other Agencies - Third Party P,0090674481,SONESTA NURSING HOME LTD.,"2,906.84",10/01/2024
Delivery Units,Adults and Health,Other Agencies - Third Party P,0090674484,APPLE TREE COURT CARE HOME,"3,588.12",10/01/2024
Delivery Units,Adults and Health,Other Agencies - Third Party P,0090674487,CEDARS NURSING HOME,"4,800.00",10/01/2024
Delivery Units,Adults and Health,Other Agencies - Third Party P,0090674497,JEWISH CARE,"3,140.00",10/01/2024
Delivery Units,Adults and Health,Other Agencies - Third Party P,0090674498,JEWISH CARE,"3,212.00",10/01/2024
Delivery Units,Adults and Health,Other Agencies - Third Party P,0090674502,FOUR SEASONS HEALTH CARE,"2,944.96",10/01/2024
Delivery Units,Adults and Health,Other Agencies - Third Party P,0090674508,LIFESTYLE CARE PLC,"3,055.32",10/01/2024
Delivery Units,Adults and Health,Other Agencies - Third Party P,0090674509,ABBEY RAVENSCROFT PARK NURSING HOME,"3,968.00",10/01/2024
Delivery Units,Adults and Health,Other Agencies - Third Party P,0090674513,ELEANOR PALMER TRUST NO 2 A/C.,"4,400.00",10/01/2024
Delivery Units,Adults and Health,Other Agencies - Third Party P,0090674514,LIFESTYLE CARE PLC,"3,055.32",10/01/2024
Delivery Units,Adults and Health,Other Agencies - Third Party P,0090674517,Aarandale Manor Care Home,"3,492.86",10/01/2024
Delivery Units,Adults and Health,Other Agencies - Third Party P,0090674521,SAGE NURSING HOME,"4,400.00",10/01/2024
Delivery Units,Adults and Health,Other Agencies - Third Party P,0090674528,New Century Care (Finchley),"5,208.00",10/01/2024
Delivery Units,Adults and Health,Other Agencies - Third Party P,0090674529,LIFESTYLE CARE PLC,"3,055.32",10/01/2024
Delivery Units,Adults and Health,Other Agencies - Third Party P,0090674533,ABBEY RAVENSCROFT PARK NURSING HOME,"4,800.00",10/01/2024
Delivery Units,Adults and Health,Other Agencies - Third Party P,0090674535,JEWISH CARE,"3,212.00",10/01/2024
Delivery Units,Adults and Health,Other Agencies - Third Party P,0090674537,ELEANOR PALMER TRUST NO 2 A/C.,"4,400.00",10/01/2024
Delivery Units,Adults and Health,Other Agencies - Third Party P,0090674539,HENRY NIHILL HOUSE,"3,816.00",10/01/2024
Delivery Units,Adults and Health,Other Agencies - Third Party P,0090674540,SONESTA NURSING HOME LTD.,"3,000.00",10/01/2024
Delivery Units,Adults and Health,Other Agencies - Third Party P,0090674541,HENRY NIHILL HOUSE,"3,816.00",10/01/2024
Delivery Units,Adults and Health,Other Agencies - Third Party P,0090674542,HENRY NIHILL HOUSE,"3,816.00",10/01/2024
Delivery Units,Adults and Health,Other Agencies - Third Party P,0090674546,Aarandale Manor Care Home,"6,000.00",10/01/2024
Delivery Units,Adults and Health,Other Agencies - Third Party P,0090674547,BUPA NURSING HOMES LTD - ARKLEY,"3,800.00",10/01/2024
Delivery Units,Adults and Health,Other Agencies - Third Party P,0090674548,ABBEY RAVENSCROFT PARK NURSING HOME,"4,800.00",10/01/2024
Delivery Units,Adults and Health,Other Agencies - Third Party P,0090674551,New Century Care (Finchley),"5,200.00",10/01/2024
Delivery Units,Adults and Health,Other Agencies - Third Party P,0090674555,APPLE TREE COURT CARE HOME,"3,588.12",10/01/2024
Delivery Units,Adults and Health,Other Agencies - Third Party P,0090674556,BUPA CARE HOMES,"3,098.28",10/01/2024
Delivery Units,Adults and Health,Other Agencies - Third Party P,0090674557,BUPA NURSING HOMES LTD - ARKLEY,"3,098.28",10/01/2024
Delivery Units,Adults and Health,Other Agencies - Third Party P,0090674558,LIFESTYLE CARE PLC,"3,055.32",10/01/2024
Delivery Units,Adults and Health,Other Agencies - Third Party P,0090674559,ABBEY RAVENSCROFT PARK NURSING HOME,"4,800.00",10/01/2024
Delivery Units,Adults and Health,Other Agencies - Third Party P,0090674562,APPLE TREE COURT CARE HOME,687.59,10/01/2024
Delivery Units,Adults and Health,Other Agencies - Third Party P,0090674563,ABBEY RAVENSCROFT PARK NURSING HOME,"4,800.00",10/01/2024
Delivery Units,Adults and Health,Other Agencies - Third Party P,0090674570,ABBEY RAVENSCROFT PARK NURSING HOME,"3,600.00",10/01/2024
Delivery Units,Adults and Health,Other Agencies - Third Party P,0090674572,FOUR SEASONS HEALTH CARE,210.35,10/01/2024
Delivery Units,Adults and Health,Other Agencies - Third Party P,0090674574,JEWISH CARE,"3,140.00",10/01/2024
Delivery Units,Adults and Health,Other Agencies - Third Party P,0090674578,Lukka Care Homes (2010) Ltd,"15,621.43",10/01/2024
Delivery Units,Adults and Health,Other Agencies - Third Party P,0090674579,Lukka Care Homes (2010) Ltd,800.00,10/01/2024
Delivery Units,Adults and Health,Other Agencies - Third Party P,0090674590,APPLE TREE COURT CARE HOME,"2,709.08",10/01/2024
Delivery Units,Adults and Health,Other Agencies - Third Party P,0090674595,ELEANOR PALMER TRUST NO 2 A/C.,"4,400.00",10/01/2024
Delivery Units,Adults and Health,Other Agencies - Third Party P,0090674599,Lukka Care Homes (2010) Ltd,"3,790.76",10/01/2024
Delivery Units,Adults and Health,Other Agencies - Third Party P,0090674601,ELEANOR PALMER TRUST NO 2 A/C.,"4,400.00",10/01/2024
Delivery Units,Adults and Health,Other Agencies - Third Party P,0090674606,APPLE TREE COURT CARE HOME,"3,980.00",10/01/2024
Delivery Units,Adults and Health,Other Agencies - Third Party P,0090674609,APPLE TREE COURT CARE HOME,"3,588.12",10/01/2024
Delivery Units,Adults and Health,Other Agencies - Third Party P,0090674610,APPLE TREE COURT CARE HOME,"3,588.12",10/01/2024
Delivery Units,Adults and Health,Other Agencies - Third Party P,0090674619,LIFESTYLE CARE PLC,"3,055.32",10/01/2024
Delivery Units,Adults and Health,Other Agencies - Third Party P,0090674628,APPLE TREE COURT CARE HOME,"3,588.12",10/01/2024
Delivery Units,Adults and Health,Other Agencies - Third Party P,0090674629,ABBEY RAVENSCROFT PARK NURSING HOME,"3,968.00",10/01/2024
Delivery Units,Adults and Health,Other Agencies - Third Party P,0090674630,JEWISH CARE,"3,212.00",10/01/2024
Delivery Units,Adults and Health,Other Agencies - Third Party P,0090674633,ABBEY RAVENSCROFT PARK NURSING HOME,"3,968.00",10/01/2024
Delivery Units,Adults and Health,Other Agencies - Third Party P,0090674636,BUPA NURSING HOMES LTD - ARKLEY,"3,098.28",10/01/2024
Delivery Units,Adults and Health,Other Agencies - Third Party P,0090674637,Lukka Care Homes (2010) Ltd,"4,201.60",10/01/2024
Delivery Units,Adults and Health,Other Agencies - Third Party P,0090674638,ELEANOR PALMER TRUST NO 2 A/C.,"4,400.00",10/01/2024
Delivery Units,Adults and Health,Other Agencies - Third Party P,0090674643,LIFESTYLE CARE PLC,"3,055.32",10/01/2024
Delivery Units,Adults and Health,Other Agencies - Third Party P,0090674645,JEWISH CARE,"3,212.00",10/01/2024
Delivery Units,Adults and Health,Other Agencies - Third Party P,0090674646,ELEANOR PALMER TRUST NO 2 A/C.,"4,400.00",10/01/2024
Delivery Units,Adults and Health,Other Agencies - Third Party P,0090674647,Lancam Care Services Limited,"3,916.00",10/01/2024
Delivery Units,Adults and Health,Other Agencies - Third Party P,0090674650,LIFESTYLE CARE PLC,"3,055.32",10/01/2024
Delivery Units,Adults and Health,Other Agencies - Third Party P,0090674653,SAGE NURSING HOME,"3,256.00",10/01/2024
Delivery Units,Adults and Health,Other Agencies - Third Party P,0090674654,JEWISH CARE,"8,479.92",10/01/2024
Delivery Units,Adults and Health,Other Agencies - Third Party P,0090674655,Lancam Care Services Limited,"4,196.00",10/01/2024
Delivery Units,Adults and Health,Other Agencies - Third Party P,0090674657,FOUR SEASONS HEALTH CARE,"2,944.96",10/01/2024
Delivery Units,Adults and Health,Other Agencies - Third Party P,0090674658,Lancam Care Services Limited,"4,196.00",10/01/2024
Delivery Units,Adults and Health,Other Agencies - Third Party P,0090674661,JEWISH CARE,"4,892.00",10/01/2024
Delivery Units,Adults and Health,Other Agencies - Third Party P,0090674662,APPLE TREE COURT CARE HOME,"4,763.24",10/01/2024
Delivery Units,Adults and Health,Other Agencies - Third Party P,0090674664,New Century Care (Finchley),"4,800.00",10/01/2024
Delivery Units,Adults and Health,Other Agencies - Third Party P,0090674665,ABBEY RAVENSCROFT PARK NURSING HOME,"4,400.00",10/01/2024
Delivery Units,Adults and Health,Other Agencies - Third Party P,0090674666,FOUR SEASONS HEALTH CARE,"2,944.96",10/01/2024
Delivery Units,Adults and Health,Other Agencies - Third Party P,0090674667,LIFESTYLE CARE PLC,"3,055.32",10/01/2024
Delivery Units,Adults and Health,Other Agencies - Third Party P,0090674668,ABBEY RAVENSCROFT PARK NURSING HOME,"4,800.00",10/01/2024
Delivery Units,Adults and Health,Other Agencies - Third Party P,0090674669,BUPA NURSING HOMES LTD - ARKLEY,"3,616.00",10/01/2024
Delivery Units,Adults and Health,Other Agencies - Third Party P,0090674673,APPLE TREE COURT CARE HOME,"4,763.24",10/01/2024
Delivery Units,Adults and Health,Other Agencies - Third Party P,0090674675,BUPA NURSING HOMES LTD - ARKLEY,"4,116.00",10/01/2024
Delivery Units,Adults and Health,Other Agencies - Third Party P,0090674676,SAGE NURSING HOME,"4,400.00",10/01/2024
Delivery Units,Adults and Health,Other Agencies - Third Party P,0090674679,ABBEY RAVENSCROFT PARK NURSING HOME,"4,800.00",10/01/2024
Delivery Units,Adults and Health,Other Agencies - Third Party P,0090674680,FOUR SEASONS HEALTH CARE,"2,944.96",10/01/2024
Delivery Units,Adults and Health,Other Agencies - Third Party P,0090674682,CEDARS NURSING HOME,"5,600.00",10/01/2024
Delivery Units,Adults and Health,Other Agencies - Third Party P,0090674684,APPLE TREE COURT CARE HOME,"4,097.76",10/01/2024
Delivery Units,Adults and Health,Other Agencies - Third Party P,0090674686,Lukka Care Homes (2010) Ltd,"4,800.00",10/01/2024
Delivery Units,Adults and Health,Other Agencies - Third Party P,0090674690,BUPA NURSING HOMES LTD - ARKLEY,"3,098.28",10/01/2024
Delivery Units,Adults and Health,Other Agencies - Third Party P,0090674691,CEDARS NURSING HOME,"5,600.00",10/01/2024
Delivery Units,Adults and Health,Other Agencies - Third Party P,0090674692,ABBEY RAVENSCROFT PARK NURSING HOME,"5,200.00",10/01/2024
Delivery Units,Adults and Health,Other Agencies - Third Party P,0090674695,Aarandale Manor Care Home,"6,000.00",10/01/2024
Delivery Units,Adults and Health,Other Agencies - Third Party P,0090674696,JEWISH CARE,"3,140.00",10/01/2024
Delivery Units,Adults and Health,Other Agencies - Third Party P,0090674698,ABBEY RAVENSCROFT PARK NURSING HOME,"4,400.00",10/01/2024
Delivery Units,Adults and Health,Other Agencies - Third Party P,0090674699,FOUR SEASONS HEALTH CARE,"2,944.96",10/01/2024
Delivery Units,Adults and Health,Other Agencies - Third Party P,0090674702,LIFESTYLE CARE PLC,"3,259.46",10/01/2024
Delivery Units,Adults and Health,Other Agencies - Third Party P,0090674703,Aarandale Manor Care Home,"6,000.00",10/01/2024
Delivery Units,Adults and Health,Other Agencies - Third Party P,0090674709,ABBEY RAVENSCROFT PARK NURSING HOME,"13,928.57",10/01/2024
Delivery Units,Adults and Health,Other Agencies - Third Party P,0090674710,ABBEY RAVENSCROFT PARK NURSING HOME,"-11,728.58",10/01/2024
Delivery Units,Adults and Health,Other Agencies - Third Party P,0090674712,ABBEY RAVENSCROFT PARK NURSING HOME,"4,800.00",10/01/2024
Delivery Units,Adults and Health,Other Agencies - Third Party P,0090674716,BUPA NURSING HOMES LTD - ARKLEY,"3,800.00",10/01/2024
Delivery Units,Adults and Health,Other Agencies - Third Party P,0090674718,BUPA NURSING HOMES LTD - ARKLEY,"6,800.00",10/01/2024
Delivery Units,Adults and Health,Other Agencies - Third Party P,0090677548,HC-One Oval LTD,"3,783.99",17/01/2024
Delivery Units,Adults and Health,Other Agencies - Third Party P,0090677549,HC-One Oval LTD,"3,661.93",17/01/2024
Delivery Units,Adults and Health,Other Agencies - Third Party P,0090679195,Stamford Nursing Centre,"4,557.00",18/01/2024
Delivery Units,Adults and Health,Other Agencies - Third Party P,0090680321,FERNBANK NURSING HOME.,"47,400.00",23/01/2024
Delivery Units,Adults and Health,Other Agencies - Third Party P,0090680322,FERNBANK NURSING HOME.,"5,314.02",23/01/2024
Delivery Units,Adults and Health,Other Agencies - Third Party P,0090680323,FERNBANK NURSING HOME.,"17,051.55",23/01/2024
Delivery Units,Adults and Health,Other Agencies - Third Party P,0090680325,FERNBANK NURSING HOME.,"5,978.35",23/01/2024
Delivery Units,Adults and Health,Other Agencies - Third Party P,0090680326,FERNBANK NURSING HOME.,"5,092.68",23/01/2024
Delivery Units,Adults and Health,Other Agencies - Third Party P,0090680332,NIGHTINGALE HOUSE,"4,220.43",23/01/2024
Delivery Units,Adults and Health,Other Agencies - Third Party P,0090681267,NIGHTINGALE HOUSE,"4,220.43",25/01/2024
Delivery Units,Adults and Health,Other Agencies - Third Party P,0090681292,TORRINGTON HOMES,"4,207.14",25/01/2024
Delivery Units,Adults and Health,Other Agencies - Third Party P,0090681297,Milford Lodge Residential Home,"4,207.14",25/01/2024
Delivery Units,Adults and Health,Other Agencies - Third Party P,0090681336,Oakland Primecare Ltd t/a Elsyng House,"7,865.14",25/01/2024
Delivery Units,Adults and Health,Other Agencies - Third Party P,0090681343,HUSKARDS NEW CARE LTD,"2,445.59",25/01/2024
Delivery Units,Adults and Health,Other Agencies - Third Party P,0090681344,HUSKARDS NEW CARE LTD,"2,445.59",25/01/2024
Delivery Units,Adults and Health,Other Agencies - Third Party P,0090682014,MEERA NURSING HOME LIMITED,"4,224.86",25/01/2024
Delivery Units,Adults and Health,Other Agencies - Third Party P,0090682017,COOPERSCROFT CARE HOME,"6,642.86",25/01/2024
Delivery Units,Adults and Health,Other Agencies - Third Party P,0090682022,Barchester Healthcare,"6,200.00",25/01/2024
Delivery Units,Adults and Health,Other Agencies - Third Party P,0090682023,Barchester Healthcare,"4,784.14",25/01/2024
Delivery Units,Adults and Health,Other Agencies - Third Party P,0090682025,Barchester Healthcare,"6,200.00",25/01/2024
Delivery Units,Adults and Health,Other Agencies - Third Party P,0090682049,DMP Healthcare (Ogilvy) Ltd,"4,446.29",25/01/2024
Delivery Units,Adults and Health,Other Agencies - Third Party P,0090682050,DMP Healthcare (Ogilvy) Ltd,"4,446.29",25/01/2024
Delivery Units,Adults and Health,Other Agencies - Third Party P,0090682057,WILSMERE HOUSE CARE CENTRE,"4,979.35",25/01/2024
Delivery Units,Adults and Health,Other Agencies - Third Party P,0090682062,WESTMINSTER HEALTH CARE LTD,"7,392.22",25/01/2024
Delivery Units,Adults and Health,Other Agencies - Third Party P,0090682063,WESTMINSTER HEALTH CARE LTD,"4,865.45",25/01/2024
Delivery Units,Adults and Health,Other Agencies - Third Party P,0090682064,WESTMINSTER HEALTH CARE LTD,"2,435.01",25/01/2024
Delivery Units,Adults and Health,Other Agencies - Third Party P,0090682065,WESTMINSTER HEALTH CARE LTD,"46,657.14",25/01/2024
Delivery Units,Adults and Health,Other Agencies - Third Party P,0090682066,WESTMINSTER HEALTH CARE LTD,"2,878.57",25/01/2024
Delivery Units,Adults and Health,Other Agencies - Third Party P,0090682067,WESTMINSTER HEALTH CARE LTD,"5,273.59",25/01/2024
Delivery Units,Adults and Health,Other Agencies - Third Party P,0090682081,Westbourne Care Home,"5,200.00",25/01/2024
Delivery Units,Adults and Health,Other Agencies - Third Party P,0090682094,GCH (HATFIELD) Limited,"2,324.76",25/01/2024
Delivery Units,Adults and Health,Other Agencies - Third Party P,0090683995,Candlewood House Care Home,"8,595.02",26/01/2024
Delivery Units,Adults and Health,Other Agencies - Third Party P,0090683999,WESTMINSTER HEALTH CARE LTD,"4,864.08",26/01/2024
Delivery Units,Adults and Health,Other Agencies - Third Party P,0090684001,WESTMINSTER HEALTH CARE LTD,"4,864.08",26/01/2024
Delivery Units,Adults and Health,Other Agencies - Third Party P,0090684887,Westbourne Care Home,"2,742.86",30/01/2024
Delivery Units,Adults and Health,Other Agencies - Third Party P,0090684888,Westbourne Care Home,630.00,30/01/2024
Delivery Units,Adults and Health,Other Agencies - Third Party P,0090684889,Westbourne Care Home,"2,228.57",30/01/2024
Delivery Units,Adults and Health,Other Agencies - Third Party P,0090659173,Sydmar Lodge Limited,"5,357.14",05/01/2024
Delivery Units,Adults and Health,Other Agencies - Third Party P,0090659174,Sydmar Lodge Limited,"4,212.86",05/01/2024
Delivery Units,Adults and Health,Other Agencies - Third Party P,0090659175,Sydmar Lodge Limited,"5,357.14",05/01/2024
Delivery Units,Adults and Health,Other Agencies - Third Party P,0090659176,Sydmar Lodge Limited,"5,357.14",05/01/2024
Delivery Units,Adults and Health,Other Agencies - Third Party P,0090659178,Sydmar Lodge Limited,"6,914.14",05/01/2024
Delivery Units,Adults and Health,Other Agencies - Third Party P,0090659179,Sydmar Lodge Limited,"5,682.86",05/01/2024
Delivery Units,Adults and Health,Other Agencies - Third Party P,0090659180,Sydmar Lodge Limited,"7,530.00",05/01/2024
Delivery Units,Adults and Health,Other Agencies - Third Party P,0090659548,Sydmar Lodge Limited,"30,142.92",05/01/2024
Delivery Units,Adults and Health,Other Agencies - Third Party P,0090662892,Sydmar Lodge Limited,"5,535.71",05/01/2024
Delivery Units,Adults and Health,Other Agencies - Third Party P,0090662893,Sydmar Lodge Limited,"5,535.71",05/01/2024
Delivery Units,Adults and Health,Other Agencies - Third Party P,0090662894,Sydmar Lodge Limited,"4,353.29",05/01/2024
Delivery Units,Adults and Health,Other Agencies - Third Party P,0090662895,Sydmar Lodge Limited,"5,535.71",05/01/2024
Delivery Units,Adults and Health,Other Agencies - Third Party P,0090662896,Sydmar Lodge Limited,"5,872.29",05/01/2024
Delivery Units,Adults and Health,Other Agencies - Third Party P,0090667092,Sydmar Lodge Limited,"21,193.90",05/01/2024
Delivery Units,Adults and Health,Other Agencies - Third Party P,0090667153,Sydmar Lodge Limited,"5,535.71",05/01/2024
Delivery Units,Adults and Health,Other Agencies - Third Party P,0090667154,Sydmar Lodge Limited,"4,353.29",05/01/2024
Delivery Units,Adults and Health,Other Agencies - Third Party P,0090667155,Sydmar Lodge Limited,"5,535.71",05/01/2024
Delivery Units,Adults and Health,Other Agencies - Third Party P,0090667156,Sydmar Lodge Limited,"5,535.71",05/01/2024
Delivery Units,Adults and Health,Other Agencies - Third Party P,0090667157,Sydmar Lodge Limited,"6,973.36",05/01/2024
Delivery Units,Adults and Health,Other Agencies - Third Party P,0090667159,Sydmar Lodge Limited,"7,144.61",05/01/2024
Delivery Units,Adults and Health,Other Agencies - Third Party P,0090667160,Sydmar Lodge Limited,"5,872.29",05/01/2024
Delivery Units,Adults and Health,Other Agencies - Third Party P,0090667161,Sydmar Lodge Limited,"7,781.00",05/01/2024
Delivery Units,Adults and Health,Other Agencies - Third Party P,0090673144,FINBOND LIMITED,150.00,05/01/2024
Delivery Units,Adults and Health,Other Agencies - Third Party P,0090674198,ROSEACRES CARE HOME LIMITED,"3,336.00",10/01/2024
Delivery Units,Adults and Health,Other Agencies - Third Party P,0090674216,CATHERINE LODGE,"3,580.00",10/01/2024
Delivery Units,Adults and Health,Other Agencies - Third Party P,0090674217,CARLTON COURT (TLC GROUP),"5,800.00",10/01/2024
Delivery Units,Adults and Health,Other Agencies - Third Party P,0090674223,CARLTON COURT (TLC GROUP),"5,400.00",10/01/2024
Delivery Units,Adults and Health,Other Agencies - Third Party P,0090674228,ROSEACRES CARE HOME LIMITED,"3,416.00",10/01/2024
Delivery Units,Adults and Health,Other Agencies - Third Party P,0090674294,CATHERINE LODGE,"3,200.00",10/01/2024
Delivery Units,Adults and Health,Other Agencies - Third Party P,0090674297,CATHERINE LODGE,"3,800.00",10/01/2024
Delivery Units,Adults and Health,Other Agencies - Third Party P,0090674303,ROSEACRES CARE HOME LIMITED,"3,074.00",10/01/2024
Delivery Units,Adults and Health,Other Agencies - Third Party P,0090674319,ROSEACRES CARE HOME LIMITED,"-1,162.29",10/01/2024
Delivery Units,Adults and Health,Other Agencies - Third Party P,0090674326,CATHERINE LODGE,"3,800.00",10/01/2024
Delivery Units,Adults and Health,Other Agencies - Third Party P,0090674362,ROSEACRES CARE HOME LIMITED,"1,704.00",10/01/2024
Delivery Units,Adults and Health,Other Agencies - Third Party P,0090674370,CATHERINE LODGE,"3,800.00",10/01/2024
Delivery Units,Adults and Health,Other Agencies - Third Party P,0090674404,ROSEACRES CARE HOME LIMITED,"3,800.00",10/01/2024
Delivery Units,Adults and Health,Other Agencies - Third Party P,0090674405,ROSEACRES CARE HOME LIMITED,"4,400.00",10/01/2024
Delivery Units,Adults and Health,Other Agencies - Third Party P,0090674426,CATHERINE LODGE,"3,800.00",10/01/2024
Delivery Units,Adults and Health,Other Agencies - Third Party P,0090674435,CATHERINE LODGE,"3,800.00",10/01/2024
Delivery Units,Adults and Health,Other Agencies - Third Party P,0090674440,ROSEACRES CARE HOME LIMITED,"3,800.00",10/01/2024
Delivery Units,Adults and Health,Other Agencies - Third Party P,0090674450,ROSEACRES CARE HOME LIMITED,"3,500.00",10/01/2024
Delivery Units,Adults and Health,Other Agencies - Third Party P,0090674453,ROSEACRES CARE HOME LIMITED,"3,800.00",10/01/2024
Delivery Units,Adults and Health,Other Agencies - Third Party P,0090674457,ROSEACRES CARE HOME LIMITED,"5,200.00",10/01/2024
Delivery Units,Adults and Health,Other Agencies - Third Party P,0090674467,CATHERINE LODGE,"3,000.00",10/01/2024
Delivery Units,Adults and Health,Other Agencies - Third Party P,0090674471,CARLTON COURT (TLC GROUP),"6,376.16",10/01/2024
Delivery Units,Adults and Health,Other Agencies - Third Party P,0090674474,ROSEACRES CARE HOME LIMITED,"3,336.00",10/01/2024
Delivery Units,Adults and Health,Other Agencies - Third Party P,0090674504,CATHERINE LODGE,"3,200.00",10/01/2024
Delivery Units,Adults and Health,Other Agencies - Third Party P,0090674512,ROSEACRES CARE HOME LIMITED,"3,074.00",10/01/2024
Delivery Units,Adults and Health,Other Agencies - Third Party P,0090674520,ROSEACRES CARE HOME LIMITED,"3,574.00",10/01/2024
Delivery Units,Adults and Health,Other Agencies - Third Party P,0090674527,ROSEACRES CARE HOME LIMITED,"3,620.00",10/01/2024
Delivery Units,Adults and Health,Other Agencies - Third Party P,0090674530,ROSEACRES CARE HOME LIMITED,"3,974.00",10/01/2024
Delivery Units,Adults and Health,Other Agencies - Third Party P,0090674531,ROSEACRES CARE HOME LIMITED,"3,800.00",10/01/2024
Delivery Units,Adults and Health,Other Agencies - Third Party P,0090674554,CATHERINE LODGE,"3,800.00",10/01/2024
Delivery Units,Adults and Health,Other Agencies - Third Party P,0090674608,ROSEACRES CARE HOME LIMITED,"3,616.00",10/01/2024
Delivery Units,Adults and Health,Other Agencies - Third Party P,0090674639,ROSEACRES CARE HOME LIMITED,"3,416.00",10/01/2024
Delivery Units,Adults and Health,Other Agencies - Third Party P,0090674697,ROSEACRES CARE HOME LIMITED,"3,800.00",10/01/2024
Delivery Units,Adults and Health,Other Agencies - Third Party P,0090674715,CATHERINE LODGE,"2,850.00",10/01/2024
Delivery Units,Adults and Health,Other Agencies - Third Party P,0090674717,CATHERINE LODGE,"3,528.57",10/01/2024
Delivery Units,Adults and Health,Other Agencies - Third Party P,0090675760,TBG Mosaic,"2,540.00",15/01/2024
Delivery Units,Adults and Health,Other Agencies - Third Party P,0090675761,TBG Mosaic,"2,676.00",15/01/2024
Delivery Units,Adults and Health,Other Agencies - Third Party P,0090675762,TBG Mosaic,"2,540.00",15/01/2024
Delivery Units,Adults and Health,Other Agencies - Third Party P,0090675763,TBG Mosaic,"2,676.00",15/01/2024
Delivery Units,Adults and Health,Other Agencies - Third Party P,0090675764,TBG Mosaic,"2,540.00",15/01/2024
Delivery Units,Adults and Health,Other Agencies - Third Party P,0090675765,TBG Mosaic,"2,676.00",15/01/2024
Delivery Units,Adults and Health,Other Agencies - Third Party P,0090675766,TBG Mosaic,"2,857.92",15/01/2024
Delivery Units,Adults and Health,Other Agencies - Third Party P,0090675767,TBG Mosaic,"2,540.00",15/01/2024
Delivery Units,Adults and Health,Other Agencies - Third Party P,0090675768,TBG Mosaic,"2,676.00",15/01/2024
Delivery Units,Adults and Health,Other Agencies - Third Party P,0090675769,TBG Mosaic,"2,540.00",15/01/2024
Delivery Units,Adults and Health,Other Agencies - Third Party P,0090675770,TBG Mosaic,"2,676.00",15/01/2024
Delivery Units,Adults and Health,Other Agencies - Third Party P,0090675771,TBG Mosaic,"2,676.00",15/01/2024
Delivery Units,Adults and Health,Other Agencies - Third Party P,0090675772,TBG Mosaic,"2,676.00",15/01/2024
Delivery Units,Adults and Health,Other Agencies - Third Party P,0090675773,TBG Mosaic,"2,540.00",15/01/2024
Delivery Units,Adults and Health,Other Agencies - Third Party P,0090675774,TBG Mosaic,"13,863.20",15/01/2024
Delivery Units,Adults and Health,Other Agencies - Third Party P,0090675775,TBG Mosaic,"4,612.00",15/01/2024
Delivery Units,Adults and Health,Other Agencies - Third Party P,0090675776,TBG Mosaic,"15,699.64",15/01/2024
Delivery Units,Adults and Health,Other Agencies - Third Party P,0090675777,TBG Mosaic,"9,673.20",15/01/2024
Delivery Units,Adults and Health,Other Agencies - Third Party P,0090675778,TBG Mosaic,"2,676.00",15/01/2024
Delivery Units,Adults and Health,Other Agencies - Third Party P,0090675779,TBG Mosaic,"2,540.00",15/01/2024
Delivery Units,Adults and Health,Other Agencies - Third Party P,0090675780,TBG Mosaic,"2,540.00",15/01/2024
Delivery Units,Adults and Health,Other Agencies - Third Party P,0090675781,TBG Mosaic,"2,540.00",15/01/2024
Delivery Units,Adults and Health,Other Agencies - Third Party P,0090675782,TBG Mosaic,"2,676.00",15/01/2024
Delivery Units,Adults and Health,Other Agencies - Third Party P,0090675783,TBG Mosaic,"2,676.00",15/01/2024
Delivery Units,Adults and Health,Other Agencies - Third Party P,0090675784,TBG Mosaic,"2,540.00",15/01/2024
Delivery Units,Adults and Health,Other Agencies - Third Party P,0090675785,TBG Mosaic,"2,676.00",15/01/2024
Delivery Units,Adults and Health,Other Agencies - Third Party P,0090675786,TBG Mosaic,"2,676.00",15/01/2024
Delivery Units,Adults and Health,Other Agencies - Third Party P,0090675787,TBG Mosaic,"2,540.00",15/01/2024
Delivery Units,Adults and Health,Other Agencies - Third Party P,0090675788,TBG Mosaic,"2,676.00",15/01/2024
Delivery Units,Adults and Health,Other Agencies - Third Party P,0090675789,TBG Mosaic,"2,540.00",15/01/2024
Delivery Units,Adults and Health,Other Agencies - Third Party P,0090675790,TBG Mosaic,"2,540.00",15/01/2024
Delivery Units,Adults and Health,Other Agencies - Third Party P,0090675791,TBG Mosaic,"2,540.00",15/01/2024
Delivery Units,Adults and Health,Other Agencies - Third Party P,0090675792,TBG Mosaic,"2,540.00",15/01/2024
Delivery Units,Adults and Health,Other Agencies - Third Party P,0090675794,TBG Mosaic,"2,676.00",15/01/2024
Delivery Units,Adults and Health,Other Agencies - Third Party P,0090675795,TBG Mosaic,"-14,756.31",15/01/2024
Delivery Units,Adults and Health,Other Agencies - Third Party P,0090675796,TBG Mosaic,"2,676.00",15/01/2024
Delivery Units,Adults and Health,Other Agencies - Third Party P,0090675797,TBG Mosaic,"2,540.00",15/01/2024
Delivery Units,Adults and Health,Other Agencies - Third Party P,0090675798,TBG Mosaic,"2,540.00",15/01/2024
Delivery Units,Adults and Health,Other Agencies - Third Party P,0090675800,TBG Mosaic,"2,540.00",15/01/2024
Delivery Units,Adults and Health,Other Agencies - Third Party P,0090675801,TBG Mosaic,"15,240.00",15/01/2024
Delivery Units,Adults and Health,Other Agencies - Third Party P,0090675802,TBG Mosaic,"2,676.00",15/01/2024
Delivery Units,Adults and Health,Other Agencies - Third Party P,0090675803,TBG Mosaic,"2,676.00",15/01/2024
Delivery Units,Adults and Health,Other Agencies - Third Party P,0090675805,TBG Mosaic,"2,540.00",15/01/2024
Delivery Units,Adults and Health,Other Agencies - Third Party P,0090675807,TBG Mosaic,"2,540.00",15/01/2024
Delivery Units,Adults and Health,Other Agencies - Third Party P,0090675808,TBG Mosaic,"2,540.00",15/01/2024
Delivery Units,Adults and Health,Other Agencies - Third Party P,0090675809,TBG Mosaic,"2,540.00",15/01/2024
Delivery Units,Adults and Health,Other Agencies - Third Party P,0090675810,TBG Mosaic,"2,540.00",15/01/2024
Delivery Units,Adults and Health,Other Agencies - Third Party P,0090680294,GCH (North London) t/a The Tudors,"2,346.00",23/01/2024
Delivery Units,Adults and Health,Other Agencies - Third Party P,0090680297,Achieve Together Limited,"11,881.44",23/01/2024
Delivery Units,Adults and Health,Other Agencies - Third Party P,0090680298,Achieve Together Limited,"3,419.96",23/01/2024
Delivery Units,Adults and Health,Other Agencies - Third Party P,0090680303,FINBOND LIMITED,"3,642.85",23/01/2024
Delivery Units,Adults and Health,Other Agencies - Third Party P,0090680305,FINBOND LIMITED,"8,432.00",23/01/2024
Delivery Units,Adults and Health,Other Agencies - Third Party P,0090680831,Achieve Together Limited,"11,881.44",23/01/2024
Delivery Units,Adults and Health,Other Agencies - Third Party P,0090680832,Achieve Together Limited,"3,419.96",23/01/2024
Delivery Units,Adults and Health,Other Agencies - Third Party P,0090682068,Sydmar Lodge Limited,"5,535.71",25/01/2024
Delivery Units,Adults and Health,Other Agencies - Third Party P,0090682069,Sydmar Lodge Limited,"4,353.29",25/01/2024
Delivery Units,Adults and Health,Other Agencies - Third Party P,0090682070,Sydmar Lodge Limited,"5,535.71",25/01/2024
Delivery Units,Adults and Health,Other Agencies - Third Party P,0090682071,Sydmar Lodge Limited,"5,535.71",25/01/2024
Delivery Units,Adults and Health,Other Agencies - Third Party P,0090682072,Sydmar Lodge Limited,"6,973.36",25/01/2024
Delivery Units,Adults and Health,Other Agencies - Third Party P,0090682074,Sydmar Lodge Limited,"7,144.61",25/01/2024
Delivery Units,Adults and Health,Other Agencies - Third Party P,0090682075,Sydmar Lodge Limited,"5,872.89",25/01/2024
Delivery Units,Adults and Health,Other Agencies - Third Party P,0090682076,Sydmar Lodge Limited,"7,781.00",25/01/2024
Delivery Units,Adults and Health,Other Agencies - Third Party P,0090684890,Achieve Together Limited,"3,030.04",30/01/2024
Delivery Units,Adults and Health,Other Agencies - Third Party P,0090685176,Achieve Together Limited,"4,075.27",30/01/2024
Delivery Units,Adults and Health,Other Agencies - Third Party P,0090673147,VILLA SCALABRINI,"4,428.57",05/01/2024
Delivery Units,Adults and Health,Other Agencies - Third Party P,0090673148,VILLA SCALABRINI,"4,285.71",05/01/2024
Delivery Units,Adults and Health,Other Agencies - Third Party P,0090673149,VILLA SCALABRINI,"4,428.57",05/01/2024
Delivery Units,Adults and Health,Other Agencies - Third Party P,0090673545,LIVABILITY,"3,740.44",10/01/2024
Delivery Units,Adults and Health,Other Agencies - Third Party P,0090673548,LIVABILITY,"4,720.12",10/01/2024
Delivery Units,Adults and Health,Other Agencies - Third Party P,0090674659,WOODFIELD HOUSE,"14,081.60",10/01/2024
Delivery Units,Adults and Health,Other Agencies - Third Party P,0090681331,AGUDAS ISRAEL HOUSING ASSCTN LTD,"4,428.57",25/01/2024
Delivery Units,Adults and Health,Other Agencies - Third Party P,0090681332,AGUDAS ISRAEL HOUSING ASSCTN LTD,"12,493.00",25/01/2024
Delivery Units,Adults and Health,Other Agencies - Third Party P,0090673175,Allied Care (MH) Ltd,"5,168.00",05/01/2024
Delivery Units,Adults and Health,Other Agencies - Third Party P,0090673177,Friends of The Elderly (Retired Nurses,"5,358.35",05/01/2024
Delivery Units,Adults and Health,Other Agencies - Third Party P,0090673178,BUPA CARE HOME (GL) Limited,"4,262.77",05/01/2024
Delivery Units,Adults and Health,Other Agencies - Third Party P,0090673179,BUPA CARE HOME (GL) Limited,"4,125.26",05/01/2024
Delivery Units,Adults and Health,Other Agencies - Third Party P,0090673180,BUPA CARE HOME (GL) Limited,"4,262.77",05/01/2024
Delivery Units,Adults and Health,Other Agencies - Third Party P,0090673181,BUPA CARE HOME (GL) Limited,"4,125.26",05/01/2024
Delivery Units,Adults and Health,Other Agencies - Third Party P,0090673182,BUPA CARE HOME (GL) Limited,"2,200.14",05/01/2024
Delivery Units,Adults and Health,Other Agencies - Third Party P,0090674184,BUPA CARE HOMES,"2,732.00",10/01/2024
Delivery Units,Adults and Health,Other Agencies - Third Party P,0090674192,JEWISH CARE,"4,481.48",10/01/2024
Delivery Units,Adults and Health,Other Agencies - Third Party P,0090674195,JEWISH CARE,"3,056.00",10/01/2024
Delivery Units,Adults and Health,Other Agencies - Third Party P,0090674197,JEWISH CARE,"3,056.00",10/01/2024
Delivery Units,Adults and Health,Other Agencies - Third Party P,0090674209,JEWISH CARE,"3,056.00",10/01/2024
Delivery Units,Adults and Health,Other Agencies - Third Party P,0090674218,JEWISH CARE,"3,056.00",10/01/2024
Delivery Units,Adults and Health,Other Agencies - Third Party P,0090674222,JEWISH CARE,"5,286.40",10/01/2024
Delivery Units,Adults and Health,Other Agencies - Third Party P,0090674225,LIFESTYLE CARE PLC,"3,200.00",10/01/2024
Delivery Units,Adults and Health,Other Agencies - Third Party P,0090674226,ELMHURST RESIDENTIAL HOME,"3,800.00",10/01/2024
Delivery Units,Adults and Health,Other Agencies - Third Party P,0090674227,JEWISH CARE,"3,056.00",10/01/2024
Delivery Units,Adults and Health,Other Agencies - Third Party P,0090674232,NAZARETH HOUSE,"2,890.08",10/01/2024
Delivery Units,Adults and Health,Other Agencies - Third Party P,0090674233,JEWISH CARE,"2,896.00",10/01/2024
Delivery Units,Adults and Health,Other Agencies - Third Party P,0090674250,NAZARETH HOUSE,"2,740.00",10/01/2024
Delivery Units,Adults and Health,Other Agencies - Third Party P,0090674252,ELM PARK LODGE,"3,384.92",10/01/2024
Delivery Units,Adults and Health,Other Agencies - Third Party P,0090674254,JEWISH CARE,"3,056.00",10/01/2024
Delivery Units,Adults and Health,Other Agencies - Third Party P,0090674263,THE LIMES RESIDENTIAL HOME,"3,376.00",10/01/2024
Delivery Units,Adults and Health,Other Agencies - Third Party P,0090674270,JEWISH CARE,"3,056.00",10/01/2024
Delivery Units,Adults and Health,Other Agencies - Third Party P,0090674271,JEWISH CARE,"3,056.00",10/01/2024
Delivery Units,Adults and Health,Other Agencies - Third Party P,0090674272,JEWISH CARE,"3,056.00",10/01/2024
Delivery Units,Adults and Health,Other Agencies - Third Party P,0090674275,THE LIMES RESIDENTIAL HOME,"3,336.00",10/01/2024
Delivery Units,Adults and Health,Other Agencies - Third Party P,0090674276,JEWISH CARE,"2,896.00",10/01/2024
Delivery Units,Adults and Health,Other Agencies - Third Party P,0090674280,JEWISH CARE,"2,896.00",10/01/2024
Delivery Units,Adults and Health,Other Agencies - Third Party P,0090674281,ELEANOR PALMER TRUST NO 2 A/C.,"4,400.00",10/01/2024
Delivery Units,Adults and Health,Other Agencies - Third Party P,0090674282,ELEANOR PALMER TRUST NO 2 A/C.,"4,400.00",10/01/2024
Delivery Units,Adults and Health,Other Agencies - Third Party P,0090674288,Aarandale Manor Care Home,"5,000.00",10/01/2024
Delivery Units,Adults and Health,Other Agencies - Third Party P,0090674290,JEWISH CARE,"3,720.36",10/01/2024
Delivery Units,Adults and Health,Other Agencies - Third Party P,0090674291,JEWISH CARE,"3,056.00",10/01/2024
Delivery Units,Adults and Health,Other Agencies - Third Party P,0090674292,NAZARETH HOUSE,"2,890.08",10/01/2024
Delivery Units,Adults and Health,Other Agencies - Third Party P,0090674296,CEDARS NURSING HOME,"4,800.00",10/01/2024
Delivery Units,Adults and Health,Other Agencies - Third Party P,0090674298,JEWISH CARE,"3,056.00",10/01/2024
Delivery Units,Adults and Health,Other Agencies - Third Party P,0090674302,BUPA CARE HOMES,"3,577.92",10/01/2024
Delivery Units,Adults and Health,Other Agencies - Third Party P,0090674304,SAGE NURSING HOME,"3,620.00",10/01/2024
Delivery Units,Adults and Health,Other Agencies - Third Party P,0090674306,ELEANOR PALMER TRUST NO 2 A/C.,"4,400.00",10/01/2024
Delivery Units,Adults and Health,Other Agencies - Third Party P,0090674307,JEWISH CARE,"3,056.00",10/01/2024
Delivery Units,Adults and Health,Other Agencies - Third Party P,0090674309,NAZARETH HOUSE,"2,890.08",10/01/2024
Delivery Units,Adults and Health,Other Agencies - Third Party P,0090674313,ELMHURST RESIDENTIAL HOME,"3,600.00",10/01/2024
Delivery Units,Adults and Health,Other Agencies - Third Party P,0090674315,NAZARETH HOUSE,"2,740.00",10/01/2024
Delivery Units,Adults and Health,Other Agencies - Third Party P,0090674321,APPLE TREE COURT CARE HOME,"3,604.00",10/01/2024
Delivery Units,Adults and Health,Other Agencies - Third Party P,0090674322,APPLE TREE COURT CARE HOME,"3,604.00",10/01/2024
Delivery Units,Adults and Health,Other Agencies - Third Party P,0090674332,THE LIMES RESIDENTIAL HOME,"3,620.00",10/01/2024
Delivery Units,Adults and Health,Other Agencies - Third Party P,0090674336,JEWISH CARE,"2,896.00",10/01/2024
Delivery Units,Adults and Health,Other Agencies - Third Party P,0090674338,APPLE TREE COURT CARE HOME,"4,556.00",10/01/2024
Delivery Units,Adults and Health,Other Agencies - Third Party P,0090674341,LIFESTYLE CARE PLC,"3,604.00",10/01/2024
Delivery Units,Adults and Health,Other Agencies - Third Party P,0090674343,Aarandale Manor Care Home,"5,200.00",10/01/2024
Delivery Units,Adults and Health,Other Agencies - Third Party P,0090674353,BUPA NURSING HOMES LTD - ARKLEY,"3,166.36",10/01/2024
Delivery Units,Adults and Health,Other Agencies - Third Party P,0090674360,NAZARETH HOUSE,"-6,752.14",10/01/2024
Delivery Units,Adults and Health,Other Agencies - Third Party P,0090674361,JEWISH CARE,"7,874.40",10/01/2024
Delivery Units,Adults and Health,Other Agencies - Third Party P,0090674363,ELMHURST RESIDENTIAL HOME,"4,000.00",10/01/2024
Delivery Units,Adults and Health,Other Agencies - Third Party P,0090674364,APPLE TREE COURT CARE HOME,"3,604.00",10/01/2024
Delivery Units,Adults and Health,Other Agencies - Third Party P,0090674373,NAZARETH HOUSE,"4,828.88",10/01/2024
Delivery Units,Adults and Health,Other Agencies - Third Party P,0090674380,JEWISH CARE,"3,056.00",10/01/2024
Delivery Units,Adults and Health,Other Agencies - Third Party P,0090674385,CEDARS NURSING HOME,"5,200.00",10/01/2024
Delivery Units,Adults and Health,Other Agencies - Third Party P,0090674396,CARE UK COMMUNITY PARTNERSHIPS,"-5,640.43",10/01/2024
Delivery Units,Adults and Health,Other Agencies - Third Party P,0090674397,SAGE NURSING HOME,"3,256.00",10/01/2024
Delivery Units,Adults and Health,Other Agencies - Third Party P,0090674400,JEWISH CARE,"3,052.00",10/01/2024
Delivery Units,Adults and Health,Other Agencies - Third Party P,0090674403,NAZARETH HOUSE,"4,400.00",10/01/2024
Delivery Units,Adults and Health,Other Agencies - Third Party P,0090674410,NAZARETH HOUSE,"3,140.00",10/01/2024
Delivery Units,Adults and Health,Other Agencies - Third Party P,0090674413,NAZARETH HOUSE,"1,135.39",10/01/2024
Delivery Units,Adults and Health,Other Agencies - Third Party P,0090674414,ELEANOR PALMER TRUST NO 2 A/C.,"6,714.29",10/01/2024
Delivery Units,Adults and Health,Other Agencies - Third Party P,0090674422,NAZARETH HOUSE,"3,019.68",10/01/2024
Delivery Units,Adults and Health,Other Agencies - Third Party P,0090674424,CARE UK COMMUNITY PARTNERSHIPS,"3,852.00",10/01/2024
Delivery Units,Adults and Health,Other Agencies - Third Party P,0090674425,APPLE TREE COURT CARE HOME,"5,124.00",10/01/2024
Delivery Units,Adults and Health,Other Agencies - Third Party P,0090674427,NAZARETH HOUSE,"3,019.68",10/01/2024
Delivery Units,Adults and Health,Other Agencies - Third Party P,0090674428,NAZARETH HOUSE,"3,140.00",10/01/2024
Delivery Units,Adults and Health,Other Agencies - Third Party P,0090674429,Aarandale Manor Care Home,"5,000.00",10/01/2024
Delivery Units,Adults and Health,Other Agencies - Third Party P,0090674431,THE LIMES RESIDENTIAL HOME,"3,400.00",10/01/2024
Delivery Units,Adults and Health,Other Agencies - Third Party P,0090674433,NAZARETH HOUSE,"2,890.08",10/01/2024
Delivery Units,Adults and Health,Other Agencies - Third Party P,0090674436,CEDARS NURSING HOME,"5,200.00",10/01/2024
Delivery Units,Adults and Health,Other Agencies - Third Party P,0090674449,NAZARETH HOUSE,"3,140.00",10/01/2024
Delivery Units,Adults and Health,Other Agencies - Third Party P,0090674464,SAGE NURSING HOME,"2,856.00",10/01/2024
Delivery Units,Adults and Health,Other Agencies - Third Party P,0090674468,THE LIMES RESIDENTIAL HOME,"2,892.00",10/01/2024
Delivery Units,Adults and Health,Other Agencies - Third Party P,0090674473,THE LIMES RESIDENTIAL HOME,"2,892.00",10/01/2024
Delivery Units,Adults and Health,Other Agencies - Third Party P,0090674479,ELEANOR PALMER TRUST NO 2 A/C.,"4,400.00",10/01/2024
Delivery Units,Adults and Health,Other Agencies - Third Party P,0090674483,ELEANOR PALMER TRUST NO 2 A/C.,"4,000.00",10/01/2024
Delivery Units,Adults and Health,Other Agencies - Third Party P,0090674485,JEWISH CARE,"2,896.00",10/01/2024
Delivery Units,Adults and Health,Other Agencies - Third Party P,0090674486,JEWISH CARE,"3,056.00",10/01/2024
Delivery Units,Adults and Health,Other Agencies - Third Party P,0090674490,APPLE TREE COURT CARE HOME,"4,400.00",10/01/2024
Delivery Units,Adults and Health,Other Agencies - Third Party P,0090674491,JEWISH CARE,"3,056.00",10/01/2024
Delivery Units,Adults and Health,Other Agencies - Third Party P,0090674492,ABBEY RAVENSCROFT PARK NURSING HOME,"4,032.20",10/01/2024
Delivery Units,Adults and Health,Other Agencies - Third Party P,0090674493,JEWISH CARE,"2,896.00",10/01/2024
Delivery Units,Adults and Health,Other Agencies - Third Party P,0090674495,JEWISH CARE,"3,056.00",10/01/2024
Delivery Units,Adults and Health,Other Agencies - Third Party P,0090674496,JEWISH CARE,"3,056.00",10/01/2024
Delivery Units,Adults and Health,Other Agencies - Third Party P,0090674499,ELEANOR PALMER TRUST NO 2 A/C.,"4,400.00",10/01/2024
Delivery Units,Adults and Health,Other Agencies - Third Party P,0090674500,BUPA CARE HOMES,"2,976.00",10/01/2024
Delivery Units,Adults and Health,Other Agencies - Third Party P,0090674501,LIFESTYLE CARE PLC,"3,600.00",10/01/2024
Delivery Units,Adults and Health,Other Agencies - Third Party P,0090674503,NAZARETH HOUSE,"2,890.08",10/01/2024
Delivery Units,Adults and Health,Other Agencies - Third Party P,0090674505,BUPA CARE HOMES,"3,166.36",10/01/2024
Delivery Units,Adults and Health,Other Agencies - Third Party P,0090674506,JEWISH CARE,"2,896.00",10/01/2024
Delivery Units,Adults and Health,Other Agencies - Third Party P,0090674515,ELEANOR PALMER TRUST NO 2 A/C.,"4,000.00",10/01/2024
Delivery Units,Adults and Health,Other Agencies - Third Party P,0090674518,APPLE TREE COURT CARE HOME,"3,800.00",10/01/2024
Delivery Units,Adults and Health,Other Agencies - Third Party P,0090674519,THE LIMES RESIDENTIAL HOME,"3,416.00",10/01/2024
Delivery Units,Adults and Health,Other Agencies - Third Party P,0090674524,ELEANOR PALMER TRUST NO 2 A/C.,"4,000.00",10/01/2024
Delivery Units,Adults and Health,Other Agencies - Third Party P,0090674532,JEWISH CARE,"3,056.00",10/01/2024
Delivery Units,Adults and Health,Other Agencies - Third Party P,0090674536,BUPA CARE HOMES,"4,000.00",10/01/2024
Delivery Units,Adults and Health,Other Agencies - Third Party P,0090674545,JEWISH CARE,"3,056.00",10/01/2024
Delivery Units,Adults and Health,Other Agencies - Third Party P,0090674549,JEWISH CARE,"3,056.00",10/01/2024
Delivery Units,Adults and Health,Other Agencies - Third Party P,0090674560,JEWISH CARE,"3,056.00",10/01/2024
Delivery Units,Adults and Health,Other Agencies - Third Party P,0090674561,NAZARETH HOUSE,"3,140.00",10/01/2024
Delivery Units,Adults and Health,Other Agencies - Third Party P,0090674568,NAZARETH HOUSE,"2,467.14",10/01/2024
Delivery Units,Adults and Health,Other Agencies - Third Party P,0090674569,NAZARETH HOUSE,-785.00,10/01/2024
Delivery Units,Adults and Health,Other Agencies - Third Party P,0090674571,NAZARETH HOUSE,"3,140.00",10/01/2024
Delivery Units,Adults and Health,Other Agencies - Third Party P,0090674573,THE LIMES RESIDENTIAL HOME,"3,200.00",10/01/2024
Delivery Units,Adults and Health,Other Agencies - Third Party P,0090674575,NAZARETH HOUSE,"3,140.00",10/01/2024
Delivery Units,Adults and Health,Other Agencies - Third Party P,0090674576,JEWISH CARE,"2,896.00",10/01/2024
Delivery Units,Adults and Health,Other Agencies - Third Party P,0090674596,CEDARS NURSING HOME,"4,000.00",10/01/2024
Delivery Units,Adults and Health,Other Agencies - Third Party P,0090674607,JEWISH CARE,"3,056.00",10/01/2024
Delivery Units,Adults and Health,Other Agencies - Third Party P,0090674611,THE LIMES RESIDENTIAL HOME,"3,336.00",10/01/2024
Delivery Units,Adults and Health,Other Agencies - Third Party P,0090674613,NAZARETH HOUSE,"2,890.08",10/01/2024
Delivery Units,Adults and Health,Other Agencies - Third Party P,0090674616,NAZARETH HOUSE,"4,104.00",10/01/2024
Delivery Units,Adults and Health,Other Agencies - Third Party P,0090674617,JEWISH CARE,"3,056.00",10/01/2024
Delivery Units,Adults and Health,Other Agencies - Third Party P,0090674620,JEWISH CARE,"2,896.00",10/01/2024
Delivery Units,Adults and Health,Other Agencies - Third Party P,0090674621,NAZARETH HOUSE,"2,740.00",10/01/2024
Delivery Units,Adults and Health,Other Agencies - Third Party P,0090674623,THE LIMES RESIDENTIAL HOME,"3,336.00",10/01/2024
Delivery Units,Adults and Health,Other Agencies - Third Party P,0090674624,NAZARETH HOUSE,"2,890.08",10/01/2024
Delivery Units,Adults and Health,Other Agencies - Third Party P,0090674626,JEWISH CARE,"3,056.00",10/01/2024
Delivery Units,Adults and Health,Other Agencies - Third Party P,0090674631,NAZARETH HOUSE,"2,740.00",10/01/2024
Delivery Units,Adults and Health,Other Agencies - Third Party P,0090674632,NAZARETH HOUSE,"2,890.08",10/01/2024
Delivery Units,Adults and Health,Other Agencies - Third Party P,0090674635,THE LIMES RESIDENTIAL HOME,"3,436.00",10/01/2024
Delivery Units,Adults and Health,Other Agencies - Third Party P,0090674641,NAZARETH HOUSE,"2,890.08",10/01/2024
Delivery Units,Adults and Health,Other Agencies - Third Party P,0090674642,JEWISH CARE,"3,056.00",10/01/2024
Delivery Units,Adults and Health,Other Agencies - Third Party P,0090674644,NAZARETH HOUSE,"2,890.08",10/01/2024
Delivery Units,Adults and Health,Other Agencies - Third Party P,0090674648,ELEANOR PALMER TRUST NO 2 A/C.,"4,400.00",10/01/2024
Delivery Units,Adults and Health,Other Agencies - Third Party P,0090674660,JEWISH CARE,"3,212.00",10/01/2024
Delivery Units,Adults and Health,Other Agencies - Third Party P,0090674663,APPLE TREE COURT CARE HOME,"5,124.00",10/01/2024
Delivery Units,Adults and Health,Other Agencies - Third Party P,0090674677,THE LIMES RESIDENTIAL HOME,"3,620.00",10/01/2024
Delivery Units,Adults and Health,Other Agencies - Third Party P,0090674681,NAZARETH HOUSE,"3,140.00",10/01/2024
Delivery Units,Adults and Health,Other Agencies - Third Party P,0090674685,CARE UK COMMUNITY PARTNERSHIPS,"3,852.00",10/01/2024
Delivery Units,Adults and Health,Other Agencies - Third Party P,0090674687,NAZARETH HOUSE,"3,140.00",10/01/2024
Delivery Units,Adults and Health,Other Agencies - Third Party P,0090674688,JEWISH CARE,"3,052.00",10/01/2024
Delivery Units,Adults and Health,Other Agencies - Third Party P,0090674694,ELM PARK LODGE,"3,400.00",10/01/2024
Delivery Units,Adults and Health,Other Agencies - Third Party P,0090674701,NAZARETH HOUSE,448.57,10/01/2024
Delivery Units,Adults and Health,Other Agencies - Third Party P,0090674704,JEWISH CARE,"3,052.00",10/01/2024
Delivery Units,Adults and Health,Other Agencies - Third Party P,0090674705,NAZARETH HOUSE,"3,140.00",10/01/2024
Delivery Units,Adults and Health,Other Agencies - Third Party P,0090674708,CARE UK COMMUNITY PARTNERSHIPS,275.14,10/01/2024
Delivery Units,Adults and Health,Other Agencies - Third Party P,0090674711,CARE UK COMMUNITY PARTNERSHIPS,"3,852.00",10/01/2024
Delivery Units,Adults and Health,Other Agencies - Third Party P,0090674714,NAZARETH HOUSE,"3,925.00",10/01/2024
Delivery Units,Adults and Health,Other Agencies - Third Party P,0090674719,NAZARETH HOUSE,"-3,631.71",10/01/2024
Delivery Units,Adults and Health,Other Agencies - Third Party P,0090674720,CARE UK COMMUNITY PARTNERSHIPS,"13,069.29",10/01/2024
Delivery Units,Adults and Health,Other Agencies - Third Party P,0090675948,METHODIST HOMES FOR THE AGED,"4,402.76",15/01/2024
Delivery Units,Adults and Health,Other Agencies - Third Party P,0090676699,EASTSIDE HOUSE CARE HOME,"3,800.00",16/01/2024
Delivery Units,Adults and Health,Other Agencies - Third Party P,0090676701,EASTSIDE HOUSE CARE HOME,"3,800.00",16/01/2024
Delivery Units,Adults and Health,Other Agencies - Third Party P,0090676702,EASTSIDE HOUSE CARE HOME,"3,920.00",16/01/2024
Delivery Units,Adults and Health,Other Agencies - Third Party P,0090676703,EASTSIDE HOUSE CARE HOME,"3,720.00",16/01/2024
Delivery Units,Adults and Health,Other Agencies - Third Party P,0090676704,EASTSIDE HOUSE CARE HOME,"3,800.00",16/01/2024
Delivery Units,Adults and Health,Other Agencies - Third Party P,0090676705,EASTSIDE HOUSE CARE HOME,"3,800.00",16/01/2024
Delivery Units,Adults and Health,Other Agencies - Third Party P,0090679496,Simiks Care Limited,"4,365.15",19/01/2024
Delivery Units,Adults and Health,Other Agencies - Third Party P,0090679497,Simiks Care Limited,"4,365.15",19/01/2024
Delivery Units,Adults and Health,Other Agencies - Third Party P,0090679498,Simiks Care Limited,"4,224.34",19/01/2024
Delivery Units,Adults and Health,Other Agencies - Third Party P,0090679499,Simiks Care Limited,"4,365.15",19/01/2024
Delivery Units,Adults and Health,Other Agencies - Third Party P,0090679500,Simiks Care Limited,"4,224.34",19/01/2024
Delivery Units,Adults and Health,Other Agencies - Third Party P,0090679501,Simiks Care Limited,"4,365.15",19/01/2024
Delivery Units,Adults and Health,Other Agencies - Third Party P,0090679502,Simiks Care Limited,"4,365.15",19/01/2024
Delivery Units,Adults and Health,Other Agencies - Third Party P,0090679503,Simiks Care Limited,"4,224.34",19/01/2024
Delivery Units,Adults and Health,Other Agencies - Third Party P,0090679504,Simiks Care Limited,"4,365.15",19/01/2024
Delivery Units,Adults and Health,Other Agencies - Third Party P,0090679505,Simiks Care Limited,"4,224.34",19/01/2024
Delivery Units,Adults and Health,Other Agencies - Third Party P,0090679506,Simiks Care Limited,"4,365.15",19/01/2024
Delivery Units,Adults and Health,Other Agencies - Third Party P,0090679635,Boughton Lodge Care Home,"6,200.00",19/01/2024
Delivery Units,Adults and Health,Other Agencies - Third Party P,0090679637,Boughton Lodge Care Home,"3,100.00",19/01/2024
Delivery Units,Adults and Health,Other Agencies - Third Party P,0090680288,ANASTASIA LODGE,"3,620.00",23/01/2024
Delivery Units,Adults and Health,Other Agencies - Third Party P,0090680295,THE WOODSIDE HOME,"3,157.13",23/01/2024
Delivery Units,Adults and Health,Other Agencies - Third Party P,0090680296,THE WOODSIDE HOME,"3,400.00",23/01/2024
Delivery Units,Adults and Health,Other Agencies - Third Party P,0090680301,METHODIST HOMES FOR THE AGED,"4,208.88",23/01/2024
Delivery Units,Adults and Health,Other Agencies - Third Party P,0090680319,Newgrange of Cheshunt Ltd,"3,755.43",23/01/2024
Delivery Units,Adults and Health,Other Agencies - Third Party P,0090680320,Newgrange of Cheshunt Ltd,"3,755.43",23/01/2024
Delivery Units,Adults and Health,Other Agencies - Third Party P,0090680328,NIGHTINGALE HOUSE,"4,207.14",23/01/2024
Delivery Units,Adults and Health,Other Agencies - Third Party P,0090680329,NIGHTINGALE HOUSE,"3,782.00",23/01/2024
Delivery Units,Adults and Health,Other Agencies - Third Party P,0090680331,NIGHTINGALE HOUSE,"3,826.29",23/01/2024
Delivery Units,Adults and Health,Other Agencies - Third Party P,0090680333,NIGHTINGALE HOUSE,"3,941.43",23/01/2024
Delivery Units,Adults and Health,Other Agencies - Third Party P,0090680334,NIGHTINGALE HOUSE,"3,941.43",23/01/2024
Delivery Units,Adults and Health,Other Agencies - Third Party P,0090680335,NIGHTINGALE HOUSE,"3,826.29",23/01/2024
Delivery Units,Adults and Health,Other Agencies - Third Party P,0090680823,Brownlow Enterprises Ltd,"4,207.14",23/01/2024
Delivery Units,Adults and Health,Other Agencies - Third Party P,0090680824,Brownlow Enterprises Ltd,"4,207.14",23/01/2024
Delivery Units,Adults and Health,Other Agencies - Third Party P,0090680825,B & M CARE,"4,295.71",23/01/2024
Delivery Units,Adults and Health,Other Agencies - Third Party P,0090680826,B & M CARE,"4,207.14",23/01/2024
Delivery Units,Adults and Health,Other Agencies - Third Party P,0090680828,B & M CARE,"5,314.29",23/01/2024
Delivery Units,Adults and Health,Other Agencies - Third Party P,0090680830,B & M CARE,"3,764.29",23/01/2024
Delivery Units,Adults and Health,Other Agencies - Third Party P,0090681259,THE WOODSIDE HOME,"2,800.00",25/01/2024
Delivery Units,Adults and Health,Other Agencies - Third Party P,0090681260,THE WOODSIDE HOME,"2,676.00",25/01/2024
Delivery Units,Adults and Health,Other Agencies - Third Party P,0090681261,THE WOODSIDE HOME,"2,540.00",25/01/2024
Delivery Units,Adults and Health,Other Agencies - Third Party P,0090681262,THE WOODSIDE HOME,"3,200.00",25/01/2024
Delivery Units,Adults and Health,Other Agencies - Third Party P,0090681263,THE WOODSIDE HOME,"3,200.00",25/01/2024
Delivery Units,Adults and Health,Other Agencies - Third Party P,0090681266,NIGHTINGALE HOUSE,"3,941.43",25/01/2024
Delivery Units,Adults and Health,Other Agencies - Third Party P,0090681269,NIGHTINGALE HOUSE,"3,941.43",25/01/2024
Delivery Units,Adults and Health,Other Agencies - Third Party P,0090681271,NIGHTINGALE HOUSE,"3,782.00",25/01/2024
Delivery Units,Adults and Health,Other Agencies - Third Party P,0090681272,NIGHTINGALE HOUSE,"3,826.29",25/01/2024
Delivery Units,Adults and Health,Other Agencies - Third Party P,0090681273,NIGHTINGALE HOUSE,"3,826.29",25/01/2024
Delivery Units,Adults and Health,Other Agencies - Third Party P,0090681274,NIGHTINGALE HOUSE,"4,207.14",25/01/2024
Delivery Units,Adults and Health,Other Agencies - Third Party P,0090681280,QUANTUM CARE LIMITED,"4,207.14",25/01/2024
Delivery Units,Adults and Health,Other Agencies - Third Party P,0090681291,TORRINGTON HOMES,"4,207.14",25/01/2024
Delivery Units,Adults and Health,Other Agencies - Third Party P,0090681293,TORRINGTON HOMES,"2,448.78",25/01/2024
Delivery Units,Adults and Health,Other Agencies - Third Party P,0090681296,TORRINGTON HOMES,"4,207.14",25/01/2024
Delivery Units,Adults and Health,Other Agencies - Third Party P,0090681323,MEERA NURSING HOME LIMITED,"4,003.43",25/01/2024
Delivery Units,Adults and Health,Other Agencies - Third Party P,0090681324,MEERA NURSING HOME LIMITED,"3,755.43",25/01/2024
Delivery Units,Adults and Health,Other Agencies - Third Party P,0090681333,Hillyfield Rest Home Limited,"4,871.34",25/01/2024
Delivery Units,Adults and Health,Other Agencies - Third Party P,0090681334,Hillyfield Rest Home Limited,"4,871.34",25/01/2024
Delivery Units,Adults and Health,Other Agencies - Third Party P,0090681346,Alexandra House (Runwood Homes),"1,429.71",25/01/2024
Delivery Units,Adults and Health,Other Agencies - Third Party P,0090682013,MEERA NURSING HOME LIMITED,"4,003.43",25/01/2024
Delivery Units,Adults and Health,Other Agencies - Third Party P,0090682015,MEERA NURSING HOME LIMITED,"4,003.43",25/01/2024
Delivery Units,Adults and Health,Other Agencies - Third Party P,0090682016,MEERA NURSING HOME LIMITED,"3,755.43",25/01/2024
Delivery Units,Adults and Health,Other Agencies - Third Party P,0090682019,Avon Lodge UK Ltd,"3,857.14",25/01/2024
Delivery Units,Adults and Health,Other Agencies - Third Party P,0090682024,Barchester Healthcare,"5,456.00",25/01/2024
Delivery Units,Adults and Health,Other Agencies - Third Party P,0090682027,EASTSIDE HOUSE CARE HOME,"3,800.00",25/01/2024
Delivery Units,Adults and Health,Other Agencies - Third Party P,0090682082,Westbourne Care Home,"7,918.29",25/01/2024
Delivery Units,Adults and Health,Other Agencies - Third Party P,0090682087,THE CHRISTIAN CARE TRUST,"4,317.85",25/01/2024
Delivery Units,Adults and Health,Other Agencies - Third Party P,0090682090,3A Care (London) Ltd,"15,902.14",25/01/2024
Delivery Units,Adults and Health,Other Agencies - Third Party P,0090682095,Green Trees Care Home,"4,384.33",25/01/2024
Delivery Units,Adults and Health,Other Agencies - Third Party P,0090682096,Green Trees Care Home,"4,007.84",25/01/2024
Delivery Units,Adults and Health,Other Agencies - Third Party P,0090682102,Friends of The Elderly (Retired Nurses,"5,358.35",25/01/2024
Delivery Units,Adults and Health,Other Agencies - Third Party P,0090684006,Brownlow Enterprises Ltd,814.29,26/01/2024
Delivery Units,Adults and Health,Other Agencies - Third Party P,0090684892,EASTSIDE HOUSE CARE HOME,"3,920.00",30/01/2024
Delivery Units,Adults and Health,Other Agencies - Third Party P,0090685153,Simiks Care Limited,451.86,30/01/2024
Delivery Units,Adults and Health,Other Agencies - Third Party P,0090685170,DENVILLE HALL,"8,910.00",30/01/2024
Delivery Units,Adults and Health,Other Agencies - Third Party P,0090672497,Kosh Care Ltd,240.22,02/01/2024
Delivery Units,Adults and Health,Other Agencies - Third Party P,0090672498,Kosh Care Ltd,333.37,02/01/2024
Delivery Units,Adults and Health,Other Agencies - Third Party P,0090672500,Kosh Care Ltd,377.49,02/01/2024
Delivery Units,Adults and Health,Other Agencies - Third Party P,0090672501,Kosh Care Ltd,210.81,02/01/2024
Delivery Units,Adults and Health,Other Agencies - Third Party P,0090672502,Kosh Care Ltd,387.30,02/01/2024
Delivery Units,Adults and Health,Other Agencies - Third Party P,0090672503,Kosh Care Ltd,274.54,02/01/2024
Delivery Units,Adults and Health,Other Agencies - Third Party P,0090672504,Kosh Care Ltd,882.45,02/01/2024
Delivery Units,Adults and Health,Other Agencies - Third Party P,0090672505,Kosh Care Ltd,98.05,02/01/2024
Delivery Units,Adults and Health,Other Agencies - Third Party P,0090672509,Kosh Care Ltd,240.22,02/01/2024
Delivery Units,Adults and Health,Other Agencies - Third Party P,0090672510,Kosh Care Ltd,333.37,02/01/2024
Delivery Units,Adults and Health,Other Agencies - Third Party P,0090672511,Kosh Care Ltd,377.49,02/01/2024
Delivery Units,Adults and Health,Other Agencies - Third Party P,0090672512,Kosh Care Ltd,210.81,02/01/2024
Delivery Units,Adults and Health,Other Agencies - Third Party P,0090672513,Kosh Care Ltd,387.30,02/01/2024
Delivery Units,Adults and Health,Other Agencies - Third Party P,0090672514,Kosh Care Ltd,274.54,02/01/2024
Delivery Units,Adults and Health,Other Agencies - Third Party P,0090672515,Kosh Care Ltd,882.45,02/01/2024
Delivery Units,Adults and Health,Other Agencies - Third Party P,0090672516,Kosh Care Ltd,98.05,02/01/2024
Delivery Units,Adults and Health,Other Agencies - Third Party P,0090672520,Kosh Care Ltd,240.22,02/01/2024
Delivery Units,Adults and Health,Other Agencies - Third Party P,0090672521,Kosh Care Ltd,333.37,02/01/2024
Delivery Units,Adults and Health,Other Agencies - Third Party P,0090672522,Kosh Care Ltd,377.49,02/01/2024
Delivery Units,Adults and Health,Other Agencies - Third Party P,0090672523,Kosh Care Ltd,210.81,02/01/2024
Delivery Units,Adults and Health,Other Agencies - Third Party P,0090672524,Kosh Care Ltd,387.30,02/01/2024
Delivery Units,Adults and Health,Other Agencies - Third Party P,0090672525,Kosh Care Ltd,274.54,02/01/2024
Delivery Units,Adults and Health,Other Agencies - Third Party P,0090672526,Kosh Care Ltd,882.45,02/01/2024
Delivery Units,Adults and Health,Other Agencies - Third Party P,0090672527,Kosh Care Ltd,98.05,02/01/2024
Delivery Units,Adults and Health,Other Agencies - Third Party P,0090672531,Kosh Care Ltd,240.22,02/01/2024
Delivery Units,Adults and Health,Other Agencies - Third Party P,0090672532,Kosh Care Ltd,333.37,02/01/2024
Delivery Units,Adults and Health,Other Agencies - Third Party P,0090672533,Kosh Care Ltd,377.49,02/01/2024
Delivery Units,Adults and Health,Other Agencies - Third Party P,0090672534,Kosh Care Ltd,210.81,02/01/2024
Delivery Units,Adults and Health,Other Agencies - Third Party P,0090672535,Kosh Care Ltd,387.30,02/01/2024
Delivery Units,Adults and Health,Other Agencies - Third Party P,0090672536,Kosh Care Ltd,274.54,02/01/2024
Delivery Units,Adults and Health,Other Agencies - Third Party P,0090672537,Kosh Care Ltd,882.45,02/01/2024
Delivery Units,Adults and Health,Other Agencies - Third Party P,0090672538,Kosh Care Ltd,98.05,02/01/2024
Delivery Units,Adults and Health,Other Agencies - Third Party P,0090672548,Bliss Care and Training Ltd,567.00,02/01/2024
Delivery Units,Adults and Health,Other Agencies - Third Party P,0090672549,Bliss Care and Training Ltd,630.00,02/01/2024
Delivery Units,Adults and Health,Other Agencies - Third Party P,0090672550,Bliss Care and Training Ltd,351.00,02/01/2024
Delivery Units,Adults and Health,Other Agencies - Third Party P,0090672553,Bliss Care and Training Ltd,81.00,02/01/2024
Delivery Units,Adults and Health,Other Agencies - Third Party P,0090672556,Bliss Care and Training Ltd,63.00,02/01/2024
Delivery Units,Adults and Health,Other Agencies - Third Party P,0090672562,Bliss Care and Training Ltd,157.50,02/01/2024
Delivery Units,Adults and Health,Other Agencies - Third Party P,0090672563,Bliss Care and Training Ltd,189.00,02/01/2024
Delivery Units,Adults and Health,Other Agencies - Third Party P,0090672564,Bliss Care and Training Ltd,162.00,02/01/2024
Delivery Units,Adults and Health,Other Agencies - Third Party P,0090672565,Bliss Care and Training Ltd,220.50,02/01/2024
Delivery Units,Adults and Health,Other Agencies - Third Party P,0090672566,Bliss Care and Training Ltd,18.00,02/01/2024
Delivery Units,Adults and Health,Other Agencies - Third Party P,0090672568,Bliss Care and Training Ltd,333.00,02/01/2024
Delivery Units,Adults and Health,Other Agencies - Third Party P,0090672570,Bliss Care and Training Ltd,207.00,02/01/2024
Delivery Units,Adults and Health,Other Agencies - Third Party P,0090672571,Bliss Care and Training Ltd,94.50,02/01/2024
Delivery Units,Adults and Health,Other Agencies - Third Party P,0090672573,Bliss Care and Training Ltd,126.00,02/01/2024
Delivery Units,Adults and Health,Other Agencies - Third Party P,0090672575,Bliss Care and Training Ltd,63.00,02/01/2024
Delivery Units,Adults and Health,Other Agencies - Third Party P,0090672576,Bliss Care and Training Ltd,126.00,02/01/2024
Delivery Units,Adults and Health,Other Agencies - Third Party P,0090672577,Bliss Care and Training Ltd,504.00,02/01/2024
Delivery Units,Adults and Health,Other Agencies - Third Party P,0090672578,Bliss Care and Training Ltd,63.00,02/01/2024
Delivery Units,Adults and Health,Other Agencies - Third Party P,0090672579,Bliss Care and Training Ltd,157.50,02/01/2024
Delivery Units,Adults and Health,Other Agencies - Third Party P,0090672580,Bliss Care and Training Ltd,94.50,02/01/2024
Delivery Units,Adults and Health,Other Agencies - Third Party P,0090672581,Bliss Care and Training Ltd,139.50,02/01/2024
Delivery Units,Adults and Health,Other Agencies - Third Party P,0090672582,Bliss Care and Training Ltd,283.50,02/01/2024
Delivery Units,Adults and Health,Other Agencies - Third Party P,0090672583,Bliss Care and Training Ltd,684.00,02/01/2024
Delivery Units,Adults and Health,Other Agencies - Third Party P,0090672584,Bliss Care and Training Ltd,220.50,02/01/2024
Delivery Units,Adults and Health,Other Agencies - Third Party P,0090672585,Bliss Care and Training Ltd,207.00,02/01/2024
Delivery Units,Adults and Health,Other Agencies - Third Party P,0090672586,Bliss Care and Training Ltd,441.00,02/01/2024
Delivery Units,Adults and Health,Other Agencies - Third Party P,0090672587,Bliss Care and Training Ltd,283.50,02/01/2024
Delivery Units,Adults and Health,Other Agencies - Third Party P,0090672588,Bliss Care and Training Ltd,378.00,02/01/2024
Delivery Units,Adults and Health,Other Agencies - Third Party P,0090672591,Bliss Care and Training Ltd,630.00,02/01/2024
Delivery Units,Adults and Health,Other Agencies - Third Party P,0090672593,Bliss Care and Training Ltd,252.00,02/01/2024
Delivery Units,Adults and Health,Other Agencies - Third Party P,0090672594,Bliss Care and Training Ltd,157.50,02/01/2024
Delivery Units,Adults and Health,Other Agencies - Third Party P,0090672595,Bliss Care and Training Ltd,189.00,02/01/2024
Delivery Units,Adults and Health,Other Agencies - Third Party P,0090672596,Bliss Care and Training Ltd,346.50,02/01/2024
Delivery Units,Adults and Health,Other Agencies - Third Party P,0090672597,Bliss Care and Training Ltd,315.00,02/01/2024
Delivery Units,Adults and Health,Other Agencies - Third Party P,0090672598,Bliss Care and Training Ltd,157.50,02/01/2024
Delivery Units,Adults and Health,Other Agencies - Third Party P,0090672599,Bliss Care and Training Ltd,400.50,02/01/2024
Delivery Units,Adults and Health,Other Agencies - Third Party P,0090672601,Bliss Care and Training Ltd,306.00,02/01/2024
Delivery Units,Adults and Health,Other Agencies - Third Party P,0090672602,Bliss Care and Training Ltd,67.50,02/01/2024
Delivery Units,Adults and Health,Other Agencies - Third Party P,0090672604,Bliss Care and Training Ltd,18.00,02/01/2024
Delivery Units,Adults and Health,Other Agencies - Third Party P,0090672605,Bliss Care and Training Ltd,162.00,02/01/2024
Delivery Units,Adults and Health,Other Agencies - Third Party P,0090672606,Bliss Care and Training Ltd,238.50,02/01/2024
Delivery Units,Adults and Health,Other Agencies - Third Party P,0090672607,Bliss Care and Training Ltd,405.00,02/01/2024
Delivery Units,Adults and Health,Other Agencies - Third Party P,0090672608,Bliss Care and Training Ltd,157.50,02/01/2024
Delivery Units,Adults and Health,Other Agencies - Third Party P,0090672609,Bliss Care and Training Ltd,378.00,02/01/2024
Delivery Units,Adults and Health,Other Agencies - Third Party P,0090672610,Bliss Care and Training Ltd,126.00,02/01/2024
Delivery Units,Adults and Health,Other Agencies - Third Party P,0090672611,Bliss Care and Training Ltd,441.00,02/01/2024
Delivery Units,Adults and Health,Other Agencies - Third Party P,0090672612,Bliss Care and Training Ltd,220.50,02/01/2024
Delivery Units,Adults and Health,Other Agencies - Third Party P,0090672613,Bliss Care and Training Ltd,315.00,02/01/2024
Delivery Units,Adults and Health,Other Agencies - Third Party P,0090672614,Bliss Care and Training Ltd,94.50,02/01/2024
Delivery Units,Adults and Health,Other Agencies - Third Party P,0090672615,Bliss Care and Training Ltd,63.00,02/01/2024
Delivery Units,Adults and Health,Other Agencies - Third Party P,0090672616,Bliss Care and Training Ltd,256.50,02/01/2024
Delivery Units,Adults and Health,Other Agencies - Third Party P,0090672617,Bliss Care and Training Ltd,310.50,02/01/2024
Delivery Units,Adults and Health,Other Agencies - Third Party P,0090672618,Bliss Care and Training Ltd,252.00,02/01/2024
Delivery Units,Adults and Health,Other Agencies - Third Party P,0090672619,Bliss Care and Training Ltd,693.00,02/01/2024
Delivery Units,Adults and Health,Other Agencies - Third Party P,0090672620,Bliss Care and Training Ltd,90.00,02/01/2024
Delivery Units,Adults and Health,Other Agencies - Third Party P,0090672623,Bliss Care and Training Ltd,189.00,02/01/2024
Delivery Units,Adults and Health,Other Agencies - Third Party P,0090672624,Bliss Care and Training Ltd,504.00,02/01/2024
Delivery Units,Adults and Health,Other Agencies - Third Party P,0090672625,Bliss Care and Training Ltd,252.00,02/01/2024
Delivery Units,Adults and Health,Other Agencies - Third Party P,0090672640,Bliss Care and Training Ltd,94.50,02/01/2024
Delivery Units,Adults and Health,Other Agencies - Third Party P,0090672642,Bliss Care and Training Ltd,126.00,02/01/2024
Delivery Units,Adults and Health,Other Agencies - Third Party P,0090672646,Bliss Care and Training Ltd,18.00,02/01/2024
Delivery Units,Adults and Health,Other Agencies - Third Party P,0090672675,Bliss Care and Training Ltd,220.50,02/01/2024
Delivery Units,Adults and Health,Other Agencies - Third Party P,0090672679,Bliss Care and Training Ltd,72.00,02/01/2024
Delivery Units,Adults and Health,Other Agencies - Third Party P,0090672681,Bliss Care and Training Ltd,315.00,02/01/2024
Delivery Units,Adults and Health,Other Agencies - Third Party P,0090672682,Bliss Care and Training Ltd,405.00,02/01/2024
Delivery Units,Adults and Health,Other Agencies - Third Party P,0090672688,Bliss Care and Training Ltd,378.00,02/01/2024
Delivery Units,Adults and Health,Other Agencies - Third Party P,0090672691,Bliss Care and Training Ltd,256.50,02/01/2024
Delivery Units,Adults and Health,Other Agencies - Third Party P,0090672692,Bliss Care and Training Ltd,189.00,02/01/2024
Delivery Units,Adults and Health,Other Agencies - Third Party P,0090672697,Bliss Care and Training Ltd,567.00,02/01/2024
Delivery Units,Adults and Health,Other Agencies - Third Party P,0090672698,Bliss Care and Training Ltd,630.00,02/01/2024
Delivery Units,Adults and Health,Other Agencies - Third Party P,0090672699,Bliss Care and Training Ltd,351.00,02/01/2024
Delivery Units,Adults and Health,Other Agencies - Third Party P,0090672702,Bliss Care and Training Ltd,81.00,02/01/2024
Delivery Units,Adults and Health,Other Agencies - Third Party P,0090672705,Bliss Care and Training Ltd,63.00,02/01/2024
Delivery Units,Adults and Health,Other Agencies - Third Party P,0090672712,Bliss Care and Training Ltd,157.50,02/01/2024
Delivery Units,Adults and Health,Other Agencies - Third Party P,0090672713,Bliss Care and Training Ltd,189.00,02/01/2024
Delivery Units,Adults and Health,Other Agencies - Third Party P,0090672714,Bliss Care and Training Ltd,162.00,02/01/2024
Delivery Units,Adults and Health,Other Agencies - Third Party P,0090672715,Bliss Care and Training Ltd,220.50,02/01/2024
Delivery Units,Adults and Health,Other Agencies - Third Party P,0090672716,Bliss Care and Training Ltd,18.00,02/01/2024
Delivery Units,Adults and Health,Other Agencies - Third Party P,0090672718,Bliss Care and Training Ltd,333.00,02/01/2024
Delivery Units,Adults and Health,Other Agencies - Third Party P,0090672720,Bliss Care and Training Ltd,94.50,02/01/2024
Delivery Units,Adults and Health,Other Agencies - Third Party P,0090672722,Bliss Care and Training Ltd,126.00,02/01/2024
Delivery Units,Adults and Health,Other Agencies - Third Party P,0090672724,Bliss Care and Training Ltd,63.00,02/01/2024
Delivery Units,Adults and Health,Other Agencies - Third Party P,0090672725,Bliss Care and Training Ltd,126.00,02/01/2024
Delivery Units,Adults and Health,Other Agencies - Third Party P,0090672726,Bliss Care and Training Ltd,504.00,02/01/2024
Delivery Units,Adults and Health,Other Agencies - Third Party P,0090672727,Bliss Care and Training Ltd,63.00,02/01/2024
Delivery Units,Adults and Health,Other Agencies - Third Party P,0090672728,Bliss Care and Training Ltd,157.50,02/01/2024
Delivery Units,Adults and Health,Other Agencies - Third Party P,0090672729,Bliss Care and Training Ltd,94.50,02/01/2024
Delivery Units,Adults and Health,Other Agencies - Third Party P,0090672730,Bliss Care and Training Ltd,139.50,02/01/2024
Delivery Units,Adults and Health,Other Agencies - Third Party P,0090672731,Bliss Care and Training Ltd,220.50,02/01/2024
Delivery Units,Adults and Health,Other Agencies - Third Party P,0090672732,Bliss Care and Training Ltd,441.00,02/01/2024
Delivery Units,Adults and Health,Other Agencies - Third Party P,0090672733,Bliss Care and Training Ltd,283.50,02/01/2024
Delivery Units,Adults and Health,Other Agencies - Third Party P,0090672734,Bliss Care and Training Ltd,126.00,02/01/2024
Delivery Units,Adults and Health,Other Agencies - Third Party P,0090672737,Bliss Care and Training Ltd,630.00,02/01/2024
Delivery Units,Adults and Health,Other Agencies - Third Party P,0090672739,Bliss Care and Training Ltd,252.00,02/01/2024
Delivery Units,Adults and Health,Other Agencies - Third Party P,0090672740,Bliss Care and Training Ltd,157.50,02/01/2024
Delivery Units,Adults and Health,Other Agencies - Third Party P,0090672741,Bliss Care and Training Ltd,189.00,02/01/2024
Delivery Units,Adults and Health,Other Agencies - Third Party P,0090672742,Bliss Care and Training Ltd,315.00,02/01/2024
Delivery Units,Adults and Health,Other Agencies - Third Party P,0090672743,Bliss Care and Training Ltd,157.50,02/01/2024
Delivery Units,Adults and Health,Other Agencies - Third Party P,0090672744,Bliss Care and Training Ltd,400.50,02/01/2024
Delivery Units,Adults and Health,Other Agencies - Third Party P,0090672746,Bliss Care and Training Ltd,306.00,02/01/2024
Delivery Units,Adults and Health,Other Agencies - Third Party P,0090672747,Bliss Care and Training Ltd,67.50,02/01/2024
Delivery Units,Adults and Health,Other Agencies - Third Party P,0090672749,Bliss Care and Training Ltd,162.00,02/01/2024
Delivery Units,Adults and Health,Other Agencies - Third Party P,0090672750,Bliss Care and Training Ltd,405.00,02/01/2024
Delivery Units,Adults and Health,Other Agencies - Third Party P,0090672751,Bliss Care and Training Ltd,157.50,02/01/2024
Delivery Units,Adults and Health,Other Agencies - Third Party P,0090672752,Bliss Care and Training Ltd,378.00,02/01/2024
Delivery Units,Adults and Health,Other Agencies - Third Party P,0090672753,Bliss Care and Training Ltd,126.00,02/01/2024
Delivery Units,Adults and Health,Other Agencies - Third Party P,0090672754,Bliss Care and Training Ltd,360.00,02/01/2024
Delivery Units,Adults and Health,Other Agencies - Third Party P,0090672755,Bliss Care and Training Ltd,220.50,02/01/2024
Delivery Units,Adults and Health,Other Agencies - Third Party P,0090672756,Bliss Care and Training Ltd,315.00,02/01/2024
Delivery Units,Adults and Health,Other Agencies - Third Party P,0090672757,Bliss Care and Training Ltd,22.50,02/01/2024
Delivery Units,Adults and Health,Other Agencies - Third Party P,0090672758,Bliss Care and Training Ltd,94.50,02/01/2024
Delivery Units,Adults and Health,Other Agencies - Third Party P,0090672759,Bliss Care and Training Ltd,63.00,02/01/2024
Delivery Units,Adults and Health,Other Agencies - Third Party P,0090672760,Bliss Care and Training Ltd,256.50,02/01/2024
Delivery Units,Adults and Health,Other Agencies - Third Party P,0090672761,Bliss Care and Training Ltd,310.50,02/01/2024
Delivery Units,Adults and Health,Other Agencies - Third Party P,0090672762,Bliss Care and Training Ltd,252.00,02/01/2024
Delivery Units,Adults and Health,Other Agencies - Third Party P,0090672763,Bliss Care and Training Ltd,693.00,02/01/2024
Delivery Units,Adults and Health,Other Agencies - Third Party P,0090672764,Bliss Care and Training Ltd,90.00,02/01/2024
Delivery Units,Adults and Health,Other Agencies - Third Party P,0090672765,Bliss Care and Training Ltd,220.50,02/01/2024
Delivery Units,Adults and Health,Other Agencies - Third Party P,0090672767,Bliss Care and Training Ltd,189.00,02/01/2024
Delivery Units,Adults and Health,Other Agencies - Third Party P,0090672768,Bliss Care and Training Ltd,504.00,02/01/2024
Delivery Units,Adults and Health,Other Agencies - Third Party P,0090672769,Bliss Care and Training Ltd,108.00,02/01/2024
Delivery Units,Adults and Health,Other Agencies - Third Party P,0090672771,Bliss Care and Training Ltd,252.00,02/01/2024
Delivery Units,Adults and Health,Other Agencies - Third Party P,0090672781,Bliss Care and Training Ltd,94.50,02/01/2024
Delivery Units,Adults and Health,Other Agencies - Third Party P,0090672783,Bliss Care and Training Ltd,126.00,02/01/2024
Delivery Units,Adults and Health,Other Agencies - Third Party P,0090672786,Bliss Care and Training Ltd,18.00,02/01/2024
Delivery Units,Adults and Health,Other Agencies - Third Party P,0090672812,Bliss Care and Training Ltd,891.00,02/01/2024
Delivery Units,Adults and Health,Other Agencies - Third Party P,0090672823,Bliss Care and Training Ltd,378.00,02/01/2024
Delivery Units,Adults and Health,Other Agencies - Third Party P,0090672824,Bliss Care and Training Ltd,216.00,02/01/2024
Delivery Units,Adults and Health,Other Agencies - Third Party P,0090672836,Bliss Care and Training Ltd,315.00,02/01/2024
Delivery Units,Adults and Health,Other Agencies - Third Party P,0090672837,Bliss Care and Training Ltd,189.00,02/01/2024
Delivery Units,Adults and Health,Other Agencies - Third Party P,0090672843,Bliss Care and Training Ltd,567.00,02/01/2024
Delivery Units,Adults and Health,Other Agencies - Third Party P,0090672844,Bliss Care and Training Ltd,630.00,02/01/2024
Delivery Units,Adults and Health,Other Agencies - Third Party P,0090672845,Bliss Care and Training Ltd,351.00,02/01/2024
Delivery Units,Adults and Health,Other Agencies - Third Party P,0090672848,Bliss Care and Training Ltd,81.00,02/01/2024
Delivery Units,Adults and Health,Other Agencies - Third Party P,0090672851,Bliss Care and Training Ltd,63.00,02/01/2024
Delivery Units,Adults and Health,Other Agencies - Third Party P,0090672858,Bliss Care and Training Ltd,157.50,02/01/2024
Delivery Units,Adults and Health,Other Agencies - Third Party P,0090672859,Bliss Care and Training Ltd,189.00,02/01/2024
Delivery Units,Adults and Health,Other Agencies - Third Party P,0090672860,Bliss Care and Training Ltd,162.00,02/01/2024
Delivery Units,Adults and Health,Other Agencies - Third Party P,0090672861,Bliss Care and Training Ltd,220.50,02/01/2024
Delivery Units,Adults and Health,Other Agencies - Third Party P,0090672862,Bliss Care and Training Ltd,18.00,02/01/2024
Delivery Units,Adults and Health,Other Agencies - Third Party P,0090672864,Bliss Care and Training Ltd,333.00,02/01/2024
Delivery Units,Adults and Health,Other Agencies - Third Party P,0090672866,Bliss Care and Training Ltd,94.50,02/01/2024
Delivery Units,Adults and Health,Other Agencies - Third Party P,0090672868,Bliss Care and Training Ltd,126.00,02/01/2024
Delivery Units,Adults and Health,Other Agencies - Third Party P,0090672870,Bliss Care and Training Ltd,63.00,02/01/2024
Delivery Units,Adults and Health,Other Agencies - Third Party P,0090672871,Bliss Care and Training Ltd,126.00,02/01/2024
Delivery Units,Adults and Health,Other Agencies - Third Party P,0090672872,Bliss Care and Training Ltd,504.00,02/01/2024
Delivery Units,Adults and Health,Other Agencies - Third Party P,0090672873,Bliss Care and Training Ltd,63.00,02/01/2024
Delivery Units,Adults and Health,Other Agencies - Third Party P,0090672874,Bliss Care and Training Ltd,157.50,02/01/2024
Delivery Units,Adults and Health,Other Agencies - Third Party P,0090672875,Bliss Care and Training Ltd,94.50,02/01/2024
Delivery Units,Adults and Health,Other Agencies - Third Party P,0090672876,Bliss Care and Training Ltd,139.50,02/01/2024
Delivery Units,Adults and Health,Other Agencies - Third Party P,0090672877,Bliss Care and Training Ltd,283.50,02/01/2024
Delivery Units,Adults and Health,Other Agencies - Third Party P,0090672878,Bliss Care and Training Ltd,684.00,02/01/2024
Delivery Units,Adults and Health,Other Agencies - Third Party P,0090672879,Bliss Care and Training Ltd,261.00,02/01/2024
Delivery Units,Adults and Health,Other Agencies - Third Party P,0090672880,Bliss Care and Training Ltd,207.00,02/01/2024
Delivery Units,Adults and Health,Other Agencies - Third Party P,0090672881,Bliss Care and Training Ltd,441.00,02/01/2024
Delivery Units,Adults and Health,Other Agencies - Third Party P,0090672882,Bliss Care and Training Ltd,283.50,02/01/2024
Delivery Units,Adults and Health,Other Agencies - Third Party P,0090672883,Bliss Care and Training Ltd,216.00,02/01/2024
Delivery Units,Adults and Health,Other Agencies - Third Party P,0090672886,Bliss Care and Training Ltd,630.00,02/01/2024
Delivery Units,Adults and Health,Other Agencies - Third Party P,0090672888,Bliss Care and Training Ltd,252.00,02/01/2024
Delivery Units,Adults and Health,Other Agencies - Third Party P,0090672889,Bliss Care and Training Ltd,157.50,02/01/2024
Delivery Units,Adults and Health,Other Agencies - Third Party P,0090672890,Bliss Care and Training Ltd,189.00,02/01/2024
Delivery Units,Adults and Health,Other Agencies - Third Party P,0090672891,Bliss Care and Training Ltd,346.50,02/01/2024
Delivery Units,Adults and Health,Other Agencies - Third Party P,0090672892,Bliss Care and Training Ltd,315.00,02/01/2024
Delivery Units,Adults and Health,Other Agencies - Third Party P,0090672893,Bliss Care and Training Ltd,157.50,02/01/2024
Delivery Units,Adults and Health,Other Agencies - Third Party P,0090672894,Bliss Care and Training Ltd,400.50,02/01/2024
Delivery Units,Adults and Health,Other Agencies - Third Party P,0090672896,Bliss Care and Training Ltd,306.00,02/01/2024
Delivery Units,Adults and Health,Other Agencies - Third Party P,0090672897,Bliss Care and Training Ltd,67.50,02/01/2024
Delivery Units,Adults and Health,Other Agencies - Third Party P,0090672899,Bliss Care and Training Ltd,162.00,02/01/2024
Delivery Units,Adults and Health,Other Agencies - Third Party P,0090672900,Bliss Care and Training Ltd,157.50,02/01/2024
Delivery Units,Adults and Health,Other Agencies - Third Party P,0090672901,Bliss Care and Training Ltd,405.00,02/01/2024
Delivery Units,Adults and Health,Other Agencies - Third Party P,0090672902,Bliss Care and Training Ltd,157.50,02/01/2024
Delivery Units,Adults and Health,Other Agencies - Third Party P,0090672903,Bliss Care and Training Ltd,378.00,02/01/2024
Delivery Units,Adults and Health,Other Agencies - Third Party P,0090672904,Bliss Care and Training Ltd,126.00,02/01/2024
Delivery Units,Adults and Health,Other Agencies - Third Party P,0090672905,Bliss Care and Training Ltd,220.50,02/01/2024
Delivery Units,Adults and Health,Other Agencies - Third Party P,0090672906,Bliss Care and Training Ltd,315.00,02/01/2024
Delivery Units,Adults and Health,Other Agencies - Third Party P,0090672907,Bliss Care and Training Ltd,22.50,02/01/2024
Delivery Units,Adults and Health,Other Agencies - Third Party P,0090672908,Bliss Care and Training Ltd,94.50,02/01/2024
Delivery Units,Adults and Health,Other Agencies - Third Party P,0090672909,Bliss Care and Training Ltd,63.00,02/01/2024
Delivery Units,Adults and Health,Other Agencies - Third Party P,0090672910,Bliss Care and Training Ltd,256.50,02/01/2024
Delivery Units,Adults and Health,Other Agencies - Third Party P,0090672911,Bliss Care and Training Ltd,310.50,02/01/2024
Delivery Units,Adults and Health,Other Agencies - Third Party P,0090672912,Bliss Care and Training Ltd,144.00,02/01/2024
Delivery Units,Adults and Health,Other Agencies - Third Party P,0090672913,Bliss Care and Training Ltd,693.00,02/01/2024
Delivery Units,Adults and Health,Other Agencies - Third Party P,0090672914,Bliss Care and Training Ltd,90.00,02/01/2024
Delivery Units,Adults and Health,Other Agencies - Third Party P,0090672915,Bliss Care and Training Ltd,220.50,02/01/2024
Delivery Units,Adults and Health,Other Agencies - Third Party P,0090672917,Bliss Care and Training Ltd,189.00,02/01/2024
Delivery Units,Adults and Health,Other Agencies - Third Party P,0090672918,Bliss Care and Training Ltd,504.00,02/01/2024
Delivery Units,Adults and Health,Other Agencies - Third Party P,0090672920,Bliss Care and Training Ltd,252.00,02/01/2024
Delivery Units,Adults and Health,Other Agencies - Third Party P,0090672925,Bliss Care and Training Ltd,94.50,02/01/2024
Delivery Units,Adults and Health,Other Agencies - Third Party P,0090672926,Bliss Care and Training Ltd,126.00,02/01/2024
Delivery Units,Adults and Health,Other Agencies - Third Party P,0090672927,Bliss Care and Training Ltd,18.00,02/01/2024
Delivery Units,Adults and Health,Other Agencies - Third Party P,0090672949,Bliss Care and Training Ltd,891.00,02/01/2024
Delivery Units,Adults and Health,Other Agencies - Third Party P,0090672959,Bliss Care and Training Ltd,567.00,02/01/2024
Delivery Units,Adults and Health,Other Agencies - Third Party P,0090672976,Bliss Care and Training Ltd,256.50,02/01/2024
Delivery Units,Adults and Health,Other Agencies - Third Party P,0090672978,Bliss Care and Training Ltd,315.00,02/01/2024
Delivery Units,Adults and Health,Other Agencies - Third Party P,0090672980,Bliss Care and Training Ltd,189.00,02/01/2024
Delivery Units,Adults and Health,Other Agencies - Third Party P,0090672986,Bliss Care and Training Ltd,567.00,02/01/2024
Delivery Units,Adults and Health,Other Agencies - Third Party P,0090672987,Bliss Care and Training Ltd,630.00,02/01/2024
Delivery Units,Adults and Health,Other Agencies - Third Party P,0090672988,Bliss Care and Training Ltd,351.00,02/01/2024
Delivery Units,Adults and Health,Other Agencies - Third Party P,0090672991,Bliss Care and Training Ltd,81.00,02/01/2024
Delivery Units,Adults and Health,Other Agencies - Third Party P,0090672993,Bliss Care and Training Ltd,63.00,02/01/2024
Delivery Units,Adults and Health,Other Agencies - Third Party P,0090673000,Bliss Care and Training Ltd,157.50,02/01/2024
Delivery Units,Adults and Health,Other Agencies - Third Party P,0090673001,Bliss Care and Training Ltd,189.00,02/01/2024
Delivery Units,Adults and Health,Other Agencies - Third Party P,0090673002,Bliss Care and Training Ltd,252.00,02/01/2024
Delivery Units,Adults and Health,Other Agencies - Third Party P,0090673003,Bliss Care and Training Ltd,220.50,02/01/2024
Delivery Units,Adults and Health,Other Agencies - Third Party P,0090673004,Bliss Care and Training Ltd,18.00,02/01/2024
Delivery Units,Adults and Health,Other Agencies - Third Party P,0090673006,Bliss Care and Training Ltd,333.00,02/01/2024
Delivery Units,Adults and Health,Other Agencies - Third Party P,0090673008,Bliss Care and Training Ltd,94.50,02/01/2024
Delivery Units,Adults and Health,Other Agencies - Third Party P,0090673010,Bliss Care and Training Ltd,126.00,02/01/2024
Delivery Units,Adults and Health,Other Agencies - Third Party P,0090673012,Bliss Care and Training Ltd,63.00,02/01/2024
Delivery Units,Adults and Health,Other Agencies - Third Party P,0090673013,Bliss Care and Training Ltd,126.00,02/01/2024
Delivery Units,Adults and Health,Other Agencies - Third Party P,0090673014,Bliss Care and Training Ltd,504.00,02/01/2024
Delivery Units,Adults and Health,Other Agencies - Third Party P,0090673015,Bliss Care and Training Ltd,63.00,02/01/2024
Delivery Units,Adults and Health,Other Agencies - Third Party P,0090673016,Bliss Care and Training Ltd,157.50,02/01/2024
Delivery Units,Adults and Health,Other Agencies - Third Party P,0090673017,Bliss Care and Training Ltd,94.50,02/01/2024
Delivery Units,Adults and Health,Other Agencies - Third Party P,0090673018,Bliss Care and Training Ltd,139.50,02/01/2024
Delivery Units,Adults and Health,Other Agencies - Third Party P,0090673019,Bliss Care and Training Ltd,283.50,02/01/2024
Delivery Units,Adults and Health,Other Agencies - Third Party P,0090673020,Bliss Care and Training Ltd,684.00,02/01/2024
Delivery Units,Adults and Health,Other Agencies - Third Party P,0090673021,Bliss Care and Training Ltd,261.00,02/01/2024
Delivery Units,Adults and Health,Other Agencies - Third Party P,0090673022,Bliss Care and Training Ltd,441.00,02/01/2024
Delivery Units,Adults and Health,Other Agencies - Third Party P,0090673023,Bliss Care and Training Ltd,283.50,02/01/2024
Delivery Units,Adults and Health,Other Agencies - Third Party P,0090673024,Bliss Care and Training Ltd,378.00,02/01/2024
Delivery Units,Adults and Health,Other Agencies - Third Party P,0090673027,Bliss Care and Training Ltd,630.00,02/01/2024
Delivery Units,Adults and Health,Other Agencies - Third Party P,0090673029,Bliss Care and Training Ltd,252.00,02/01/2024
Delivery Units,Adults and Health,Other Agencies - Third Party P,0090673030,Bliss Care and Training Ltd,157.50,02/01/2024
Delivery Units,Adults and Health,Other Agencies - Third Party P,0090673031,Bliss Care and Training Ltd,40.50,02/01/2024
Delivery Units,Adults and Health,Other Agencies - Third Party P,0090673032,Bliss Care and Training Ltd,346.50,02/01/2024
Delivery Units,Adults and Health,Other Agencies - Third Party P,0090673033,Bliss Care and Training Ltd,81.00,02/01/2024
Delivery Units,Adults and Health,Other Agencies - Third Party P,0090673034,Bliss Care and Training Ltd,315.00,02/01/2024
Delivery Units,Adults and Health,Other Agencies - Third Party P,0090673035,Bliss Care and Training Ltd,157.50,02/01/2024
Delivery Units,Adults and Health,Other Agencies - Third Party P,0090673036,Bliss Care and Training Ltd,400.50,02/01/2024
Delivery Units,Adults and Health,Other Agencies - Third Party P,0090673038,Bliss Care and Training Ltd,306.00,02/01/2024
Delivery Units,Adults and Health,Other Agencies - Third Party P,0090673039,Bliss Care and Training Ltd,67.50,02/01/2024
Delivery Units,Adults and Health,Other Agencies - Third Party P,0090673041,Bliss Care and Training Ltd,162.00,02/01/2024
Delivery Units,Adults and Health,Other Agencies - Third Party P,0090673042,Bliss Care and Training Ltd,90.00,02/01/2024
Delivery Units,Adults and Health,Other Agencies - Third Party P,0090673043,Bliss Care and Training Ltd,157.50,02/01/2024
Delivery Units,Adults and Health,Other Agencies - Third Party P,0090673044,Bliss Care and Training Ltd,378.00,02/01/2024
Delivery Units,Adults and Health,Other Agencies - Third Party P,0090673045,Bliss Care and Training Ltd,126.00,02/01/2024
Delivery Units,Adults and Health,Other Agencies - Third Party P,0090673046,Bliss Care and Training Ltd,220.50,02/01/2024
Delivery Units,Adults and Health,Other Agencies - Third Party P,0090673047,Bliss Care and Training Ltd,99.00,02/01/2024
Delivery Units,Adults and Health,Other Agencies - Third Party P,0090673048,Bliss Care and Training Ltd,22.50,02/01/2024
Delivery Units,Adults and Health,Other Agencies - Third Party P,0090673049,Bliss Care and Training Ltd,94.50,02/01/2024
Delivery Units,Adults and Health,Other Agencies - Third Party P,0090673050,Bliss Care and Training Ltd,63.00,02/01/2024
Delivery Units,Adults and Health,Other Agencies - Third Party P,0090673051,Bliss Care and Training Ltd,256.50,02/01/2024
Delivery Units,Adults and Health,Other Agencies - Third Party P,0090673052,Bliss Care and Training Ltd,310.50,02/01/2024
Delivery Units,Adults and Health,Other Agencies - Third Party P,0090673053,Bliss Care and Training Ltd,216.00,02/01/2024
Delivery Units,Adults and Health,Other Agencies - Third Party P,0090673054,Bliss Care and Training Ltd,693.00,02/01/2024
Delivery Units,Adults and Health,Other Agencies - Third Party P,0090673055,Bliss Care and Training Ltd,90.00,02/01/2024
Delivery Units,Adults and Health,Other Agencies - Third Party P,0090673056,Bliss Care and Training Ltd,220.50,02/01/2024
Delivery Units,Adults and Health,Other Agencies - Third Party P,0090673058,Bliss Care and Training Ltd,189.00,02/01/2024
Delivery Units,Adults and Health,Other Agencies - Third Party P,0090673059,Bliss Care and Training Ltd,504.00,02/01/2024
Delivery Units,Adults and Health,Other Agencies - Third Party P,0090673060,Bliss Care and Training Ltd,193.50,02/01/2024
Delivery Units,Adults and Health,Other Agencies - Third Party P,0090673061,Bliss Care and Training Ltd,252.00,02/01/2024
Delivery Units,Adults and Health,Other Agencies - Third Party P,0090673062,Bliss Care and Training Ltd,94.50,02/01/2024
Delivery Units,Adults and Health,Other Agencies - Third Party P,0090673063,Bliss Care and Training Ltd,126.00,02/01/2024
Delivery Units,Adults and Health,Other Agencies - Third Party P,0090673064,Bliss Care and Training Ltd,18.00,02/01/2024
Delivery Units,Adults and Health,Other Agencies - Third Party P,0090673078,Bliss Care and Training Ltd,891.00,02/01/2024
Delivery Units,Adults and Health,Other Agencies - Third Party P,0090673086,Bliss Care and Training Ltd,288.00,02/01/2024
Delivery Units,Adults and Health,Other Agencies - Third Party P,0090673105,Bliss Care and Training Ltd,193.50,02/01/2024
Delivery Units,Adults and Health,Other Agencies - Third Party P,0090673107,Bliss Care and Training Ltd,180.00,02/01/2024
Delivery Units,Adults and Health,Other Agencies - Third Party P,0090673108,Bliss Care and Training Ltd,54.00,02/01/2024
Delivery Units,Adults and Health,Other Agencies - Third Party P,0090673111,Bliss Care and Training Ltd,175.50,02/01/2024
Delivery Units,Adults and Health,Other Agencies - Third Party P,0090673121,Bliss Care and Training Ltd,126.00,02/01/2024
Delivery Units,Adults and Health,Other Agencies - Third Party P,0090673133,Carecroft Ltd,"1,054.20",05/01/2024
Delivery Units,Adults and Health,Other Agencies - Third Party P,0090673152,Hertsmere Valley Care Services Limited,917.94,05/01/2024
Delivery Units,Adults and Health,Other Agencies - Third Party P,0090673154,Hertsmere Valley Care Services Limited,"4,410.24",05/01/2024
Delivery Units,Adults and Health,Other Agencies - Third Party P,0090673164,Concept Care Solutions Ltd,185.58,05/01/2024
Delivery Units,Adults and Health,Other Agencies - Third Party P,0090673165,Concept Care Solutions Ltd,360.85,05/01/2024
Delivery Units,Adults and Health,Other Agencies - Third Party P,0090673166,Concept Care Solutions Ltd,252.26,05/01/2024
Delivery Units,Adults and Health,Other Agencies - Third Party P,0090673167,Concept Care Solutions Ltd,304.11,05/01/2024
Delivery Units,Adults and Health,Other Agencies - Third Party P,0090673168,Concept Care Solutions Ltd,505.12,05/01/2024
Delivery Units,Adults and Health,Other Agencies - Third Party P,0090673170,Concept Care Solutions Ltd,324.73,05/01/2024
Delivery Units,Adults and Health,Other Agencies - Third Party P,0090673186,Thames Homecare Services Ltd,638.75,05/01/2024
Delivery Units,Adults and Health,Other Agencies - Third Party P,0090673187,Thames Homecare Services Ltd,191.63,05/01/2024
Delivery Units,Adults and Health,Other Agencies - Third Party P,0090673188,Thames Homecare Services Ltd,314.81,05/01/2024
Delivery Units,Adults and Health,Other Agencies - Third Party P,0090673189,Thames Homecare Services Ltd,830.38,05/01/2024
Delivery Units,Adults and Health,Other Agencies - Third Party P,0090673190,Thames Homecare Services Ltd,807.56,05/01/2024
Delivery Units,Adults and Health,Other Agencies - Third Party P,0090673192,Thames Homecare Services Ltd,305.69,05/01/2024
Delivery Units,Adults and Health,Other Agencies - Third Party P,0090673193,Thames Homecare Services Ltd,711.75,05/01/2024
Delivery Units,Adults and Health,Other Agencies - Third Party P,0090673194,Thames Homecare Services Ltd,301.13,05/01/2024
Delivery Units,Adults and Health,Other Agencies - Third Party P,0090673195,Thames Homecare Services Ltd,415.19,05/01/2024
Delivery Units,Adults and Health,Other Agencies - Third Party P,0090673196,Thames Homecare Services Ltd,95.81,05/01/2024
Delivery Units,Adults and Health,Other Agencies - Third Party P,0090673197,Thames Homecare Services Ltd,830.38,05/01/2024
Delivery Units,Adults and Health,Other Agencies - Third Party P,0090673198,Thames Homecare Services Ltd,401.50,05/01/2024
Delivery Units,Adults and Health,Other Agencies - Third Party P,0090673199,Thames Homecare Services Ltd,638.75,05/01/2024
Delivery Units,Adults and Health,Other Agencies - Third Party P,0090673200,Thames Homecare Services Ltd,355.88,05/01/2024
Delivery Units,Adults and Health,Other Agencies - Third Party P,0090673203,Thames Homecare Services Ltd,990.06,05/01/2024
Delivery Units,Adults and Health,Other Agencies - Third Party P,0090673204,Thames Homecare Services Ltd,63.88,05/01/2024
Delivery Units,Adults and Health,Other Agencies - Third Party P,0090673205,Thames Homecare Services Ltd,91.25,05/01/2024
Delivery Units,Adults and Health,Other Agencies - Third Party P,0090673206,Thames Homecare Services Ltd,766.50,05/01/2024
Delivery Units,Adults and Health,Other Agencies - Third Party P,0090673207,Thames Homecare Services Ltd,287.44,05/01/2024
Delivery Units,Adults and Health,Other Agencies - Third Party P,0090673208,Thames Homecare Services Ltd,132.31,05/01/2024
Delivery Units,Adults and Health,Other Agencies - Third Party P,0090673209,Thames Homecare Services Ltd,314.81,05/01/2024
Delivery Units,Adults and Health,Other Agencies - Third Party P,0090673210,Thames Homecare Services Ltd,483.63,05/01/2024
Delivery Units,Adults and Health,Other Agencies - Third Party P,0090673211,Thames Homecare Services Ltd,383.25,05/01/2024
Delivery Units,Adults and Health,Other Agencies - Third Party P,0090673212,Thames Homecare Services Ltd,95.81,05/01/2024
Delivery Units,Adults and Health,Other Agencies - Third Party P,0090673213,Thames Homecare Services Ltd,383.25,05/01/2024
Delivery Units,Adults and Health,Other Agencies - Third Party P,0090673214,Thames Homecare Services Ltd,200.75,05/01/2024
Delivery Units,Adults and Health,Other Agencies - Third Party P,0090673217,Thames Homecare Services Ltd,351.31,05/01/2024
Delivery Units,Adults and Health,Other Agencies - Third Party P,0090673218,Thames Homecare Services Ltd,323.94,05/01/2024
Delivery Units,Adults and Health,Other Agencies - Third Party P,0090673220,Thames Homecare Services Ltd,862.31,05/01/2024
Delivery Units,Adults and Health,Other Agencies - Third Party P,0090673221,Thames Homecare Services Ltd,319.38,05/01/2024
Delivery Units,Adults and Health,Other Agencies - Third Party P,0090673222,Thames Homecare Services Ltd,766.50,05/01/2024
Delivery Units,Adults and Health,Other Agencies - Third Party P,0090673223,Thames Homecare Services Ltd,328.50,05/01/2024
Delivery Units,Adults and Health,Other Agencies - Third Party P,0090673224,Thames Homecare Services Ltd,501.88,05/01/2024
Delivery Units,Adults and Health,Other Agencies - Third Party P,0090673225,Thames Homecare Services Ltd,383.25,05/01/2024
Delivery Units,Adults and Health,Other Agencies - Third Party P,0090673226,Thames Homecare Services Ltd,287.44,05/01/2024
Delivery Units,Adults and Health,Other Agencies - Third Party P,0090673227,Thames Homecare Services Ltd,351.31,05/01/2024
Delivery Units,Adults and Health,Other Agencies - Third Party P,0090673229,Thames Homecare Services Ltd,"1,022.00",05/01/2024
Delivery Units,Adults and Health,Other Agencies - Third Party P,0090673231,Thames Homecare Services Ltd,337.63,05/01/2024
Delivery Units,Adults and Health,Other Agencies - Third Party P,0090673232,Thames Homecare Services Ltd,255.50,05/01/2024
Delivery Units,Adults and Health,Other Agencies - Third Party P,0090673233,Thames Homecare Services Ltd,301.13,05/01/2024
Delivery Units,Adults and Health,Other Agencies - Third Party P,0090673234,Thames Homecare Services Ltd,41.06,05/01/2024
Delivery Units,Adults and Health,Other Agencies - Third Party P,0090673235,Thames Homecare Services Ltd,255.50,05/01/2024
Delivery Units,Adults and Health,Other Agencies - Third Party P,0090673236,Thames Homecare Services Ltd,319.38,05/01/2024
Delivery Units,Adults and Health,Other Agencies - Third Party P,0090673237,Thames Homecare Services Ltd,54.75,05/01/2024
Delivery Units,Adults and Health,Other Agencies - Third Party P,0090673238,Thames Homecare Services Ltd,182.50,05/01/2024
Delivery Units,Adults and Health,Other Agencies - Third Party P,0090673239,Thames Homecare Services Ltd,205.31,05/01/2024
Delivery Units,Adults and Health,Other Agencies - Third Party P,0090673240,Thames Homecare Services Ltd,114.06,05/01/2024
Delivery Units,Adults and Health,Other Agencies - Third Party P,0090673241,Thames Homecare Services Ltd,574.88,05/01/2024
Delivery Units,Adults and Health,Other Agencies - Third Party P,0090673242,Thames Homecare Services Ltd,246.38,05/01/2024
Delivery Units,Adults and Health,Other Agencies - Third Party P,0090673243,Thames Homecare Services Ltd,415.19,05/01/2024
Delivery Units,Adults and Health,Other Agencies - Third Party P,0090673244,Thames Homecare Services Ltd,255.50,05/01/2024
Delivery Units,Adults and Health,Other Agencies - Third Party P,0090673245,Thames Homecare Services Ltd,63.88,05/01/2024
Delivery Units,Adults and Health,Other Agencies - Third Party P,0090673246,Thames Homecare Services Ltd,319.38,05/01/2024
Delivery Units,Adults and Health,Other Agencies - Third Party P,0090673247,Thames Homecare Services Ltd,191.63,05/01/2024
Delivery Units,Adults and Health,Other Agencies - Third Party P,0090673248,Thames Homecare Services Ltd,898.81,05/01/2024
Delivery Units,Adults and Health,Other Agencies - Third Party P,0090673251,Thames Homecare Services Ltd,127.75,05/01/2024
Delivery Units,Adults and Health,Other Agencies - Third Party P,0090673252,Thames Homecare Services Ltd,95.81,05/01/2024
Delivery Units,Adults and Health,Other Agencies - Third Party P,0090673253,Thames Homecare Services Ltd,159.69,05/01/2024
Delivery Units,Adults and Health,Other Agencies - Third Party P,0090673254,Thames Homecare Services Ltd,41.06,05/01/2024
Delivery Units,Adults and Health,Other Agencies - Third Party P,0090673256,Thames Homecare Services Ltd,232.69,05/01/2024
Delivery Units,Adults and Health,Other Agencies - Third Party P,0090673257,Thames Homecare Services Ltd,191.63,05/01/2024
Delivery Units,Adults and Health,Other Agencies - Third Party P,0090673258,Thames Homecare Services Ltd,91.25,05/01/2024
Delivery Units,Adults and Health,Other Agencies - Third Party P,0090673259,Thames Homecare Services Ltd,127.75,05/01/2024
Delivery Units,Adults and Health,Other Agencies - Third Party P,0090673260,Thames Homecare Services Ltd,415.19,05/01/2024
Delivery Units,Adults and Health,Other Agencies - Third Party P,0090673261,Thames Homecare Services Ltd,241.81,05/01/2024
Delivery Units,Adults and Health,Other Agencies - Third Party P,0090673263,Thames Homecare Services Ltd,114.06,05/01/2024
Delivery Units,Adults and Health,Other Agencies - Third Party P,0090673264,Thames Homecare Services Ltd,287.44,05/01/2024
Delivery Units,Adults and Health,Other Agencies - Third Party P,0090673265,Thames Homecare Services Ltd,456.25,05/01/2024
Delivery Units,Adults and Health,Other Agencies - Third Party P,0090673267,Thames Homecare Services Ltd,177.94,05/01/2024
Delivery Units,Adults and Health,Other Agencies - Third Party P,0090673268,Thames Homecare Services Ltd,205.31,05/01/2024
Delivery Units,Adults and Health,Other Agencies - Third Party P,0090673269,Thames Homecare Services Ltd,255.50,05/01/2024
Delivery Units,Adults and Health,Other Agencies - Third Party P,0090673271,Thames Homecare Services Ltd,209.88,05/01/2024
Delivery Units,Adults and Health,Other Agencies - Third Party P,0090673272,Thames Homecare Services Ltd,511.00,05/01/2024
Delivery Units,Adults and Health,Other Agencies - Third Party P,0090673273,Thames Homecare Services Ltd,127.75,05/01/2024
Delivery Units,Adults and Health,Other Agencies - Third Party P,0090673274,Thames Homecare Services Ltd,95.81,05/01/2024
Delivery Units,Adults and Health,Other Agencies - Third Party P,0090673275,Thames Homecare Services Ltd,228.13,05/01/2024
Delivery Units,Adults and Health,Other Agencies - Third Party P,0090673277,Thames Homecare Services Ltd,574.88,05/01/2024
Delivery Units,Adults and Health,Other Agencies - Third Party P,0090673278,Thames Homecare Services Ltd,415.19,05/01/2024
Delivery Units,Adults and Health,Other Agencies - Third Party P,0090673279,Thames Homecare Services Ltd,511.00,05/01/2024
Delivery Units,Adults and Health,Other Agencies - Third Party P,0090673280,Thames Homecare Services Ltd,223.56,05/01/2024
Delivery Units,Adults and Health,Other Agencies - Third Party P,0090673282,Thames Homecare Services Ltd,241.81,05/01/2024
Delivery Units,Adults and Health,Other Agencies - Third Party P,0090673283,Thames Homecare Services Ltd,109.50,05/01/2024
Delivery Units,Adults and Health,Other Agencies - Third Party P,0090673284,Thames Homecare Services Ltd,54.75,05/01/2024
Delivery Units,Adults and Health,Other Agencies - Third Party P,0090673285,Thames Homecare Services Ltd,159.69,05/01/2024
Delivery Units,Adults and Health,Other Agencies - Third Party P,0090673287,Thames Homecare Services Ltd,305.69,05/01/2024
Delivery Units,Adults and Health,Other Agencies - Third Party P,0090673288,Thames Homecare Services Ltd,91.25,05/01/2024
Delivery Units,Adults and Health,Other Agencies - Third Party P,0090673289,Thames Homecare Services Ltd,164.25,05/01/2024
Delivery Units,Adults and Health,Other Agencies - Third Party P,0090673290,Thames Homecare Services Ltd,775.63,05/01/2024
Delivery Units,Adults and Health,Other Agencies - Third Party P,0090673291,Thames Homecare Services Ltd,146.00,05/01/2024
Delivery Units,Adults and Health,Other Agencies - Third Party P,0090673292,Thames Homecare Services Ltd,638.75,05/01/2024
Delivery Units,Adults and Health,Other Agencies - Third Party P,0090673293,Thames Homecare Services Ltd,255.50,05/01/2024
Delivery Units,Adults and Health,Other Agencies - Third Party P,0090673294,Thames Homecare Services Ltd,168.81,05/01/2024
Delivery Units,Adults and Health,Other Agencies - Third Party P,0090673295,Thames Homecare Services Ltd,45.63,05/01/2024
Delivery Units,Adults and Health,Other Agencies - Third Party P,0090673296,Thames Homecare Services Ltd,150.56,05/01/2024
Delivery Units,Adults and Health,Other Agencies - Third Party P,0090673298,Thames Homecare Services Ltd,273.75,05/01/2024
Delivery Units,Adults and Health,Other Agencies - Third Party P,0090673299,Thames Homecare Services Ltd,766.50,05/01/2024
Delivery Units,Adults and Health,Other Agencies - Third Party P,0090673300,Thames Homecare Services Ltd,173.38,05/01/2024
Delivery Units,Adults and Health,Other Agencies - Third Party P,0090673301,Thames Homecare Services Ltd,351.31,05/01/2024
Delivery Units,Adults and Health,Other Agencies - Third Party P,0090673302,Thames Homecare Services Ltd,159.69,05/01/2024
Delivery Units,Adults and Health,Other Agencies - Third Party P,0090673303,Thames Homecare Services Ltd,392.38,05/01/2024
Delivery Units,Adults and Health,Other Agencies - Third Party P,0090673304,Thames Homecare Services Ltd,803.00,05/01/2024
Delivery Units,Adults and Health,Other Agencies - Third Party P,0090673306,Thames Homecare Services Ltd,177.94,05/01/2024
Delivery Units,Adults and Health,Other Agencies - Third Party P,0090673308,Thames Homecare Services Ltd,292.00,05/01/2024
Delivery Units,Adults and Health,Other Agencies - Third Party P,0090673309,Thames Homecare Services Ltd,269.19,05/01/2024
Delivery Units,Adults and Health,Other Agencies - Third Party P,0090673310,Thames Homecare Services Ltd,54.75,05/01/2024
Delivery Units,Adults and Health,Other Agencies - Third Party P,0090673311,Thames Homecare Services Ltd,18.25,05/01/2024
Delivery Units,Adults and Health,Other Agencies - Third Party P,0090673313,Thames Homecare Services Ltd,255.50,05/01/2024
Delivery Units,Adults and Health,Other Agencies - Third Party P,0090673314,Thames Homecare Services Ltd,95.81,05/01/2024
Delivery Units,Adults and Health,Other Agencies - Third Party P,0090673315,Thames Homecare Services Ltd,159.69,05/01/2024
Delivery Units,Adults and Health,Other Agencies - Third Party P,0090673316,Thames Homecare Services Ltd,255.50,05/01/2024
Delivery Units,Adults and Health,Other Agencies - Third Party P,0090673317,Thames Homecare Services Ltd,164.25,05/01/2024
Delivery Units,Adults and Health,Other Agencies - Third Party P,0090673319,Thames Homecare Services Ltd,54.75,05/01/2024
Delivery Units,Adults and Health,Other Agencies - Third Party P,0090673320,Thames Homecare Services Ltd,127.75,05/01/2024
Delivery Units,Adults and Health,Other Agencies - Third Party P,0090673321,Thames Homecare Services Ltd,447.13,05/01/2024
Delivery Units,Adults and Health,Other Agencies - Third Party P,0090673324,Thames Homecare Services Ltd,269.19,05/01/2024
Delivery Units,Adults and Health,Other Agencies - Third Party P,0090673325,Thames Homecare Services Ltd,360.44,05/01/2024
Delivery Units,Adults and Health,Other Agencies - Third Party P,0090673327,Thames Homecare Services Ltd,95.81,05/01/2024
Delivery Units,Adults and Health,Other Agencies - Third Party P,0090673329,Thames Homecare Services Ltd,346.75,05/01/2024
Delivery Units,Adults and Health,Other Agencies - Third Party P,0090673330,Thames Homecare Services Ltd,255.50,05/01/2024
Delivery Units,Adults and Health,Other Agencies - Third Party P,0090673331,Thames Homecare Services Ltd,63.88,05/01/2024
Delivery Units,Adults and Health,Other Agencies - Third Party P,0090673332,Thames Homecare Services Ltd,91.25,05/01/2024
Delivery Units,Adults and Health,Other Agencies - Third Party P,0090673333,Thames Homecare Services Ltd,95.81,05/01/2024
Delivery Units,Adults and Health,Other Agencies - Third Party P,0090673335,Thames Homecare Services Ltd,260.06,05/01/2024
Delivery Units,Adults and Health,Other Agencies - Third Party P,0090673336,Thames Homecare Services Ltd,830.38,05/01/2024
Delivery Units,Adults and Health,Other Agencies - Third Party P,0090673337,Thames Homecare Services Ltd,638.75,05/01/2024
Delivery Units,Adults and Health,Other Agencies - Third Party P,0090673338,Thames Homecare Services Ltd,301.13,05/01/2024
Delivery Units,Adults and Health,Other Agencies - Third Party P,0090673339,Thames Homecare Services Ltd,223.56,05/01/2024
Delivery Units,Adults and Health,Other Agencies - Third Party P,0090673340,Thames Homecare Services Ltd,95.81,05/01/2024
Delivery Units,Adults and Health,Other Agencies - Third Party P,0090673341,Thames Homecare Services Ltd,351.31,05/01/2024
Delivery Units,Adults and Health,Other Agencies - Third Party P,0090673343,Thames Homecare Services Ltd,132.31,05/01/2024
Delivery Units,Adults and Health,Other Agencies - Third Party P,0090673344,Thames Homecare Services Ltd,241.81,05/01/2024
Delivery Units,Adults and Health,Other Agencies - Third Party P,0090673345,Thames Homecare Services Ltd,574.88,05/01/2024
Delivery Units,Adults and Health,Other Agencies - Third Party P,0090673346,Thames Homecare Services Ltd,241.81,05/01/2024
Delivery Units,Adults and Health,Other Agencies - Third Party P,0090673347,Thames Homecare Services Ltd,287.44,05/01/2024
Delivery Units,Adults and Health,Other Agencies - Third Party P,0090673353,Thames Homecare Services Ltd,629.63,05/01/2024
Delivery Units,Adults and Health,Other Agencies - Third Party P,0090673355,Thames Homecare Services Ltd,237.25,05/01/2024
Delivery Units,Adults and Health,Other Agencies - Third Party P,0090673356,Thames Homecare Services Ltd,319.38,05/01/2024
Delivery Units,Adults and Health,Other Agencies - Third Party P,0090673358,Thames Homecare Services Ltd,127.75,05/01/2024
Delivery Units,Adults and Health,Other Agencies - Third Party P,0090673360,Thames Homecare Services Ltd,91.25,05/01/2024
Delivery Units,Adults and Health,Other Agencies - Third Party P,0090673362,Thames Homecare Services Ltd,95.81,05/01/2024
Delivery Units,Adults and Health,Other Agencies - Third Party P,0090673363,Thames Homecare Services Ltd,159.69,05/01/2024
Delivery Units,Adults and Health,Other Agencies - Third Party P,0090673371,Thames Homecare Services Ltd,223.56,05/01/2024
Delivery Units,Adults and Health,Other Agencies - Third Party P,0090673375,Thames Homecare Services Ltd,255.50,05/01/2024
Delivery Units,Adults and Health,Other Agencies - Third Party P,0090673378,Thames Homecare Services Ltd,159.69,05/01/2024
Delivery Units,Adults and Health,Other Agencies - Third Party P,0090673379,Thames Homecare Services Ltd,159.69,05/01/2024
Delivery Units,Adults and Health,Other Agencies - Third Party P,0090673380,Thames Homecare Services Ltd,82.13,05/01/2024
Delivery Units,Adults and Health,Other Agencies - Third Party P,0090673381,Thames Homecare Services Ltd,766.50,05/01/2024
Delivery Units,Adults and Health,Other Agencies - Third Party P,0090673383,Thames Homecare Services Ltd,383.25,05/01/2024
Delivery Units,Adults and Health,Other Agencies - Third Party P,0090673386,Thames Homecare Services Ltd,63.88,05/01/2024
Delivery Units,Adults and Health,Other Agencies - Third Party P,0090673388,Thames Homecare Services Ltd,191.63,05/01/2024
Delivery Units,Adults and Health,Other Agencies - Third Party P,0090673391,Thames Homecare Services Ltd,155.13,05/01/2024
Delivery Units,Adults and Health,Other Agencies - Third Party P,0090673395,Thames Homecare Services Ltd,237.25,05/01/2024
Delivery Units,Adults and Health,Other Agencies - Third Party P,0090673401,Thames Homecare Services Ltd,830.38,05/01/2024
Delivery Units,Adults and Health,Other Agencies - Third Party P,0090673402,Thames Homecare Services Ltd,191.63,05/01/2024
Delivery Units,Adults and Health,Other Agencies - Third Party P,0090673406,Bestchoice Global Ltd,103.69,08/01/2024
Delivery Units,Adults and Health,Other Agencies - Third Party P,0090673408,Bestchoice Global Ltd,103.69,08/01/2024
Delivery Units,Adults and Health,Other Agencies - Third Party P,0090673409,Bestchoice Global Ltd,276.50,08/01/2024
Delivery Units,Adults and Health,Other Agencies - Third Party P,0090673410,Bestchoice Global Ltd,276.50,08/01/2024
Delivery Units,Adults and Health,Other Agencies - Third Party P,0090673411,Bestchoice Global Ltd,345.63,08/01/2024
Delivery Units,Adults and Health,Other Agencies - Third Party P,0090673412,Bestchoice Global Ltd,380.19,08/01/2024
Delivery Units,Adults and Health,Other Agencies - Third Party P,0090673413,Bestchoice Global Ltd,345.63,08/01/2024
Delivery Units,Adults and Health,Other Agencies - Third Party P,0090673415,Bestchoice Global Ltd,103.69,08/01/2024
Delivery Units,Adults and Health,Other Agencies - Third Party P,0090673416,Bestchoice Global Ltd,172.81,08/01/2024
Delivery Units,Adults and Health,Other Agencies - Third Party P,0090673417,Bestchoice Global Ltd,"1,100.00",08/01/2024
Delivery Units,Adults and Health,Other Agencies - Third Party P,0090673418,Bestchoice Global Ltd,103.69,08/01/2024
Delivery Units,Adults and Health,Other Agencies - Third Party P,0090673420,Bestchoice Global Ltd,103.69,08/01/2024
Delivery Units,Adults and Health,Other Agencies - Third Party P,0090673421,Bestchoice Global Ltd,276.50,08/01/2024
Delivery Units,Adults and Health,Other Agencies - Third Party P,0090673422,Bestchoice Global Ltd,276.50,08/01/2024
Delivery Units,Adults and Health,Other Agencies - Third Party P,0090673423,Bestchoice Global Ltd,345.63,08/01/2024
Delivery Units,Adults and Health,Other Agencies - Third Party P,0090673424,Bestchoice Global Ltd,380.19,08/01/2024
Delivery Units,Adults and Health,Other Agencies - Third Party P,0090673425,Bestchoice Global Ltd,345.63,08/01/2024
Delivery Units,Adults and Health,Other Agencies - Third Party P,0090673427,Bestchoice Global Ltd,103.69,08/01/2024
Delivery Units,Adults and Health,Other Agencies - Third Party P,0090673428,Bestchoice Global Ltd,103.69,08/01/2024
Delivery Units,Adults and Health,Other Agencies - Third Party P,0090673429,Bestchoice Global Ltd,172.81,08/01/2024
Delivery Units,Adults and Health,Other Agencies - Third Party P,0090673430,Bestchoice Global Ltd,103.69,08/01/2024
Delivery Units,Adults and Health,Other Agencies - Third Party P,0090673432,Bestchoice Global Ltd,103.69,08/01/2024
Delivery Units,Adults and Health,Other Agencies - Third Party P,0090673433,Bestchoice Global Ltd,276.50,08/01/2024
Delivery Units,Adults and Health,Other Agencies - Third Party P,0090673434,Bestchoice Global Ltd,276.50,08/01/2024
Delivery Units,Adults and Health,Other Agencies - Third Party P,0090673435,Bestchoice Global Ltd,345.63,08/01/2024
Delivery Units,Adults and Health,Other Agencies - Third Party P,0090673436,Bestchoice Global Ltd,380.19,08/01/2024
Delivery Units,Adults and Health,Other Agencies - Third Party P,0090673437,Bestchoice Global Ltd,345.63,08/01/2024
Delivery Units,Adults and Health,Other Agencies - Third Party P,0090673439,Bestchoice Global Ltd,103.69,08/01/2024
Delivery Units,Adults and Health,Other Agencies - Third Party P,0090673441,Bestchoice Global Ltd,103.69,08/01/2024
Delivery Units,Adults and Health,Other Agencies - Third Party P,0090673442,Bestchoice Global Ltd,172.81,08/01/2024
Delivery Units,Adults and Health,Other Agencies - Third Party P,0090673443,Bestchoice Global Ltd,103.69,08/01/2024
Delivery Units,Adults and Health,Other Agencies - Third Party P,0090673446,Bestchoice Global Ltd,103.69,08/01/2024
Delivery Units,Adults and Health,Other Agencies - Third Party P,0090673447,St Georges Home Care ltd,491.12,08/01/2024
Delivery Units,Adults and Health,Other Agencies - Third Party P,0090673448,Bestchoice Global Ltd,276.50,08/01/2024
Delivery Units,Adults and Health,Other Agencies - Third Party P,0090673449,St Georges Home Care ltd,337.65,08/01/2024
Delivery Units,Adults and Health,Other Agencies - Third Party P,0090673450,Bestchoice Global Ltd,276.50,08/01/2024
Delivery Units,Adults and Health,Other Agencies - Third Party P,0090673451,Bestchoice Global Ltd,345.63,08/01/2024
Delivery Units,Adults and Health,Other Agencies - Third Party P,0090673452,Bestchoice Global Ltd,380.19,08/01/2024
Delivery Units,Adults and Health,Other Agencies - Third Party P,0090673453,St Georges Home Care ltd,214.87,08/01/2024
Delivery Units,Adults and Health,Other Agencies - Third Party P,0090673454,Bestchoice Global Ltd,345.63,08/01/2024
Delivery Units,Adults and Health,Other Agencies - Third Party P,0090673456,St Georges Home Care ltd,"2,981.80",08/01/2024
Delivery Units,Adults and Health,Other Agencies - Third Party P,0090673457,Bestchoice Global Ltd,103.69,08/01/2024
Delivery Units,Adults and Health,Other Agencies - Third Party P,0090673459,Bestchoice Global Ltd,103.69,08/01/2024
Delivery Units,Adults and Health,Other Agencies - Third Party P,0090673460,Bestchoice Global Ltd,172.81,08/01/2024
Delivery Units,Adults and Health,Other Agencies - Third Party P,0090673461,St Georges Home Care ltd,306.95,08/01/2024
Delivery Units,Adults and Health,Other Agencies - Third Party P,0090673462,St Georges Home Care ltd,"1,345.56",09/01/2024
Delivery Units,Adults and Health,Other Agencies - Third Party P,0090673463,St Georges Home Care ltd,"1,399.04",09/01/2024
Delivery Units,Adults and Health,Other Agencies - Third Party P,0090673465,St Georges Home Care ltd,"1,245.56",09/01/2024
Delivery Units,Adults and Health,Other Agencies - Third Party P,0090673466,St Georges Home Care ltd,"1,245.56",09/01/2024
Delivery Units,Adults and Health,Other Agencies - Third Party P,0090673468,St Georges Home Care ltd,276.26,09/01/2024
Delivery Units,Adults and Health,Other Agencies - Third Party P,0090673470,St Georges Home Care ltd,184.17,09/01/2024
Delivery Units,Adults and Health,Other Agencies - Third Party P,0090673471,St Georges Home Care ltd,232.41,09/01/2024
Delivery Units,Adults and Health,Other Agencies - Third Party P,0090673473,St Georges Home Care ltd,157.86,09/01/2024
Delivery Units,Adults and Health,Other Agencies - Third Party P,0090673477,St Georges Home Care ltd,491.12,09/01/2024
Delivery Units,Adults and Health,Other Agencies - Third Party P,0090673478,St Georges Home Care ltd,337.65,09/01/2024
Delivery Units,Adults and Health,Other Agencies - Third Party P,0090673479,St Georges Home Care ltd,214.87,09/01/2024
Delivery Units,Adults and Health,Other Agencies - Third Party P,0090673480,St Georges Home Care ltd,"2,981.80",09/01/2024
Delivery Units,Adults and Health,Other Agencies - Third Party P,0090673482,St Georges Home Care ltd,306.95,09/01/2024
Delivery Units,Adults and Health,Other Agencies - Third Party P,0090673483,St Georges Home Care ltd,"1,345.56",09/01/2024
Delivery Units,Adults and Health,Other Agencies - Third Party P,0090673484,St Georges Home Care ltd,"1,399.04",09/01/2024
Delivery Units,Adults and Health,Other Agencies - Third Party P,0090673486,St Georges Home Care ltd,184.17,09/01/2024
Delivery Units,Adults and Health,Other Agencies - Third Party P,0090673487,St Georges Home Care ltd,"1,245.56",09/01/2024
Delivery Units,Adults and Health,Other Agencies - Third Party P,0090673488,St Georges Home Care ltd,"1,245.56",10/01/2024
Delivery Units,Adults and Health,Other Agencies - Third Party P,0090673490,St Georges Home Care ltd,276.26,10/01/2024
Delivery Units,Adults and Health,Other Agencies - Third Party P,0090673492,St Georges Home Care ltd,232.41,10/01/2024
Delivery Units,Adults and Health,Other Agencies - Third Party P,0090673494,St Georges Home Care ltd,157.86,10/01/2024
Delivery Units,Adults and Health,Other Agencies - Third Party P,0090673499,St Georges Home Care ltd,491.12,10/01/2024
Delivery Units,Adults and Health,Other Agencies - Third Party P,0090673500,St Georges Home Care ltd,337.65,10/01/2024
Delivery Units,Adults and Health,Other Agencies - Third Party P,0090673501,St Georges Home Care ltd,214.87,10/01/2024
Delivery Units,Adults and Health,Other Agencies - Third Party P,0090673502,St Georges Home Care ltd,"2,981.80",10/01/2024
Delivery Units,Adults and Health,Other Agencies - Third Party P,0090673504,St Georges Home Care ltd,306.95,10/01/2024
Delivery Units,Adults and Health,Other Agencies - Third Party P,0090673505,St Georges Home Care ltd,"1,345.56",10/01/2024
Delivery Units,Adults and Health,Other Agencies - Third Party P,0090673506,St Georges Home Care ltd,"1,399.04",10/01/2024
Delivery Units,Adults and Health,Other Agencies - Third Party P,0090673508,St Georges Home Care ltd,184.17,10/01/2024
Delivery Units,Adults and Health,Other Agencies - Third Party P,0090673509,St Georges Home Care ltd,"1,245.56",10/01/2024
Delivery Units,Adults and Health,Other Agencies - Third Party P,0090673510,St Georges Home Care ltd,"1,245.56",10/01/2024
Delivery Units,Adults and Health,Other Agencies - Third Party P,0090673512,St Georges Home Care ltd,276.26,10/01/2024
Delivery Units,Adults and Health,Other Agencies - Third Party P,0090673514,St Georges Home Care ltd,232.41,10/01/2024
Delivery Units,Adults and Health,Other Agencies - Third Party P,0090673516,St Georges Home Care ltd,157.86,10/01/2024
Delivery Units,Adults and Health,Other Agencies - Third Party P,0090673520,St Georges Home Care ltd,491.12,10/01/2024
Delivery Units,Adults and Health,Other Agencies - Third Party P,0090673521,St Georges Home Care ltd,337.65,10/01/2024
Delivery Units,Adults and Health,Other Agencies - Third Party P,0090673522,St Georges Home Care ltd,214.87,10/01/2024
Delivery Units,Adults and Health,Other Agencies - Third Party P,0090673523,St Georges Home Care ltd,"2,981.80",10/01/2024
Delivery Units,Adults and Health,Other Agencies - Third Party P,0090673525,St Georges Home Care ltd,306.95,10/01/2024
Delivery Units,Adults and Health,Other Agencies - Third Party P,0090673526,St Georges Home Care ltd,"1,345.56",10/01/2024
Delivery Units,Adults and Health,Other Agencies - Third Party P,0090673527,St Georges Home Care ltd,"1,399.04",10/01/2024
Delivery Units,Adults and Health,Other Agencies - Third Party P,0090673529,St Georges Home Care ltd,184.17,10/01/2024
Delivery Units,Adults and Health,Other Agencies - Third Party P,0090673530,St Georges Home Care ltd,"1,245.56",10/01/2024
Delivery Units,Adults and Health,Other Agencies - Third Party P,0090673531,St Georges Home Care ltd,"1,245.56",10/01/2024
Delivery Units,Adults and Health,Other Agencies - Third Party P,0090673533,St Georges Home Care ltd,276.26,10/01/2024
Delivery Units,Adults and Health,Other Agencies - Third Party P,0090673535,St Georges Home Care ltd,232.41,10/01/2024
Delivery Units,Adults and Health,Other Agencies - Third Party P,0090673537,St Georges Home Care ltd,157.86,10/01/2024
Delivery Units,Adults and Health,Other Agencies - Third Party P,0090674807,The Cedars Home Care,135.80,10/01/2024
Delivery Units,Adults and Health,Other Agencies - Third Party P,0090674808,The Cedars Home Care,358.90,10/01/2024
Delivery Units,Adults and Health,Other Agencies - Third Party P,0090674810,The Cedars Home Care,557.75,10/01/2024
Delivery Units,Adults and Health,Other Agencies - Third Party P,0090674812,The Cedars Home Care,373.45,10/01/2024
Delivery Units,Adults and Health,Other Agencies - Third Party P,0090674813,The Cedars Home Care,289.45,10/01/2024
Delivery Units,Adults and Health,Other Agencies - Third Party P,0090674814,The Cedars Home Care,58.20,10/01/2024
Delivery Units,Adults and Health,Other Agencies - Third Party P,0090674815,The Cedars Home Care,87.30,10/01/2024
Delivery Units,Adults and Health,Other Agencies - Third Party P,0090674816,The Cedars Home Care,132.50,10/01/2024
Delivery Units,Adults and Health,Other Agencies - Third Party P,0090674817,The Cedars Home Care,"3,259.20",10/01/2024
Delivery Units,Adults and Health,Other Agencies - Third Party P,0090674818,The Cedars Home Care,177.51,10/01/2024
Delivery Units,Adults and Health,Other Agencies - Third Party P,0090674819,The Cedars Home Care,258.60,10/01/2024
Delivery Units,Adults and Health,Other Agencies - Third Party P,0090674821,The Cedars Home Care,315.64,10/01/2024
Delivery Units,Adults and Health,Other Agencies - Third Party P,0090674822,The Cedars Home Care,306.91,10/01/2024
Delivery Units,Adults and Health,Other Agencies - Third Party P,0090674823,The Cedars Home Care,29.10,10/01/2024
Delivery Units,Adults and Health,Other Agencies - Third Party P,0090674825,The Cedars Home Care,13.19,10/01/2024
Delivery Units,Adults and Health,Other Agencies - Third Party P,0090674826,The Cedars Home Care,58.20,10/01/2024
Delivery Units,Adults and Health,Other Agencies - Third Party P,0090674827,The Cedars Home Care,"1,251.30",10/01/2024
Delivery Units,Adults and Health,Other Agencies - Third Party P,0090674829,The Cedars Home Care,"2,799.81",10/01/2024
Delivery Units,Adults and Health,Other Agencies - Third Party P,0090674830,The Cedars Home Care,727.50,10/01/2024
Delivery Units,Adults and Health,Other Agencies - Third Party P,0090674831,The Cedars Home Care,208.55,10/01/2024
Delivery Units,Adults and Health,Other Agencies - Third Party P,0090674833,The Cedars Home Care,73.14,10/01/2024
Delivery Units,Adults and Health,Other Agencies - Third Party P,0090674835,The Cedars Home Care,240.95,10/01/2024
Delivery Units,Adults and Health,Other Agencies - Third Party P,0090674836,The Cedars Home Care,101.85,10/01/2024
Delivery Units,Adults and Health,Other Agencies - Third Party P,0090674837,The Cedars Home Care,101.85,10/01/2024
Delivery Units,Adults and Health,Other Agencies - Third Party P,0090674838,The Cedars Home Care,142.20,10/01/2024
Delivery Units,Adults and Health,Other Agencies - Third Party P,0090674839,The Cedars Home Care,412.25,10/01/2024
Delivery Units,Adults and Health,Other Agencies - Third Party P,0090674840,The Cedars Home Care,93.51,10/01/2024
Delivery Units,Adults and Health,Other Agencies - Third Party P,0090674841,The Cedars Home Care,426.80,10/01/2024
Delivery Units,Adults and Health,Other Agencies - Third Party P,0090674842,The Cedars Home Care,"1,629.60",10/01/2024
Delivery Units,Adults and Health,Other Agencies - Third Party P,0090674843,The Cedars Home Care,208.55,10/01/2024
Delivery Units,Adults and Health,Other Agencies - Third Party P,0090674845,The Cedars Home Care,291.00,10/01/2024
Delivery Units,Adults and Health,Other Agencies - Third Party P,0090674846,The Cedars Home Care,87.30,10/01/2024
Delivery Units,Adults and Health,Other Agencies - Third Party P,0090674847,The Cedars Home Care,378.30,10/01/2024
Delivery Units,Adults and Health,Other Agencies - Third Party P,0090674848,The Cedars Home Care,29.10,10/01/2024
Delivery Units,Adults and Health,Other Agencies - Third Party P,0090674849,The Cedars Home Care,101.85,10/01/2024
Delivery Units,Adults and Health,Other Agencies - Third Party P,0090674850,The Cedars Home Care,203.70,10/01/2024
Delivery Units,Adults and Health,Other Agencies - Third Party P,0090674851,The Cedars Home Care,232.80,10/01/2024
Delivery Units,Adults and Health,Other Agencies - Third Party P,0090674852,The Cedars Home Care,906.95,10/01/2024
Delivery Units,Adults and Health,Other Agencies - Third Party P,0090674853,The Cedars Home Care,237.65,10/01/2024
Delivery Units,Adults and Health,Other Agencies - Third Party P,0090674854,The Cedars Home Care,191.67,10/01/2024
Delivery Units,Adults and Health,Other Agencies - Third Party P,0090674855,The Cedars Home Care,213.40,10/01/2024
Delivery Units,Adults and Health,Other Agencies - Third Party P,0090674856,The Cedars Home Care,77.60,10/01/2024
Delivery Units,Adults and Health,Other Agencies - Third Party P,0090674857,The Cedars Home Care,117.76,10/01/2024
Delivery Units,Adults and Health,Other Agencies - Third Party P,0090674858,The Cedars Home Care,14.55,10/01/2024
Delivery Units,Adults and Health,Other Agencies - Third Party P,0090674860,The Cedars Home Care,203.70,10/01/2024
Delivery Units,Adults and Health,Other Agencies - Third Party P,0090674861,The Cedars Home Care,96.42,10/01/2024
Delivery Units,Adults and Health,Other Agencies - Third Party P,0090674863,The Cedars Home Care,162.57,10/01/2024
Delivery Units,Adults and Health,Other Agencies - Third Party P,0090674864,The Cedars Home Care,465.60,10/01/2024
Delivery Units,Adults and Health,Other Agencies - Third Party P,0090674865,The Cedars Home Care,169.75,10/01/2024
Delivery Units,Adults and Health,Other Agencies - Third Party P,0090674866,The Cedars Home Care,75.27,10/01/2024
Delivery Units,Adults and Health,Other Agencies - Third Party P,0090674867,The Cedars Home Care,135.80,10/01/2024
Delivery Units,Adults and Health,Other Agencies - Third Party P,0090674868,The Cedars Home Care,327.47,10/01/2024
Delivery Units,Adults and Health,Other Agencies - Third Party P,0090674870,The Cedars Home Care,557.75,10/01/2024
Delivery Units,Adults and Health,Other Agencies - Third Party P,0090674872,The Cedars Home Care,373.45,10/01/2024
Delivery Units,Adults and Health,Other Agencies - Third Party P,0090674873,The Cedars Home Care,53.35,10/01/2024
Delivery Units,Adults and Health,Other Agencies - Third Party P,0090674874,The Cedars Home Care,19.40,10/01/2024
Delivery Units,Adults and Health,Other Agencies - Third Party P,0090674875,The Cedars Home Care,26.19,10/01/2024
Delivery Units,Adults and Health,Other Agencies - Third Party P,0090674876,The Cedars Home Care,133.28,10/01/2024
Delivery Units,Adults and Health,Other Agencies - Third Party P,0090674877,The Cedars Home Care,"3,240.77",10/01/2024
Delivery Units,Adults and Health,Other Agencies - Third Party P,0090674878,The Cedars Home Care,271.60,10/01/2024
Delivery Units,Adults and Health,Other Agencies - Third Party P,0090674879,The Cedars Home Care,271.60,10/01/2024
Delivery Units,Adults and Health,Other Agencies - Third Party P,0090674881,The Cedars Home Care,344.35,10/01/2024
Delivery Units,Adults and Health,Other Agencies - Third Party P,0090674882,The Cedars Home Care,29.10,10/01/2024
Delivery Units,Adults and Health,Other Agencies - Third Party P,0090674884,The Cedars Home Care,14.55,10/01/2024
Delivery Units,Adults and Health,Other Agencies - Third Party P,0090674885,The Cedars Home Care,56.84,10/01/2024
Delivery Units,Adults and Health,Other Agencies - Third Party P,0090674886,The Cedars Home Care,"1,222.20",10/01/2024
Delivery Units,Adults and Health,Other Agencies - Third Party P,0090674888,The Cedars Home Care,"3,171.90",10/01/2024
Delivery Units,Adults and Health,Other Agencies - Third Party P,0090674889,The Cedars Home Care,687.34,10/01/2024
Delivery Units,Adults and Health,Other Agencies - Third Party P,0090674890,The Cedars Home Care,208.55,10/01/2024
Delivery Units,Adults and Health,Other Agencies - Third Party P,0090674891,The Cedars Home Care,38.80,10/01/2024
Delivery Units,Adults and Health,Other Agencies - Third Party P,0090674893,The Cedars Home Care,48.89,10/01/2024
Delivery Units,Adults and Health,Other Agencies - Third Party P,0090674894,The Cedars Home Care,101.85,10/01/2024
Delivery Units,Adults and Health,Other Agencies - Third Party P,0090674895,The Cedars Home Care,291.00,10/01/2024
Delivery Units,Adults and Health,Other Agencies - Third Party P,0090674896,The Cedars Home Care,412.25,10/01/2024
Delivery Units,Adults and Health,Other Agencies - Third Party P,0090674897,The Cedars Home Care,97.00,10/01/2024
Delivery Units,Adults and Health,Other Agencies - Third Party P,0090674898,The Cedars Home Care,426.80,10/01/2024
Delivery Units,Adults and Health,Other Agencies - Third Party P,0090674899,The Cedars Home Care,"1,629.60",10/01/2024
Delivery Units,Adults and Health,Other Agencies - Third Party P,0090674900,The Cedars Home Care,204.67,10/01/2024
Delivery Units,Adults and Health,Other Agencies - Third Party P,0090674902,The Cedars Home Care,271.60,10/01/2024
Delivery Units,Adults and Health,Other Agencies - Third Party P,0090674903,The Cedars Home Care,87.30,10/01/2024
Delivery Units,Adults and Health,Other Agencies - Third Party P,0090674904,The Cedars Home Care,346.87,10/01/2024
Delivery Units,Adults and Health,Other Agencies - Third Party P,0090674905,The Cedars Home Care,19.40,10/01/2024
Delivery Units,Adults and Health,Other Agencies - Third Party P,0090674906,The Cedars Home Care,186.63,10/01/2024
Delivery Units,Adults and Health,Other Agencies - Third Party P,0090674907,The Cedars Home Care,232.80,10/01/2024
Delivery Units,Adults and Health,Other Agencies - Third Party P,0090674908,The Cedars Home Care,921.50,10/01/2024
Delivery Units,Adults and Health,Other Agencies - Third Party P,0090674909,The Cedars Home Care,154.81,10/01/2024
Delivery Units,Adults and Health,Other Agencies - Third Party P,0090674910,The Cedars Home Care,187.60,10/01/2024
Delivery Units,Adults and Health,Other Agencies - Third Party P,0090674911,The Cedars Home Care,213.40,10/01/2024
Delivery Units,Adults and Health,Other Agencies - Third Party P,0090674912,The Cedars Home Care,77.60,10/01/2024
Delivery Units,Adults and Health,Other Agencies - Third Party P,0090674913,The Cedars Home Care,14.55,10/01/2024
Delivery Units,Adults and Health,Other Agencies - Third Party P,0090674915,The Cedars Home Care,181.39,10/01/2024
Delivery Units,Adults and Health,Other Agencies - Third Party P,0090674916,The Cedars Home Care,140.07,10/01/2024
Delivery Units,Adults and Health,Other Agencies - Third Party P,0090674918,The Cedars Home Care,76.24,10/01/2024
Delivery Units,Adults and Health,Other Agencies - Third Party P,0090674919,The Cedars Home Care,62.08,10/01/2024
Delivery Units,Adults and Health,Other Agencies - Third Party P,0090674921,The Cedars Home Care,283.82,10/01/2024
Delivery Units,Adults and Health,Other Agencies - Third Party P,0090674922,The Cedars Home Care,116.40,10/01/2024
Delivery Units,Adults and Health,Other Agencies - Third Party P,0090674924,The Cedars Home Care,256.47,10/01/2024
Delivery Units,Adults and Health,Other Agencies - Third Party P,0090675010,Pringle's Care Services Ltd,143.25,10/01/2024
Delivery Units,Adults and Health,Other Agencies - Third Party P,0090675011,Pringle's Care Services Ltd,253.08,10/01/2024
Delivery Units,Adults and Health,Other Agencies - Third Party P,0090675012,Pringle's Care Services Ltd,334.25,10/01/2024
Delivery Units,Adults and Health,Other Agencies - Third Party P,0090675013,Pringle's Care Services Ltd,353.35,10/01/2024
Delivery Units,Adults and Health,Other Agencies - Third Party P,0090675014,Pringle's Care Services Ltd,405.88,10/01/2024
Delivery Units,Adults and Health,Other Agencies - Third Party P,0090675015,Pringle's Care Services Ltd,47.75,10/01/2024
Delivery Units,Adults and Health,Other Agencies - Third Party P,0090675016,Pringle's Care Services Ltd,162.35,10/01/2024
Delivery Units,Adults and Health,Other Agencies - Third Party P,0090675017,Pringle's Care Services Ltd,601.65,10/01/2024
Delivery Units,Adults and Health,Other Agencies - Third Party P,0090675020,Pringle's Care Services Ltd,143.25,10/01/2024
Delivery Units,Adults and Health,Other Agencies - Third Party P,0090675021,Pringle's Care Services Ltd,253.08,10/01/2024
Delivery Units,Adults and Health,Other Agencies - Third Party P,0090675022,Pringle's Care Services Ltd,334.25,10/01/2024
Delivery Units,Adults and Health,Other Agencies - Third Party P,0090675023,Pringle's Care Services Ltd,353.35,10/01/2024
Delivery Units,Adults and Health,Other Agencies - Third Party P,0090675024,Pringle's Care Services Ltd,405.88,10/01/2024
Delivery Units,Adults and Health,Other Agencies - Third Party P,0090675025,Pringle's Care Services Ltd,267.40,10/01/2024
Delivery Units,Adults and Health,Other Agencies - Third Party P,0090675026,Pringle's Care Services Ltd,601.65,10/01/2024
Delivery Units,Adults and Health,Other Agencies - Third Party P,0090675029,Pringle's Care Services Ltd,143.25,10/01/2024
Delivery Units,Adults and Health,Other Agencies - Third Party P,0090675030,Pringle's Care Services Ltd,253.08,10/01/2024
Delivery Units,Adults and Health,Other Agencies - Third Party P,0090675031,Pringle's Care Services Ltd,334.25,10/01/2024
Delivery Units,Adults and Health,Other Agencies - Third Party P,0090675032,Pringle's Care Services Ltd,353.35,10/01/2024
Delivery Units,Adults and Health,Other Agencies - Third Party P,0090675033,Pringle's Care Services Ltd,405.88,10/01/2024
Delivery Units,Adults and Health,Other Agencies - Third Party P,0090675034,Pringle's Care Services Ltd,267.40,10/01/2024
Delivery Units,Adults and Health,Other Agencies - Third Party P,0090675035,Pringle's Care Services Ltd,601.65,10/01/2024
Delivery Units,Adults and Health,Other Agencies - Third Party P,0090675038,Pringle's Care Services Ltd,143.25,10/01/2024
Delivery Units,Adults and Health,Other Agencies - Third Party P,0090675039,Pringle's Care Services Ltd,253.08,10/01/2024
Delivery Units,Adults and Health,Other Agencies - Third Party P,0090675040,Pringle's Care Services Ltd,334.25,10/01/2024
Delivery Units,Adults and Health,Other Agencies - Third Party P,0090675041,Pringle's Care Services Ltd,353.35,10/01/2024
Delivery Units,Adults and Health,Other Agencies - Third Party P,0090675042,Pringle's Care Services Ltd,405.88,10/01/2024
Delivery Units,Adults and Health,Other Agencies - Third Party P,0090675043,Pringle's Care Services Ltd,267.40,10/01/2024
Delivery Units,Adults and Health,Other Agencies - Third Party P,0090675044,Pringle's Care Services Ltd,601.65,10/01/2024
Delivery Units,Adults and Health,Other Agencies - Third Party P,0090675047,Pringle's Care Services Ltd,143.25,10/01/2024
Delivery Units,Adults and Health,Other Agencies - Third Party P,0090675048,Pringle's Care Services Ltd,253.08,10/01/2024
Delivery Units,Adults and Health,Other Agencies - Third Party P,0090675049,Pringle's Care Services Ltd,334.25,10/01/2024
Delivery Units,Adults and Health,Other Agencies - Third Party P,0090675050,Pringle's Care Services Ltd,353.35,10/01/2024
Delivery Units,Adults and Health,Other Agencies - Third Party P,0090675051,Pringle's Care Services Ltd,405.88,10/01/2024
Delivery Units,Adults and Health,Other Agencies - Third Party P,0090675052,Pringle's Care Services Ltd,267.40,10/01/2024
Delivery Units,Adults and Health,Other Agencies - Third Party P,0090675053,Pringle's Care Services Ltd,601.65,10/01/2024
Delivery Units,Adults and Health,Other Agencies - Third Party P,0090675069,Thames Homecare Services Ltd,638.75,12/01/2024
